Workbook

Sheet Instructions
B3: 1. In order for HI-RUN to work, Excel must be set to enable macros. Upon opening Excel if macros are not enabled you will see a warning across the top of the screen as shown below. Click on the Options button.
B41: 2. After clicking the options button, the window below will appear. Click on Enable this content. You will need to this every time you open HI-RUN unless you choose to enable macros by default.

Sheet Loading
A1: Highway Runoff Dilution and Loading model (HI-RUN) Version 2.0 For Excel 2007
A2: This model is for stormwater analysis associated with biological assessments, and is not a design tool.
A7: Data Inputs - End-of-Pipe Loading Subroutine
B8: Description: This model provides risk-based predictions of stormwater quality at the outfall and Threshold Discharge Area (TDA) scale. The Highway Runoff Manual provides a thorough discussion of TDA delineation specific to transportation drainage systems. The analysis of water quality concentrations is conducted at a subbasin scale, with subbasins being divisions of TDAs that have discrete discharge points in the receiving water. If a TDA has only one discharge point, data need only be entered under Subbasin 1. The analysis of pollutant loadings is done at the TDA scale only. Water quality parameters analyzed by this tool are Total Suspended Solids (TSS), Total Copper (TCu), Dissolved Copper (DCu), Total Zinc (TZn), and Dissolved Zinc (DZn).
C10: Project/TDA ID: | L10: Step 1: Identify the project location by State Route (SR) and Milepost (MP) of outfall
C12: Precipitation Timeseries: | L12: Step 2: Select the timeseries (from MGS-Flood) that most closely represents the project location. To determine which timeseries corresponds to the project location click on the View Region Map button.
D14: Water Quality Parameters | F14: Month
L15: Step 3: Select water quality parameters to model, hold down Ctrl key to select multiple options
L17: Step 4: Select month(s) to model, hold down Ctrl key to select multiple options. To select all the months, click on January and drag the mouse down to December, so that all the months are highlighted.
B26: TDA Information - Baseline Conditions
E27: Subbasin Area (acres) | J27: TDA Impervious Area (acres)
B28: Treatment Type | D28: Level of Incidental Infiltration (%) | E28: 1 | F28: 2 | G28: 3 | H28: 4 | I28: 5
B29: Basic | D29: 0 | J29: =SUM(E29:I29) -> 0 | L29: Step 5: Define the baseline roadway drainage configuration by subbasin. For each subbasin, enter the number of acres of impervious area are treated by basic treatment BMPs (wet pond, biofiltration swale, vegetated filter strip), enhanced treatment BMPs (media filter drain, compost amended filter strip), or untreated. For each area treated by BMPs, determine the degree of incidental infiltration that can be reasonably assumed (if any) and enter the areas in the corresponding row.
D30: 20 | J30: =SUM(E30:I30) -> 0
D31: 40 | J31: 0
D32: 60 | J32: 0
D33: 80 | J33: 0
B34: Enhanced | D34: 0 | J34: 0
D35: 20 | J35: 0
D36: 40 | J36: 0
D37: 60 | J37: 0
D38: 80 | J38: 0
B39: Infiltration BMP | D39: 100 | J39: 0
B40: None | D40: 0 | J40: 0
B41: Total | E41: =SUM(E29:E40) -> 0 | F41: =SUM(F29:F40) -> 0 | G41: =SUM(G29:G40) -> 0 | H41: =SUM(H29:H40) -> 0 | I41: =SUM(I29:I40) -> 0 | J41: =SUM(E41:I41) -> 0
B43: TDA Information - Proposed Conditions
E44: Subbasin Area (acres) | J44: TDA Impervious Area (acres)
B45: Treatment Type | D45: Level of Incidental Infiltration (%) | E45: 1 | F45: 2 | G45: 3 | H45: 4 | I45: 5
B46: Basic | D46: 0 | J46: =SUM(E46:I46) -> 0 | L46: Step 6: Define the proposed roadway drainage configuration by subbasin. For each subbasin, enter the number of acres of impervious area are treated by basic treatment BMPs (wet pond, biofiltration swale, vegetated filter strip), enhanced treatment BMPs (media filter drain, compost amended filter strip), or untreated. For each area treated by BMPs, determine the degree of incidental infiltration that can be reasonably assumed (if any) and enter the areas in the corresponding row.
D47: 20 | J47: =SUM(E47:I47) -> 0
D48: 40 | J48: 0
D49: 60 | J49: 0
D50: 80 | J50: 0
B51: Enhanced | D51: 0 | J51: 0
D52: 20 | J52: 0
D53: 40 | J53: 0
D54: 60 | J54: 0
D55: 80 | J55: 0
B56: Infiltration BMP | D56: 100 | J56: 0
B57: None | D57: 0 | J57: 0
B58: Total | E58: =SUM(E46:E57) -> 0 | F58: =SUM(F46:F57) -> 0 | G58: =SUM(G46:G57) -> 0 | H58: =SUM(H46:H57) -> 0 | I58: =SUM(I46:I57) -> 0 | J58: =SUM(E58:I58) -> 0
B61: Last Revision Date: October 30, 2014

Sheet Dilution
B1: =Loading!A1 -> Highway Runoff Dilution and Loading model (HI-RUN) Version 2.0 For Excel 2007
B6: Inputs for Receiving Water Dilution Subroutine
B7: Dilution subroutine analysis is only conducted on pollutants that have an established biological effects threshold (dissolved copper and zinc)
B8: Subbasin 1
E9: Background Concentration (mg/L) | H9: Enter short description of simulation (optional)
C10: TSS
C11: Copper - Total
C12: Zinc - Total
C13: Copper -Dissolved
C14: Zinc - Dissolved
G16: January | H16: February | I16: March | J16: April | K16: May | L16: June | M16: July | N16: August | O16: September | P16: October | Q16: November | R16: December
C17: Stream Depth (ft)
C18: Stream Velocity (fps)
C19: Channel Width (ft)
C21: Discharge Distance into Water Body From Nearest Shoreline (ft)
B23: Subbasin 2
E24: Background Concentration (mg/L) | H24: Enter short description of simulation (optional)
C25: TSS
C26: Copper - Total
C27: Zinc - Total
C28: Copper -Dissolved
C29: Zinc - Dissolved
G31: January | H31: February | I31: March | J31: April | K31: May | L31: June | M31: July | N31: August | O31: September | P31: October | Q31: November | R31: December
C32: Stream Depth (ft)
C33: Stream Velocity (fps)
C34: Channel Width (ft)
C36: Discharge Distance into Water Body From Nearest Shoreline (ft)
B38: Subbasin 3
E39: Background Concentration (mg/L) | H39: Enter short description of simulation (optional)
C40: TSS
C41: Copper - Total
C42: Zinc - Total
C43: Copper -Dissolved
C44: Zinc - Dissolved
G46: January | H46: February | I46: March | J46: April | K46: May | L46: June | M46: July | N46: August | O46: September | P46: October | Q46: November | R46: December
C47: Stream Depth (ft)
C48: Stream Velocity (fps)
C49: Channel Width (ft)
C51: Discharge Distance into Water Body From Nearest Shoreline (ft)
B53: Subbasin 4
E54: Background Concentration (mg/L) | H54: Enter short description of simulation (optional)
C55: TSS
C56: Copper - Total
C57: Zinc - Total
C58: Copper -Dissolved
C59: Zinc - Dissolved
G61: January | H61: February | I61: March | J61: April | K61: May | L61: June | M61: July | N61: August | O61: September | P61: October | Q61: November | R61: December
C62: Stream Depth (ft):
C63: Stream Velocity (fps):
C64: Channel Width (ft):
C66: Discharge Distance into Water Body From Nearest Shoreline (ft):
B68: Subbasin 5
E69: Background Concentration (mg/L) | H69: Enter short description of simulation (optional)
C70: TSS
C71: Copper - Total
C72: Zinc - Total
C73: Copper -Dissolved
C74: Zinc - Dissolved
G76: January | H76: February | I76: March | J76: April | K76: May | L76: June | M76: July | N76: August | O76: September | P76: October | Q76: November | R76: December
C77: Stream Depth (ft):
C78: Stream Velocity (fps):
C79: Channel Width (ft):
C81: Discharge Distance into Water Body From Nearest Shoreline (ft):
B85: =Loading!B61 -> Last Revision Date: October 30, 2014

Sheet Dilution_Iterations (hidden)
A2: Sub Basin | D2: 1 | H2: =D3 & " - " & D5 & " - " & D11 & " Iteration - " & D12 -> Dissolved Copper - January - Proposed Iteration - 1
A3: Water Quality Parameter | D3: Dissolved Copper
A4: Background Concentration (mg/L) | D4: 0.0001
A5: Month | D5: January
A6: Stream Depth (ft) | D6: 1
A7: Stream Velocity (fps) | D7: 0.5
A8: Channel Width (ft) | D8: 3
A9: Slope/Roughness | D9: 0.001
A10: Discharge Distance (ft) | D10: 0
C11: Condition | D11: Proposed
C12: iteration # | D12: 1
A15: Downstream Distance | B15: Exceedance Probability | R15: Parameter | S15: Condition | T15: Month | U15: Distance (ft)
A16: 100 | B16: 0.01400000043 | R16: Dissolved Copper | S16: January | T16: baseline | U16: 3
D45: Running Dilution Model 2 of 4

Sheet Dilution Results Summary (hidden)
B1: Highway Runoff Dilution Summary Results
B3: Project: test Precipitation Series: Puget West 32 Description: -------------------------------------------------------------------------------------------- Background Concentrations (mg/L) Dissolved Copper: 0.0001 Dissolved Zinc: 0.0005 -------------------------------------------------------------------------------------------- Baseline Conditions: 30 acres Basic Treatment Infiltration 0% - 30 acres Proposed Conditions: 30 acres Basic Treatment Infiltration 40% - 30 acres
D20: Jan | E20: Feb | F20: Mar | G20: Apr | H20: May | I20: Jun | J20: Jul | K20: Aug | L20: Sep | M20: Oct | N20: Nov | O20: Dec
B21: Depth (ft) | L21: 1
B22: Velocity (fps) | L22: 0.5
B23: Width (ft) | L23: 7
B24: Slope | L24: 9.999999747e-05
B25: Discharge Distance (ft) | L25: 0
B26: Distance Downstream in feet to Meet Biological Threshold
B28: Dissolved Copper | C28: Baseline | L28: 11
C29: Proposed | L29: 3
B30: Dissolved Zinc | C30: Baseline | L30: 42
C31: Proposed | L31: 13

Sheet Dilution Results Detailed (hidden)
B1: Highway Runoff Dilution Detailed Results
A4: Dissolved Copper - September probability of occurrence for baseline conditions downstream distance = 11 feet
A5: Conc. (mg/L) | C5: Baseline Conditions | M5: Proposed Conditions
B6: > 0.0021 | C6: =SUM(D6:K6) -> 0.0472 | D6: 0.0055 | E6: 0.0157 | F6: 0.0167 | G6: 0.0076 | H6: 0.0016 | I6: 0.0001 | J6: 0 | K6: 0 | L6: > 0.0021 | M6: =SUM(N6:U6) -> 0.025 | N6: 0.006 | O6: 0.0096 | P6: 0.0067 | Q6: 0.0023 | R6: 0.0004 | S6: 0 | T6: 0 | U6: 0
B7: 0.0001 - 0.0021 | C7: =SUM(D7:K7) -> 0.9527 | D7: 0.1112 | E7: 0.3164 | F7: 0.3376 | G7: 0.1527 | H7: 0.0321 | I7: 0.0026 | J7: 0.0001 | K7: 0 | L7: 0.0001 - 0.0021 | M7: =SUM(N7:U7) -> 0.9752 | N7: 0.236 | O7: 0.3735 | P7: 0.2607 | Q7: 0.0881 | R7: 0.0156 | S7: 0.0012 | T7: 0.0001 | U7: 0
B8: 0 - 0.0001 | C8: =SUM(D8:K8) -> 0 | D8: 0 | E8: 0 | F8: 0 | G8: 0 | H8: 0 | I8: 0 | J8: 0 | K8: 0 | L8: 0 - 0.0001 | M8: =SUM(N8:U8) -> 0 | N8: 0 | O8: 0 | P8: 0 | Q8: 0 | R8: 0 | S8: 0 | T8: 0 | U8: 0
D9: 0.1167 | E9: 0.3321 | F9: 0.3543 | G9: 0.1603 | H9: 0.0336 | I9: 0.0027 | J9: 0.0001 | K9: 0 | N9: 0.242 | O9: 0.383 | P9: 0.2673 | Q9: 0.0903 | R9: 0.016 | S9: 0.0012 | T9: 0.0001 | U9: 0
D10: 0 - 3 | E10: 3 - 6 | F10: 6 - 12 | G10: 12 - 24 | H10: 24 - 48 | I10: 48 - 96 | J10: 96 - 192 | K10: >192 | N10: 0 - 3 | O10: 3 - 6 | P10: 6 - 12 | Q10: 12 - 24 | R10: 24 - 48 | S10: 48 - 96 | T10: 96 - 192 | U10: >192
B11: Discharge Duration (hrs)
A15: Dissolved Copper - September probability of occurrence for proposed conditions downstream distance = 3 feet
C16: Baseline Conditions | M16: Proposed Conditions
B17: > 0.0021 | C17: =SUM(D17:K17) -> 0.0928 | D17: 0.011 | E17: 0.0308 | F17: 0.0327 | G17: 0.0149 | H17: 0.0031 | I17: 0.0003 | J17: 0 | K17: 0 | L17: > 0.0021 | M17: =SUM(N17:U17) -> 0.0495 | N17: 0.012 | O17: 0.019 | P17: 0.0132 | Q17: 0.0044 | R17: 0.0008 | S17: 0.0001 | T17: 0 | U17: 0
B18: 0.0001 - 0.0021 | C18: =SUM(D18:K18) -> 0.9074 | D18: 0.1075 | E18: 0.3012 | F18: 0.3198 | G18: 0.1455 | H18: 0.0304 | I18: 0.0029 | J18: 0.0001 | K18: 0 | L18: 0.0001 - 0.0021 | M18: =SUM(N18:U18) -> 0.9505 | N18: 0.2308 | O18: 0.3648 | P18: 0.2533 | Q18: 0.085 | R18: 0.0152 | S18: 0.0013 | T18: 0.0001 | U18: 0
B19: 0 - 0.0001 | C19: =SUM(D19:K19) -> 0 | D19: 0 | E19: 0 | F19: 0 | G19: 0 | H19: 0 | I19: 0 | J19: 0 | K19: 0 | L19: 0 - 0.0001 | M19: =SUM(N19:U19) -> 0 | N19: 0 | O19: 0 | P19: 0 | Q19: 0 | R19: 0 | S19: 0 | T19: 0 | U19: 0
D20: 0.1185 | E20: 0.332 | F20: 0.3525 | G20: 0.1604 | H20: 0.0335 | I20: 0.0032 | J20: 0.0001 | K20: 0 | N20: 0.2429 | O20: 0.3838 | P20: 0.2665 | Q20: 0.0894 | R20: 0.016 | S20: 0.0014 | T20: 0.0001 | U20: 0
D21: 0 - 3 | E21: 3 - 6 | F21: 6 - 12 | G21: 12 - 24 | H21: 24 - 48 | I21: 48 - 96 | J21: 96 - 192 | K21: >192 | N21: 0 - 3 | O21: 3 - 6 | P21: 6 - 12 | Q21: 12 - 24 | R21: 24 - 48 | S21: 48 - 96 | T21: 96 - 192 | U21: >192
B22: Discharge Duration (hrs)
A26: Dissolved Zinc - September probability of occurrence for baseline conditions downstream distance = 42 feet
A27: Conc. (mg/L) | C27: Baseline Conditions | M27: Proposed Conditions
B28: > 0.0061 | C28: =SUM(D28:K28) -> 0.0492 | D28: 0.0057 | E28: 0.0164 | F28: 0.0173 | G28: 0.008 | H28: 0.0016 | I28: 0.0002 | J28: 0 | K28: 0 | L28: > 0.0061 | M28: =SUM(N28:U28) -> 0.0258 | N28: 0.0063 | O28: 0.0099 | P28: 0.0069 | Q28: 0.0023 | R28: 0.0004 | S28: 0 | T28: 0 | U28: 0
B29: 0.0005 - 0.0061 | C29: =SUM(D29:K29) -> 0.9507 | D29: 0.1107 | E29: 0.3163 | F29: 0.3349 | G29: 0.1546 | H29: 0.031 | I29: 0.0031 | J29: 0.0001 | K29: 0 | L29: 0.0005 - 0.0061 | M29: =SUM(N29:U29) -> 0.9741 | N29: 0.2381 | O29: 0.3737 | P29: 0.2604 | Q29: 0.0858 | R29: 0.0145 | S29: 0.0015 | T29: 0.0001 | U29: 0
B30: 0 - 0.0005 | C30: =SUM(D30:K30) -> 0 | D30: 0 | E30: 0 | F30: 0 | G30: 0 | H30: 0 | I30: 0 | J30: 0 | K30: 0 | L30: 0 - 0.0005 | M30: =SUM(N30:U30) -> 0 | N30: 0 | O30: 0 | P30: 0 | Q30: 0 | R30: 0 | S30: 0 | T30: 0 | U30: 0
D31: 0.1164 | E31: 0.3327 | F31: 0.3522 | G31: 0.1626 | H31: 0.0327 | I31: 0.0033 | J31: 0.0001 | K31: 0 | N31: 0.2444 | O31: 0.3837 | P31: 0.2673 | Q31: 0.0881 | R31: 0.0149 | S31: 0.0015 | T31: 0.0001 | U31: 0
D32: 0 - 3 | E32: 3 - 6 | F32: 6 - 12 | G32: 12 - 24 | H32: 24 - 48 | I32: 48 - 96 | J32: 96 - 192 | K32: >192 | N32: 0 - 3 | O32: 3 - 6 | P32: 6 - 12 | Q32: 12 - 24 | R32: 24 - 48 | S32: 48 - 96 | T32: 96 - 192 | U32: >192
B33: Discharge Duration (hrs)
A37: Dissolved Zinc - September probability of occurrence for proposed conditions downstream distance = 13 feet
C38: Baseline Conditions | M38: Proposed Conditions
B39: > 0.0061 | C39: =SUM(D39:K39) -> 0.091 | D39: 0.0105 | E39: 0.0302 | F39: 0.0324 | G39: 0.0146 | H39: 0.003 | I39: 0.0003 | J39: 0 | K39: 0 | L39: > 0.0061 | M39: =SUM(N39:U39) -> 0.0487 | N39: 0.0118 | O39: 0.0188 | P39: 0.0129 | Q39: 0.0044 | R39: 0.0007 | S39: 0.0001 | T39: 0 | U39: 0
B40: 0.0005 - 0.0061 | C40: =SUM(D40:K40) -> 0.909 | D40: 0.105 | E40: 0.302 | F40: 0.3236 | G40: 0.1455 | H40: 0.0298 | I40: 0.003 | J40: 0.0001 | K40: 0 | L40: 0.0005 - 0.0061 | M40: =SUM(N40:U40) -> 0.9513 | N40: 0.2309 | O40: 0.368 | P40: 0.251 | Q40: 0.0858 | R40: 0.0143 | S40: 0.0013 | T40: 0 | U40: 0
B41: 0 - 0.0005 | C41: =SUM(D41:K41) -> 0 | D41: 0 | E41: 0 | F41: 0 | G41: 0 | H41: 0 | I41: 0 | J41: 0 | K41: 0 | L41: 0 - 0.0005 | M41: =SUM(N41:U41) -> 0 | N41: 0 | O41: 0 | P41: 0 | Q41: 0 | R41: 0 | S41: 0 | T41: 0 | U41: 0
D42: 0.1156 | E42: 0.3322 | F42: 0.356 | G42: 0.1601 | H42: 0.0328 | I42: 0.0033 | J42: 0.0001 | K42: 0 | N42: 0.2427 | O42: 0.3868 | P42: 0.2639 | Q42: 0.0902 | R42: 0.015 | S42: 0.0014 | T42: 0 | U42: 0
D43: 0 - 3 | E43: 3 - 6 | F43: 6 - 12 | G43: 12 - 24 | H43: 24 - 48 | I43: 48 - 96 | J43: 96 - 192 | K43: >192 | N43: 0 - 3 | O43: 3 - 6 | P43: 6 - 12 | Q43: 12 - 24 | R43: 24 - 48 | S43: 48 - 96 | T43: 96 - 192 | U43: >192
B44: Discharge Duration (hrs)

Sheet Results (hidden)
A1: Highway Runoff Dilution and Loading model (HI-RUN) Version 2.0
A2: End of Pipe Loading Subroutine Report
A3: This model is for stormwater analysis associated with biological assessments, and is not a design tool.
B4: Input Summary --------------------------------------------------------------------------------------- Run Date/Time: 5/18/11 09:53 Outfall ID: test Rain Gauge: Puget West 32 Description: --------------------------------------------------------------------------------------- Discharge Areas Subbasin 1 - Baseline Conditions - 30 acres basic treatment - 0% infiltration - 30 acres Subbasin 1 - Proposed Conditions - 30 acres basic treatment - 40% infiltration - 30 acres
A30: Load Analysis
C33: Dissolved Zinc
C34: Load (lb/yr)
C35: Baseline | D35: Proposed
B36: Max | C36: 37.9 | D36: 15
B37: 75th Percentile | C37: 4.2 | D37: 1.5
B38: Median | C38: 2.66 | D38: 0.94
B39: 25th Percentile | C39: 1.68 | D39: 0.59
B40: Min | C40: 0.107 | D40: 0.003
B41: P (exceed) | D41: 0.144
A45: Concentration Analysis
B48: Subbasin 1 | C48: Dissolved Zinc
C49: Conc (mg/L)
C50: Baseline | D50: Proposed
B51: Max | C51: 0.261 | D51: 0.205
B52: 75th Percentile | C52: 0.024 | D52: 0.024
B53: Median | C53: 0.016 | D53: 0.016
B54: 25th Percentile | C54: 0.01 | D54: 0.01
B55: Min | C55: 0.001 | D55: 0.001
B56: P (exceed) | D56: 0.499

Sheet Subbasin1 (hidden)
A1: Subbasin 1 - End of Pipe Concentration Results
A2: This model is for stormwater analysis associated with biological assessments, and is not a design tool.
B4: Input Summary ---------------------------------------------------------------------------------------------- Run Date/Time: 5/18/11 09:53 Outfall ID: test Rain Gauge: Puget West 32 Description: ---------------------------------------------------------------------------------------------- Baseline conditions - 30 acres basic treatment - 0% infiltration - 30 acres ---------------------------------------------------------------------------------------------- Proposed Conditions - 30 acres Basic - 40 % Infiltration - 30 acres
A28: Dissolved Zinc - May - Probability of Occurrence
A29: Conc. (mg/L) | C29: Baseline Conditions | L29: Proposed Conditions
B30: > 0.1 | C30: 0.002 | D30: 0 | E30: 0.001 | F30: 0.001 | G30: 0 | H30: 0 | I30: 0 | J30: 0 | K30: 0 | L30: > 0.1 | M30: 0.002 | N30: 0 | O30: 0.001 | P30: 0.001 | Q30: 0 | R30: 0 | S30: 0 | T30: 0 | U30: 0
B31: 0.09 - 0.1 | C31: 0 | D31: 0 | E31: 0 | F31: 0 | G31: 0 | H31: 0 | I31: 0 | J31: 0 | K31: 0 | L31: 0.09 - 0.1 | M31: 0 | N31: 0 | O31: 0 | P31: 0 | Q31: 0 | R31: 0 | S31: 0 | T31: 0 | U31: 0
B32: 0.08 - 0.09 | C32: 0.003 | D32: 0 | E32: 0.001 | F32: 0.001 | G32: 0.001 | H32: 0 | I32: 0 | J32: 0 | K32: 0 | L32: 0.08 - 0.09 | M32: 0.002 | N32: 0 | O32: 0.001 | P32: 0.001 | Q32: 0 | R32: 0 | S32: 0 | T32: 0 | U32: 0
B33: 0.07 - 0.08 | C33: 0.004 | D33: 0 | E33: 0.001 | F33: 0.002 | G33: 0.001 | H33: 0 | I33: 0 | J33: 0 | K33: 0 | L33: 0.07 - 0.08 | M33: 0.005 | N33: 0.001 | O33: 0.002 | P33: 0.001 | Q33: 0.001 | R33: 0 | S33: 0 | T33: 0 | U33: 0
B34: 0.06 - 0.07 | C34: 0.009 | D34: 0.001 | E34: 0.002 | F34: 0.003 | G34: 0.002 | H34: 0.001 | I34: 0 | J34: 0 | K34: 0 | L34: 0.06 - 0.07 | M34: 0.008 | N34: 0.001 | O34: 0.003 | P34: 0.003 | Q34: 0.001 | R34: 0 | S34: 0 | T34: 0 | U34: 0
B35: 0.05 - 0.06 | C35: 0.016 | D35: 0.001 | E35: 0.004 | F35: 0.006 | G35: 0.004 | H35: 0.001 | I35: 0 | J35: 0 | K35: 0 | L35: 0.05 - 0.06 | M35: 0.018 | N35: 0.003 | O35: 0.006 | P35: 0.005 | Q35: 0.003 | R35: 0.001 | S35: 0 | T35: 0 | U35: 0
B36: 0.04 - 0.05 | C36: 0.037 | D36: 0.003 | E36: 0.009 | F36: 0.013 | G36: 0.009 | H36: 0.003 | I36: 0 | J36: 0 | K36: 0 | L36: 0.04 - 0.05 | M36: 0.035 | N36: 0.005 | O36: 0.012 | P36: 0.011 | Q36: 0.006 | R36: 0.001 | S36: 0 | T36: 0 | U36: 0
B37: 0.03 - 0.04 | C37: 0.084 | D37: 0.006 | E37: 0.021 | F37: 0.03 | G37: 0.02 | H37: 0.006 | I37: 0.001 | J37: 0 | K37: 0 | L37: 0.03 - 0.04 | M37: 0.082 | N37: 0.013 | O37: 0.027 | P37: 0.026 | Q37: 0.013 | R37: 0.003 | S37: 0 | T37: 0 | U37: 0
B38: 0.02 - 0.03 | C38: 0.193 | D38: 0.014 | E38: 0.049 | F38: 0.068 | G38: 0.045 | H38: 0.015 | I38: 0.002 | J38: 0 | K38: 0 | L38: 0.02 - 0.03 | M38: 0.195 | N38: 0.03 | O38: 0.064 | P38: 0.062 | Q38: 0.03 | R38: 0.008 | S38: 0.001 | T38: 0 | U38: 0
B39: 0.01 - 0.02 | C39: 0.404 | D39: 0.03 | E39: 0.102 | F39: 0.142 | G39: 0.094 | H39: 0.031 | I39: 0.005 | J39: 0 | K39: 0 | L39: 0.01 - 0.02 | M39: 0.404 | N39: 0.062 | O39: 0.133 | P39: 0.128 | Q39: 0.063 | R39: 0.016 | S39: 0.002 | T39: 0 | U39: 0
B40: 0 - 0.01 | C40: 0.245 | D40: 0.018 | E40: 0.062 | F40: 0.086 | G40: 0.057 | H40: 0.019 | I40: 0.003 | J40: 0 | K40: 0 | L40: 0 - 0.01 | M40: 0.247 | N40: 0.038 | O40: 0.081 | P40: 0.078 | Q40: 0.039 | R40: 0.01 | S40: 0.001 | T40: 0 | U40: 0
D41: 0.073 | E41: 0.252 | F41: 0.352 | G41: 0.233 | H41: 0.076 | I41: 0.011 | J41: 0 | K41: 0 | N41: 0.153 | O41: 0.33 | P41: 0.316 | Q41: 0.156 | R41: 0.039 | S41: 0.004 | T41: 0 | U41: 0
D42: 0 - 3 | E42: 3 - 6 | F42: 6 - 12 | G42: 12 - 24 | H42: 24 - 48 | I42: 48 - 96 | J42: 96 - 192 | K42: >192 | N42: 0 - 3 | O42: 3 - 6 | P42: 6 - 12 | Q42: 12 - 24 | R42: 24 - 48 | S42: 48 - 96 | T42: 96 - 192 | U42: >192
B43: Discharge Duration (hrs)

Sheet Subbasin2 (hidden)
A1: Subbasin 2 - End of Pipe Concentration Results
A2: This model is for stormwater analysis associated with biological assessments, and is not a design tool.
B4: Input Summary ---------------------------------------------------------------------------------------------- Run Date/Time: 12/13/10 20:29 Outfall ID: test Rain Gauge: Puget West 32 Description: ---------------------------------------------------------------------------------------------- Baseline conditions - 12 acres no treatment - 0% infiltration - 12 acres ---------------------------------------------------------------------------------------------- Proposed Conditions - 18 acres None - 0 % Infiltration - 12 acres Basic - 0 % Infiltration - 6 acres
A28: Dissolved Copper - October - Probability of Occurrence
A29: Conc. (mg/L) | C29: Baseline Conditions | L29: Proposed Conditions
B30: > 0.01 | C30: 0.108 | D30: 0.008 | E30: 0.027 | F30: 0.039 | G30: 0.025 | H30: 0.008 | I30: 0.001 | J30: 0 | K30: 0 | L30: > 0.01 | M30: 0.063 | N30: 0.005 | O30: 0.016 | P30: 0.022 | Q30: 0.014 | R30: 0.005 | S30: 0.001 | T30: 0 | U30: 0
B31: 0.008 - 0.01 | C31: 0.058 | D31: 0.004 | E31: 0.014 | F31: 0.021 | G31: 0.014 | H31: 0.004 | I31: 0.001 | J31: 0 | K31: 0 | L31: 0.008 - 0.01 | M31: 0.053 | N31: 0.004 | O31: 0.013 | P31: 0.019 | Q31: 0.012 | R31: 0.004 | S31: 0.001 | T31: 0 | U31: 0
B32: 0.006 - 0.008 | C32: 0.098 | D32: 0.007 | E32: 0.024 | F32: 0.036 | G32: 0.023 | H32: 0.007 | I32: 0.001 | J32: 0 | K32: 0 | L32: 0.006 - 0.008 | M32: 0.106 | N32: 0.008 | O32: 0.027 | P32: 0.037 | Q32: 0.025 | R32: 0.008 | S32: 0.001 | T32: 0 | U32: 0
B33: 0.004 - 0.006 | C33: 0.182 | D33: 0.013 | E33: 0.045 | F33: 0.066 | G33: 0.043 | H33: 0.013 | I33: 0.002 | J33: 0 | K33: 0 | L33: 0.004 - 0.006 | M33: 0.234 | N33: 0.017 | O33: 0.059 | P33: 0.083 | Q33: 0.054 | R33: 0.018 | S33: 0.003 | T33: 0 | U33: 0
B34: 0.002 - 0.004 | C34: 0.319 | D34: 0.023 | E34: 0.079 | F34: 0.116 | G34: 0.075 | H34: 0.022 | I34: 0.004 | J34: 0 | K34: 0 | L34: 0.002 - 0.004 | M34: 0.406 | N34: 0.03 | O34: 0.103 | P34: 0.143 | Q34: 0.094 | R34: 0.031 | S34: 0.005 | T34: 0 | U34: 0
B35: 0 - 0.002 | C35: 0.235 | D35: 0.017 | E35: 0.058 | F35: 0.085 | G35: 0.056 | H35: 0.016 | I35: 0.003 | J35: 0 | K35: 0 | L35: 0 - 0.002 | M35: 0.138 | N35: 0.01 | O35: 0.035 | P35: 0.048 | Q35: 0.032 | R35: 0.011 | S35: 0.002 | T35: 0 | U35: 0
D36: 0.072 | E36: 0.247 | F36: 0.363 | G36: 0.236 | H36: 0.07 | I36: 0.012 | J36: 0 | K36: 0 | N36: 0.074 | O36: 0.253 | P36: 0.352 | Q36: 0.231 | R36: 0.077 | S36: 0.013 | T36: 0 | U36: 0
D37: 0 - 3 | E37: 3 - 6 | F37: 6 - 12 | G37: 12 - 24 | H37: 24 - 48 | I37: 48 - 96 | J37: 96 - 192 | K37: >192 | N37: 0 - 3 | O37: 3 - 6 | P37: 6 - 12 | Q37: 12 - 24 | R37: 24 - 48 | S37: 48 - 96 | T37: 96 - 192 | U37: >192
B38: Discharge Duration (hrs)

Sheet Subbasin3 (hidden)
A1: Subbasin 3 - End of Pipe Concentration Results
A2: This model is for stormwater analysis associated with biological assessments, and is not a design tool.
B4: Input Summary ---------------------------------------------------------------------------------------------- Run Date/Time: 1/11/11 13:06 Outfall ID: test Rain Gauge: Puget West 32 Description: ---------------------------------------------------------------------------------------------- Baseline conditions - 3 acres no treatment - 0% infiltration - 3 acres ---------------------------------------------------------------------------------------------- Proposed Conditions - 3 acres None - 0 % Infiltration - 2.75 acres infiltration bmp - 100 % infiltration - 0.25 acres
A28: Total Zinc - October - Probability of Occurrence
A29: Conc. (mg/L) | C29: Baseline Conditions | L29: Proposed Conditions
B30: > 0.3 | C30: 0.083 | D30: 0.006 | E30: 0.021 | F30: 0.029 | G30: 0.02 | H30: 0.006 | I30: 0.001 | J30: 0 | K30: 0 | L30: > 0.3 | M30: 0.084 | N30: 0.006 | O30: 0.021 | P30: 0.03 | Q30: 0.02 | R30: 0.006 | S30: 0.001 | T30: 0 | U30: 0
B31: 0.25 - 0.3 | C31: 0.037 | D31: 0.003 | E31: 0.009 | F31: 0.013 | G31: 0.009 | H31: 0.003 | I31: 0 | J31: 0 | K31: 0 | L31: 0.25 - 0.3 | M31: 0.041 | N31: 0.003 | O31: 0.01 | P31: 0.014 | Q31: 0.01 | R31: 0.003 | S31: 0.001 | T31: 0 | U31: 0
B32: 0.2 - 0.25 | C32: 0.06 | D32: 0.004 | E32: 0.015 | F32: 0.021 | G32: 0.014 | H32: 0.005 | I32: 0.001 | J32: 0 | K32: 0 | L32: 0.2 - 0.25 | M32: 0.061 | N32: 0.005 | O32: 0.015 | P32: 0.022 | Q32: 0.014 | R32: 0.004 | S32: 0.001 | T32: 0 | U32: 0
B33: 0.15 - 0.2 | C33: 0.105 | D33: 0.008 | E33: 0.026 | F33: 0.037 | G33: 0.025 | H33: 0.008 | I33: 0.001 | J33: 0 | K33: 0 | L33: 0.15 - 0.2 | M33: 0.101 | N33: 0.008 | O33: 0.025 | P33: 0.036 | Q33: 0.024 | R33: 0.007 | S33: 0.001 | T33: 0 | U33: 0
B34: 0.1 - 0.15 | C34: 0.186 | D34: 0.014 | E34: 0.046 | F34: 0.066 | G34: 0.044 | H34: 0.014 | I34: 0.002 | J34: 0 | K34: 0 | L34: 0.1 - 0.15 | M34: 0.181 | N34: 0.014 | O34: 0.045 | P34: 0.064 | Q34: 0.043 | R34: 0.013 | S34: 0.002 | T34: 0 | U34: 0
B35: 0.05 - 0.1 | C35: 0.306 | D35: 0.023 | E35: 0.076 | F35: 0.108 | G35: 0.072 | H35: 0.023 | I35: 0.004 | J35: 0 | K35: 0 | L35: 0.05 - 0.1 | M35: 0.306 | N35: 0.023 | O35: 0.076 | P35: 0.109 | Q35: 0.072 | R35: 0.022 | S35: 0.004 | T35: 0 | U35: 0
B36: 0 - 0.05 | C36: 0.221 | D36: 0.016 | E36: 0.055 | F36: 0.078 | G36: 0.052 | H36: 0.017 | I36: 0.003 | J36: 0 | K36: 0 | L36: 0 - 0.05 | M36: 0.225 | N36: 0.017 | O36: 0.056 | P36: 0.08 | Q36: 0.053 | R36: 0.016 | S36: 0.003 | T36: 0 | U36: 0
D37: 0.074 | E37: 0.248 | F37: 0.352 | G37: 0.236 | H37: 0.076 | I37: 0.012 | J37: 0 | K37: 0 | N37: 0.076 | O37: 0.248 | P37: 0.355 | Q37: 0.236 | R37: 0.071 | S37: 0.013 | T37: 0 | U37: 0
D38: 0 - 3 | E38: 3 - 6 | F38: 6 - 12 | G38: 12 - 24 | H38: 24 - 48 | I38: 48 - 96 | J38: 96 - 192 | K38: >192 | N38: 0 - 3 | O38: 3 - 6 | P38: 6 - 12 | Q38: 12 - 24 | R38: 24 - 48 | S38: 48 - 96 | T38: 96 - 192 | U38: >192
B39: Discharge Duration (hrs)
A43: Total Zinc - November - Probability of Occurrence
A44: Conc. (mg/L) | C44: Baseline Conditions | L44: Proposed Conditions
B45: > 0.3 | C45: 0.084 | D45: 0.006 | E45: 0.022 | F45: 0.03 | G45: 0.019 | H45: 0.006 | I45: 0.001 | J45: 0 | K45: 0 | L45: > 0.3 | M45: 0.085 | N45: 0.007 | O45: 0.022 | P45: 0.03 | Q45: 0.019 | R45: 0.006 | S45: 0.001 | T45: 0 | U45: 0
B46: 0.25 - 0.3 | C46: 0.038 | D46: 0.003 | E46: 0.01 | F46: 0.013 | G46: 0.009 | H46: 0.003 | I46: 0 | J46: 0 | K46: 0 | L46: 0.25 - 0.3 | M46: 0.04 | N46: 0.003 | O46: 0.011 | P46: 0.014 | Q46: 0.009 | R46: 0.003 | S46: 0 | T46: 0 | U46: 0
B47: 0.2 - 0.25 | C47: 0.061 | D47: 0.004 | E47: 0.016 | F47: 0.022 | G47: 0.014 | H47: 0.004 | I47: 0.001 | J47: 0 | K47: 0 | L47: 0.2 - 0.25 | M47: 0.062 | N47: 0.005 | O47: 0.016 | P47: 0.022 | Q47: 0.014 | R47: 0.004 | S47: 0.001 | T47: 0 | U47: 0
B48: 0.15 - 0.2 | C48: 0.106 | D48: 0.008 | E48: 0.028 | F48: 0.038 | G48: 0.024 | H48: 0.007 | I48: 0.001 | J48: 0 | K48: 0 | L48: 0.15 - 0.2 | M48: 0.102 | N48: 0.008 | O48: 0.027 | P48: 0.036 | Q48: 0.023 | R48: 0.007 | S48: 0.001 | T48: 0 | U48: 0
B49: 0.1 - 0.15 | C49: 0.186 | D49: 0.013 | E49: 0.049 | F49: 0.067 | G49: 0.042 | H49: 0.013 | I49: 0.002 | J49: 0 | K49: 0 | L49: 0.1 - 0.15 | M49: 0.179 | N49: 0.014 | O49: 0.047 | P49: 0.063 | Q49: 0.04 | R49: 0.013 | S49: 0.002 | T49: 0 | U49: 0
B50: 0.05 - 0.1 | C50: 0.305 | D50: 0.022 | E50: 0.08 | F50: 0.109 | G50: 0.069 | H50: 0.021 | I50: 0.004 | J50: 0 | K50: 0 | L50: 0.05 - 0.1 | M50: 0.307 | N50: 0.024 | O50: 0.081 | P50: 0.108 | Q50: 0.069 | R50: 0.022 | S50: 0.003 | T50: 0 | U50: 0
B51: 0 - 0.05 | C51: 0.221 | D51: 0.016 | E51: 0.058 | F51: 0.079 | G51: 0.05 | H51: 0.015 | I51: 0.003 | J51: 0 | K51: 0 | L51: 0 - 0.05 | M51: 0.226 | N51: 0.018 | O51: 0.059 | P51: 0.08 | Q51: 0.051 | R51: 0.016 | S51: 0.002 | T51: 0 | U51: 0
D52: 0.072 | E52: 0.263 | F52: 0.358 | G52: 0.227 | H52: 0.069 | I52: 0.012 | J52: 0 | K52: 0 | N52: 0.079 | O52: 0.263 | P52: 0.353 | Q52: 0.225 | R52: 0.071 | S52: 0.01 | T52: 0 | U52: 0
D53: 0 - 3 | E53: 3 - 6 | F53: 6 - 12 | G53: 12 - 24 | H53: 24 - 48 | I53: 48 - 96 | J53: 96 - 192 | K53: >192 | N53: 0 - 3 | O53: 3 - 6 | P53: 6 - 12 | Q53: 12 - 24 | R53: 24 - 48 | S53: 48 - 96 | T53: 96 - 192 | U53: >192
B54: Discharge Duration (hrs)

Sheet Subbasin4 (hidden)
A1: Subbasin 4 - End of Pipe Concentration Results
A2: This model is for stormwater analysis associated with biological assessments, and is not a design tool.
B4: Input Summary ---------------------------------------------------------------------------------------------- Run Date/Time: 12/6/10 17:16 Outfall ID: test Rain Gauge: Puget West 32 Description: ---------------------------------------------------------------------------------------------- Baseline conditions - 11 basic treatment - 0% infiltration - acres enhanced treatment - 0% infiltration - acres infiltration bmp - 100% infiltration - acres no treatment - 0% infiltration - acres ---------------------------------------------------------------------------------------------- Proposed Conditions - 12 None - 0 % Infiltration - 5 acres Basic - 0 % Infiltration - 2 acres Enhanced - 0 % Infiltration - 4 acres infiltration bmp - 100 % infiltration - 1 acres
A28: Dissolved Copper - January - Probability of Occurrence
A29: Conc. (mg/L) | C29: Baseline Conditions | L29: Proposed Conditions
B30: > 0.01 | C30: 0.036 | D30: 0.003 | E30: 0.009 | F30: 0.013 | G30: 0.008 | H30: 0.003 | I30: 0 | J30: 0 | K30: 0 | L30: > 0.01 | M30: 0.03 | N30: 0.002 | O30: 0.008 | P30: 0.011 | Q30: 0.007 | R30: 0.002 | S30: 0 | T30: 0 | U30: 0
B31: 0.008 - 0.01 | C31: 0.039 | D31: 0.003 | E31: 0.01 | F31: 0.014 | G31: 0.009 | H31: 0.003 | I31: 0 | J31: 0 | K31: 0 | L31: 0.008 - 0.01 | M31: 0.039 | N31: 0.003 | O31: 0.01 | P31: 0.014 | Q31: 0.009 | R31: 0.003 | S31: 0 | T31: 0 | U31: 0
B32: 0.006 - 0.008 | C32: 0.1 | D32: 0.007 | E32: 0.026 | F32: 0.036 | G32: 0.023 | H32: 0.007 | I32: 0.001 | J32: 0 | K32: 0 | L32: 0.006 - 0.008 | M32: 0.099 | N32: 0.007 | O32: 0.025 | P32: 0.035 | Q32: 0.023 | R32: 0.008 | S32: 0.001 | T32: 0 | U32: 0
B33: 0.004 - 0.006 | C33: 0.262 | D33: 0.018 | E33: 0.067 | F33: 0.094 | G33: 0.061 | H33: 0.019 | I33: 0.003 | J33: 0 | K33: 0 | L33: 0.004 - 0.006 | M33: 0.267 | N33: 0.02 | O33: 0.067 | P33: 0.095 | Q33: 0.061 | R33: 0.021 | S33: 0.003 | T33: 0 | U33: 0
B34: 0.002 - 0.004 | C34: 0.479 | D34: 0.034 | E34: 0.122 | F34: 0.171 | G34: 0.112 | H34: 0.035 | I34: 0.005 | J34: 0 | K34: 0 | L34: 0.002 - 0.004 | M34: 0.481 | N34: 0.036 | O34: 0.12 | P34: 0.172 | Q34: 0.11 | R34: 0.037 | S34: 0.006 | T34: 0 | U34: 0
B35: 0 - 0.002 | C35: 0.083 | D35: 0.006 | E35: 0.021 | F35: 0.03 | G35: 0.019 | H35: 0.006 | I35: 0.001 | J35: 0 | K35: 0 | L35: 0 - 0.002 | M35: 0.081 | N35: 0.006 | O35: 0.02 | P35: 0.029 | Q35: 0.019 | R35: 0.006 | S35: 0.001 | T35: 0 | U35: 0
D36: 0.071 | E36: 0.255 | F36: 0.358 | G36: 0.232 | H36: 0.073 | I36: 0.01 | J36: 0 | K36: 0 | N36: 0.074 | O36: 0.25 | P36: 0.356 | Q36: 0.229 | R36: 0.077 | S36: 0.011 | T36: 0 | U36: 0
D37: 0 - 3 | E37: 3 - 6 | F37: 6 - 12 | G37: 12 - 24 | H37: 24 - 48 | I37: 48 - 96 | J37: 96 - 192 | K37: >192 | N37: 0 - 3 | O37: 3 - 6 | P37: 6 - 12 | Q37: 12 - 24 | R37: 24 - 48 | S37: 48 - 96 | T37: 96 - 192 | U37: >192
B38: Discharge Duration (hrs)
A1003: Dissolved Zinc - October - Probability of Occurrence
A1004: Conc. (mg/L) | B1004: Baseline Conditions | K1004: Proposed Conditions
B1005: > 0.1 | C1005: 0.003 | D1005: 0 | E1005: 0.001 | F1005: 0.001 | G1005: 0.001 | H1005: 0 | I1005: 0 | J1005: 0 | K1005: 0 | L1005: > 0.1 | M1005: 0 | N1005: 0 | O1005: 0 | P1005: 0 | Q1005: 0 | R1005: 0 | S1005: 0 | T1005: 0 | U1005: 0
B1006: 0.09 - 0.1 | C1006: 0 | D1006: 0 | E1006: 0 | F1006: 0 | G1006: 0 | H1006: 0 | I1006: 0 | J1006: 0 | K1006: 0 | L1006: 0.09 - 0.1 | M1006: 0 | N1006: 0 | O1006: 0 | P1006: 0 | Q1006: 0 | R1006: 0 | S1006: 0 | T1006: 0 | U1006: 0
B1007: 0.08 - 0.09 | C1007: 0.003 | D1007: 0 | E1007: 0.001 | F1007: 0.001 | G1007: 0.001 | H1007: 0 | I1007: 0 | J1007: 0 | K1007: 0 | L1007: 0.08 - 0.09 | M1007: 0 | N1007: 0 | O1007: 0 | P1007: 0 | Q1007: 0 | R1007: 0 | S1007: 0 | T1007: 0 | U1007: 0
B1008: 0.07 - 0.08 | C1008: 0.006 | D1008: 0.001 | E1008: 0.002 | F1008: 0.002 | G1008: 0.001 | H1008: 0 | I1008: 0 | J1008: 0 | K1008: 0 | L1008: 0.07 - 0.08 | M1008: 0.001 | N1008: 0 | O1008: 0 | P1008: 0.001 | Q1008: 0 | R1008: 0 | S1008: 0 | T1008: 0 | U1008: 0
B1009: 0.06 - 0.07 | C1009: 0.011 | D1009: 0.001 | E1009: 0.003 | F1009: 0.004 | G1009: 0.002 | H1009: 0.001 | I1009: 0 | J1009: 0 | K1009: 0 | L1009: 0.06 - 0.07 | M1009: 0.003 | N1009: 0 | O1009: 0.001 | P1009: 0.001 | Q1009: 0.001 | R1009: 0 | S1009: 0 | T1009: 0 | U1009: 0
B1010: 0.05 - 0.06 | C1010: 0.026 | D1010: 0.003 | E1010: 0.008 | F1010: 0.009 | G1010: 0.005 | H1010: 0.001 | I1010: 0 | J1010: 0 | K1010: 0 | L1010: 0.05 - 0.06 | M1010: 0.009 | N1010: 0.001 | O1010: 0.003 | P1010: 0.003 | Q1010: 0.002 | R1010: 0 | S1010: 0 | T1010: 0 | U1010: 0
B1011: 0.04 - 0.05 | C1011: 0.053 | D1011: 0.005 | E1011: 0.016 | F1011: 0.019 | G1011: 0.01 | H1011: 0.003 | I1011: 0 | J1011: 0 | K1011: 0 | L1011: 0.04 - 0.05 | M1011: 0.03 | N1011: 0.003 | O1011: 0.009 | P1011: 0.011 | Q1011: 0.006 | R1011: 0.001 | S1011: 0 | T1011: 0 | U1011: 0
B1012: 0.03 - 0.04 | C1012: 0.137 | D1012: 0.014 | E1012: 0.042 | F1012: 0.048 | G1012: 0.025 | H1012: 0.007 | I1012: 0.001 | J1012: 0 | K1012: 0 | L1012: 0.03 - 0.04 | M1012: 0.084 | N1012: 0.009 | O1012: 0.025 | P1012: 0.029 | Q1012: 0.016 | R1012: 0.004 | S1012: 0.001 | T1012: 0 | U1012: 0
B1013: 0.02 - 0.03 | C1013: 0.29 | D1013: 0.03 | E1013: 0.088 | F1013: 0.102 | G1013: 0.053 | H1013: 0.015 | I1013: 0.002 | J1013: 0 | K1013: 0 | L1013: 0.02 - 0.03 | M1013: 0.234 | N1013: 0.024 | O1013: 0.071 | P1013: 0.082 | Q1013: 0.045 | R1013: 0.011 | S1013: 0.001 | T1013: 0 | U1013: 0
B1014: 0.01 - 0.02 | C1014: 0.409 | D1014: 0.042 | E1014: 0.124 | F1014: 0.144 | G1014: 0.075 | H1014: 0.021 | I1014: 0.003 | J1014: 0 | K1014: 0 | L1014: 0.01 - 0.02 | M1014: 0.494 | N1014: 0.051 | O1014: 0.149 | P1014: 0.173 | Q1014: 0.094 | R1014: 0.024 | S1014: 0.003 | T1014: 0 | U1014: 0
B1015: 0 - 0.01 | C1015: 0.059 | D1015: 0.006 | E1015: 0.018 | F1015: 0.021 | G1015: 0.011 | H1015: 0.003 | I1015: 0 | J1015: 0 | K1015: 0 | L1015: 0 - 0.01 | M1015: 0.141 | N1015: 0.015 | O1015: 0.042 | P1015: 0.049 | Q1015: 0.027 | R1015: 0.007 | S1015: 0.001 | T1015: 0 | U1015: 0
D1016: 0.102 | E1016: 0.303 | F1016: 0.351 | G1016: 0.184 | H1016: 0.051 | I1016: 0.006 | J1016: 0 | K1016: 0 | N1016: 0.103 | O1016: 0.3 | P1016: 0.349 | Q1016: 0.191 | R1016: 0.047 | S1016: 0.006 | T1016: 0 | U1016: 0
D1017: 0 - 3 | E1017: 3 - 6 | F1017: 6 - 12 | G1017: 12 - 24 | H1017: 24 - 48 | I1017: 48 - 96 | J1017: 96 - 192 | K1017: >192 | N1017: 0 - 3 | O1017: 3 - 6 | P1017: 6 - 12 | Q1017: 12 - 24 | R1017: 24 - 48 | S1017: 48 - 96 | T1017: 96 - 192 | U1017: >192
B1018: Discharge Duration (hrs)
A1022: Dissolved Zinc - November - Probability of Occurrence
A1023: Conc. (mg/L) | B1023: Baseline Conditions | K1023: Proposed Conditions
B1024: > 0.1 | C1024: 0.003 | D1024: 0 | E1024: 0.001 | F1024: 0.001 | G1024: 0.001 | H1024: 0 | I1024: 0 | J1024: 0 | K1024: 0 | L1024: > 0.1 | M1024: 0 | N1024: 0 | O1024: 0 | P1024: 0 | Q1024: 0 | R1024: 0 | S1024: 0 | T1024: 0 | U1024: 0
B1025: 0.09 - 0.1 | C1025: 0 | D1025: 0 | E1025: 0 | F1025: 0 | G1025: 0 | H1025: 0 | I1025: 0 | J1025: 0 | K1025: 0 | L1025: 0.09 - 0.1 | M1025: 0 | N1025: 0 | O1025: 0 | P1025: 0 | Q1025: 0 | R1025: 0 | S1025: 0 | T1025: 0 | U1025: 0
B1026: 0.08 - 0.09 | C1026: 0.003 | D1026: 0 | E1026: 0.001 | F1026: 0.001 | G1026: 0.001 | H1026: 0 | I1026: 0 | J1026: 0 | K1026: 0 | L1026: 0.08 - 0.09 | M1026: 0 | N1026: 0 | O1026: 0 | P1026: 0 | Q1026: 0 | R1026: 0 | S1026: 0 | T1026: 0 | U1026: 0
B1027: 0.07 - 0.08 | C1027: 0.005 | D1027: 0 | E1027: 0.002 | F1027: 0.002 | G1027: 0.001 | H1027: 0 | I1027: 0 | J1027: 0 | K1027: 0 | L1027: 0.07 - 0.08 | M1027: 0.001 | N1027: 0 | O1027: 0 | P1027: 0.001 | Q1027: 0 | R1027: 0 | S1027: 0 | T1027: 0 | U1027: 0
B1028: 0.06 - 0.07 | C1028: 0.011 | D1028: 0.001 | E1028: 0.003 | F1028: 0.004 | G1028: 0.002 | H1028: 0.001 | I1028: 0 | J1028: 0 | K1028: 0 | L1028: 0.06 - 0.07 | M1028: 0.003 | N1028: 0 | O1028: 0.001 | P1028: 0.001 | Q1028: 0.001 | R1028: 0 | S1028: 0 | T1028: 0 | U1028: 0
B1029: 0.05 - 0.06 | C1029: 0.026 | D1029: 0.002 | E1029: 0.007 | F1029: 0.009 | G1029: 0.006 | H1029: 0.002 | I1029: 0 | J1029: 0 | K1029: 0 | L1029: 0.05 - 0.06 | M1029: 0.011 | N1029: 0.001 | O1029: 0.003 | P1029: 0.004 | Q1029: 0.002 | R1029: 0.001 | S1029: 0 | T1029: 0 | U1029: 0
B1030: 0.04 - 0.05 | C1030: 0.052 | D1030: 0.004 | E1030: 0.014 | F1030: 0.019 | G1030: 0.012 | H1030: 0.003 | I1030: 0 | J1030: 0 | K1030: 0 | L1030: 0.04 - 0.05 | M1030: 0.03 | N1030: 0.002 | O1030: 0.008 | P1030: 0.011 | Q1030: 0.007 | R1030: 0.002 | S1030: 0 | T1030: 0 | U1030: 0
B1031: 0.03 - 0.04 | C1031: 0.137 | D1031: 0.011 | E1031: 0.037 | F1031: 0.049 | G1031: 0.03 | H1031: 0.009 | I1031: 0.001 | J1031: 0 | K1031: 0 | L1031: 0.03 - 0.04 | M1031: 0.083 | N1031: 0.006 | O1031: 0.022 | P1031: 0.03 | Q1031: 0.018 | R1031: 0.006 | S1031: 0.001 | T1031: 0 | U1031: 0
B1032: 0.02 - 0.03 | C1032: 0.291 | D1032: 0.023 | E1032: 0.079 | F1032: 0.103 | G1032: 0.064 | H1032: 0.019 | I1032: 0.003 | J1032: 0 | K1032: 0 | L1032: 0.02 - 0.03 | M1032: 0.234 | N1032: 0.018 | O1032: 0.063 | P1032: 0.084 | Q1032: 0.051 | R1032: 0.016 | S1032: 0.002 | T1032: 0 | U1032: 0
B1033: 0.01 - 0.02 | C1033: 0.41 | D1033: 0.033 | E1033: 0.111 | F1033: 0.145 | G1033: 0.09 | H1033: 0.027 | I1033: 0.004 | J1033: 0 | K1033: 0 | L1033: 0.01 - 0.02 | M1033: 0.494 | N1033: 0.038 | O1033: 0.132 | P1033: 0.177 | Q1033: 0.108 | R1033: 0.034 | S1033: 0.005 | T1033: 0 | U1033: 0
B1034: 0 - 0.01 | C1034: 0.06 | D1034: 0.005 | E1034: 0.016 | F1034: 0.021 | G1034: 0.013 | H1034: 0.004 | I1034: 0.001 | J1034: 0 | K1034: 0 | L1034: 0 - 0.01 | M1034: 0.141 | N1034: 0.011 | O1034: 0.038 | P1034: 0.05 | Q1034: 0.031 | R1034: 0.01 | S1034: 0.001 | T1034: 0 | U1034: 0
D1035: 0.079 | E1035: 0.271 | F1035: 0.354 | G1035: 0.22 | H1035: 0.065 | I1035: 0.009 | J1035: 0 | K1035: 0 | N1035: 0.076 | O1035: 0.267 | P1035: 0.358 | Q1035: 0.218 | R1035: 0.069 | S1035: 0.009 | T1035: 0 | U1035: 0
D1036: 0 - 3 | E1036: 3 - 6 | F1036: 6 - 12 | G1036: 12 - 24 | H1036: 24 - 48 | I1036: 48 - 96 | J1036: 96 - 192 | K1036: >192 | N1036: 0 - 3 | O1036: 3 - 6 | P1036: 6 - 12 | Q1036: 12 - 24 | R1036: 24 - 48 | S1036: 48 - 96 | T1036: 96 - 192 | U1036: >192
B1037: Discharge Duration (hrs)
A1041: Dissolved Zinc - December - Probability of Occurrence
A1042: Conc. (mg/L) | B1042: Baseline Conditions | K1042: Proposed Conditions
B1043: > 0.1 | C1043: 0.003 | D1043: 0 | E1043: 0.001 | F1043: 0.001 | G1043: 0.001 | H1043: 0 | I1043: 0 | J1043: 0 | K1043: 0 | L1043: > 0.1 | M1043: 0 | N1043: 0 | O1043: 0 | P1043: 0 | Q1043: 0 | R1043: 0 | S1043: 0 | T1043: 0 | U1043: 0
B1044: 0.09 - 0.1 | C1044: 0 | D1044: 0 | E1044: 0 | F1044: 0 | G1044: 0 | H1044: 0 | I1044: 0 | J1044: 0 | K1044: 0 | L1044: 0.09 - 0.1 | M1044: 0 | N1044: 0 | O1044: 0 | P1044: 0 | Q1044: 0 | R1044: 0 | S1044: 0 | T1044: 0 | U1044: 0
B1045: 0.08 - 0.09 | C1045: 0.003 | D1045: 0 | E1045: 0.001 | F1045: 0.001 | G1045: 0.001 | H1045: 0 | I1045: 0 | J1045: 0 | K1045: 0 | L1045: 0.08 - 0.09 | M1045: 0 | N1045: 0 | O1045: 0 | P1045: 0 | Q1045: 0 | R1045: 0 | S1045: 0 | T1045: 0 | U1045: 0
B1046: 0.07 - 0.08 | C1046: 0.004 | D1046: 0 | E1046: 0.001 | F1046: 0.002 | G1046: 0.001 | H1046: 0 | I1046: 0 | J1046: 0 | K1046: 0 | L1046: 0.07 - 0.08 | M1046: 0.001 | N1046: 0 | O1046: 0 | P1046: 0.001 | Q1046: 0 | R1046: 0 | S1046: 0 | T1046: 0 | U1046: 0
B1047: 0.06 - 0.07 | C1047: 0.012 | D1047: 0.001 | E1047: 0.003 | F1047: 0.004 | G1047: 0.003 | H1047: 0.001 | I1047: 0 | J1047: 0 | K1047: 0 | L1047: 0.06 - 0.07 | M1047: 0.003 | N1047: 0 | O1047: 0.001 | P1047: 0.001 | Q1047: 0.001 | R1047: 0 | S1047: 0 | T1047: 0 | U1047: 0
B1048: 0.05 - 0.06 | C1048: 0.025 | D1048: 0.002 | E1048: 0.006 | F1048: 0.009 | G1048: 0.006 | H1048: 0.002 | I1048: 0 | J1048: 0 | K1048: 0 | L1048: 0.05 - 0.06 | M1048: 0.01 | N1048: 0.001 | O1048: 0.002 | P1048: 0.004 | Q1048: 0.002 | R1048: 0.001 | S1048: 0 | T1048: 0 | U1048: 0
B1049: 0.04 - 0.05 | C1049: 0.053 | D1049: 0.004 | E1049: 0.013 | F1049: 0.018 | G1049: 0.013 | H1049: 0.004 | I1049: 0.001 | J1049: 0 | K1049: 0 | L1049: 0.04 - 0.05 | M1049: 0.029 | N1049: 0.002 | O1049: 0.007 | P1049: 0.011 | Q1049: 0.007 | R1049: 0.002 | S1049: 0 | T1049: 0 | U1049: 0
B1050: 0.03 - 0.04 | C1050: 0.137 | D1050: 0.01 | E1050: 0.034 | F1050: 0.048 | G1050: 0.033 | H1050: 0.011 | I1050: 0.001 | J1050: 0 | K1050: 0 | L1050: 0.03 - 0.04 | M1050: 0.083 | N1050: 0.006 | O1050: 0.02 | P1050: 0.03 | Q1050: 0.02 | R1050: 0.006 | S1050: 0.001 | T1050: 0 | U1050: 0
B1051: 0.02 - 0.03 | C1051: 0.291 | D1051: 0.021 | E1051: 0.073 | F1051: 0.101 | G1051: 0.07 | H1051: 0.023 | I1051: 0.003 | J1051: 0 | K1051: 0 | L1051: 0.02 - 0.03 | M1051: 0.234 | N1051: 0.016 | O1051: 0.057 | P1051: 0.084 | Q1051: 0.057 | R1051: 0.017 | S1051: 0.003 | T1051: 0 | U1051: 0
B1052: 0.01 - 0.02 | C1052: 0.408 | D1052: 0.029 | E1052: 0.102 | F1052: 0.141 | G1052: 0.098 | H1052: 0.033 | I1052: 0.004 | J1052: 0.001 | K1052: 0 | L1052: 0.01 - 0.02 | M1052: 0.495 | N1052: 0.035 | O1052: 0.12 | P1052: 0.177 | Q1052: 0.121 | R1052: 0.036 | S1052: 0.006 | T1052: 0 | U1052: 0
B1053: 0 - 0.01 | C1053: 0.06 | D1053: 0.004 | E1053: 0.015 | F1053: 0.021 | G1053: 0.014 | H1053: 0.005 | I1053: 0.001 | J1053: 0 | K1053: 0 | L1053: 0 - 0.01 | M1053: 0.14 | N1053: 0.01 | O1053: 0.034 | P1053: 0.05 | Q1053: 0.034 | R1053: 0.01 | S1053: 0.002 | T1053: 0 | U1053: 0
D1054: 0.071 | E1054: 0.249 | F1054: 0.346 | G1054: 0.24 | H1054: 0.079 | I1054: 0.01 | J1054: 0.001 | K1054: 0 | N1054: 0.07 | O1054: 0.241 | P1054: 0.358 | Q1054: 0.242 | R1054: 0.072 | S1054: 0.012 | T1054: 0 | U1054: 0
D1055: 0 - 3 | E1055: 3 - 6 | F1055: 6 - 12 | G1055: 12 - 24 | H1055: 24 - 48 | I1055: 48 - 96 | J1055: 96 - 192 | K1055: >192 | N1055: 0 - 3 | O1055: 3 - 6 | P1055: 6 - 12 | Q1055: 12 - 24 | R1055: 24 - 48 | S1055: 48 - 96 | T1055: 96 - 192 | U1055: >192
B1056: Discharge Duration (hrs)

Sheet Subbasin5 (hidden)
A1: Subbasin 4 - End of Pipe Concentration Results
A2: This model is for stormwater analysis associated with biological assessments, and is not a design tool.
B4: Input Summary ---------------------------------------------------------------------------------------------- Run Date/Time: 12/6/10 17:16 Outfall ID: test Rain Gauge: Puget West 32 Description: ---------------------------------------------------------------------------------------------- Baseline conditions - 11 basic treatment - 0% infiltration - acres enhanced treatment - 0% infiltration - acres infiltration bmp - 100% infiltration - acres no treatment - 0% infiltration - acres ---------------------------------------------------------------------------------------------- Proposed Conditions - 12 None - 0 % Infiltration - 5 acres Basic - 0 % Infiltration - 2 acres Enhanced - 0 % Infiltration - 4 acres infiltration bmp - 100 % infiltration - 1 acres
A28: Dissolved Copper - January - Probability of Occurrence
A29: Conc. (mg/L) | C29: Baseline Conditions | L29: Proposed Conditions
B30: > 0.01 | C30: 0.036 | D30: 0.003 | E30: 0.009 | F30: 0.013 | G30: 0.008 | H30: 0.003 | I30: 0 | J30: 0 | K30: 0 | L30: > 0.01 | M30: 0.03 | N30: 0.002 | O30: 0.008 | P30: 0.011 | Q30: 0.007 | R30: 0.002 | S30: 0 | T30: 0 | U30: 0
B31: 0.008 - 0.01 | C31: 0.039 | D31: 0.003 | E31: 0.01 | F31: 0.014 | G31: 0.009 | H31: 0.003 | I31: 0 | J31: 0 | K31: 0 | L31: 0.008 - 0.01 | M31: 0.039 | N31: 0.003 | O31: 0.01 | P31: 0.014 | Q31: 0.009 | R31: 0.003 | S31: 0 | T31: 0 | U31: 0
B32: 0.006 - 0.008 | C32: 0.1 | D32: 0.007 | E32: 0.026 | F32: 0.036 | G32: 0.023 | H32: 0.007 | I32: 0.001 | J32: 0 | K32: 0 | L32: 0.006 - 0.008 | M32: 0.099 | N32: 0.007 | O32: 0.025 | P32: 0.035 | Q32: 0.023 | R32: 0.008 | S32: 0.001 | T32: 0 | U32: 0
B33: 0.004 - 0.006 | C33: 0.262 | D33: 0.018 | E33: 0.067 | F33: 0.094 | G33: 0.061 | H33: 0.019 | I33: 0.003 | J33: 0 | K33: 0 | L33: 0.004 - 0.006 | M33: 0.267 | N33: 0.02 | O33: 0.067 | P33: 0.095 | Q33: 0.061 | R33: 0.021 | S33: 0.003 | T33: 0 | U33: 0
B34: 0.002 - 0.004 | C34: 0.479 | D34: 0.034 | E34: 0.122 | F34: 0.171 | G34: 0.112 | H34: 0.035 | I34: 0.005 | J34: 0 | K34: 0 | L34: 0.002 - 0.004 | M34: 0.481 | N34: 0.036 | O34: 0.12 | P34: 0.172 | Q34: 0.11 | R34: 0.037 | S34: 0.006 | T34: 0 | U34: 0
B35: 0 - 0.002 | C35: 0.083 | D35: 0.006 | E35: 0.021 | F35: 0.03 | G35: 0.019 | H35: 0.006 | I35: 0.001 | J35: 0 | K35: 0 | L35: 0 - 0.002 | M35: 0.081 | N35: 0.006 | O35: 0.02 | P35: 0.029 | Q35: 0.019 | R35: 0.006 | S35: 0.001 | T35: 0 | U35: 0
D36: 0.071 | E36: 0.255 | F36: 0.358 | G36: 0.232 | H36: 0.073 | I36: 0.01 | J36: 0 | K36: 0 | N36: 0.074 | O36: 0.25 | P36: 0.356 | Q36: 0.229 | R36: 0.077 | S36: 0.011 | T36: 0 | U36: 0
D37: 0 - 3 | E37: 3 - 6 | F37: 6 - 12 | G37: 12 - 24 | H37: 24 - 48 | I37: 48 - 96 | J37: 96 - 192 | K37: >192 | N37: 0 - 3 | O37: 3 - 6 | P37: 6 - 12 | Q37: 12 - 24 | R37: 24 - 48 | S37: 48 - 96 | T37: 96 - 192 | U37: >192
B38: Discharge Duration (hrs)
A1003: Dissolved Zinc - October - Probability of Occurrence
A1004: Conc. (mg/L) | B1004: Baseline Conditions | K1004: Proposed Conditions
B1005: > 0.1 | C1005: 0.003 | D1005: 0 | E1005: 0.001 | F1005: 0.001 | G1005: 0.001 | H1005: 0 | I1005: 0 | J1005: 0 | K1005: 0 | L1005: > 0.1 | M1005: 0 | N1005: 0 | O1005: 0 | P1005: 0 | Q1005: 0 | R1005: 0 | S1005: 0 | T1005: 0 | U1005: 0
B1006: 0.09 - 0.1 | C1006: 0 | D1006: 0 | E1006: 0 | F1006: 0 | G1006: 0 | H1006: 0 | I1006: 0 | J1006: 0 | K1006: 0 | L1006: 0.09 - 0.1 | M1006: 0 | N1006: 0 | O1006: 0 | P1006: 0 | Q1006: 0 | R1006: 0 | S1006: 0 | T1006: 0 | U1006: 0
B1007: 0.08 - 0.09 | C1007: 0.003 | D1007: 0 | E1007: 0.001 | F1007: 0.001 | G1007: 0.001 | H1007: 0 | I1007: 0 | J1007: 0 | K1007: 0 | L1007: 0.08 - 0.09 | M1007: 0 | N1007: 0 | O1007: 0 | P1007: 0 | Q1007: 0 | R1007: 0 | S1007: 0 | T1007: 0 | U1007: 0
B1008: 0.07 - 0.08 | C1008: 0.006 | D1008: 0.001 | E1008: 0.002 | F1008: 0.002 | G1008: 0.001 | H1008: 0 | I1008: 0 | J1008: 0 | K1008: 0 | L1008: 0.07 - 0.08 | M1008: 0.001 | N1008: 0 | O1008: 0 | P1008: 0.001 | Q1008: 0 | R1008: 0 | S1008: 0 | T1008: 0 | U1008: 0
B1009: 0.06 - 0.07 | C1009: 0.011 | D1009: 0.001 | E1009: 0.003 | F1009: 0.004 | G1009: 0.002 | H1009: 0.001 | I1009: 0 | J1009: 0 | K1009: 0 | L1009: 0.06 - 0.07 | M1009: 0.003 | N1009: 0 | O1009: 0.001 | P1009: 0.001 | Q1009: 0.001 | R1009: 0 | S1009: 0 | T1009: 0 | U1009: 0
B1010: 0.05 - 0.06 | C1010: 0.026 | D1010: 0.003 | E1010: 0.008 | F1010: 0.009 | G1010: 0.005 | H1010: 0.001 | I1010: 0 | J1010: 0 | K1010: 0 | L1010: 0.05 - 0.06 | M1010: 0.009 | N1010: 0.001 | O1010: 0.003 | P1010: 0.003 | Q1010: 0.002 | R1010: 0 | S1010: 0 | T1010: 0 | U1010: 0
B1011: 0.04 - 0.05 | C1011: 0.053 | D1011: 0.005 | E1011: 0.016 | F1011: 0.019 | G1011: 0.01 | H1011: 0.003 | I1011: 0 | J1011: 0 | K1011: 0 | L1011: 0.04 - 0.05 | M1011: 0.03 | N1011: 0.003 | O1011: 0.009 | P1011: 0.011 | Q1011: 0.006 | R1011: 0.001 | S1011: 0 | T1011: 0 | U1011: 0
B1012: 0.03 - 0.04 | C1012: 0.137 | D1012: 0.014 | E1012: 0.042 | F1012: 0.048 | G1012: 0.025 | H1012: 0.007 | I1012: 0.001 | J1012: 0 | K1012: 0 | L1012: 0.03 - 0.04 | M1012: 0.084 | N1012: 0.009 | O1012: 0.025 | P1012: 0.029 | Q1012: 0.016 | R1012: 0.004 | S1012: 0.001 | T1012: 0 | U1012: 0
B1013: 0.02 - 0.03 | C1013: 0.29 | D1013: 0.03 | E1013: 0.088 | F1013: 0.102 | G1013: 0.053 | H1013: 0.015 | I1013: 0.002 | J1013: 0 | K1013: 0 | L1013: 0.02 - 0.03 | M1013: 0.234 | N1013: 0.024 | O1013: 0.071 | P1013: 0.082 | Q1013: 0.045 | R1013: 0.011 | S1013: 0.001 | T1013: 0 | U1013: 0
B1014: 0.01 - 0.02 | C1014: 0.409 | D1014: 0.042 | E1014: 0.124 | F1014: 0.144 | G1014: 0.075 | H1014: 0.021 | I1014: 0.003 | J1014: 0 | K1014: 0 | L1014: 0.01 - 0.02 | M1014: 0.494 | N1014: 0.051 | O1014: 0.149 | P1014: 0.173 | Q1014: 0.094 | R1014: 0.024 | S1014: 0.003 | T1014: 0 | U1014: 0
B1015: 0 - 0.01 | C1015: 0.059 | D1015: 0.006 | E1015: 0.018 | F1015: 0.021 | G1015: 0.011 | H1015: 0.003 | I1015: 0 | J1015: 0 | K1015: 0 | L1015: 0 - 0.01 | M1015: 0.141 | N1015: 0.015 | O1015: 0.042 | P1015: 0.049 | Q1015: 0.027 | R1015: 0.007 | S1015: 0.001 | T1015: 0 | U1015: 0
D1016: 0.102 | E1016: 0.303 | F1016: 0.351 | G1016: 0.184 | H1016: 0.051 | I1016: 0.006 | J1016: 0 | K1016: 0 | N1016: 0.103 | O1016: 0.3 | P1016: 0.349 | Q1016: 0.191 | R1016: 0.047 | S1016: 0.006 | T1016: 0 | U1016: 0
D1017: 0 - 3 | E1017: 3 - 6 | F1017: 6 - 12 | G1017: 12 - 24 | H1017: 24 - 48 | I1017: 48 - 96 | J1017: 96 - 192 | K1017: >192 | N1017: 0 - 3 | O1017: 3 - 6 | P1017: 6 - 12 | Q1017: 12 - 24 | R1017: 24 - 48 | S1017: 48 - 96 | T1017: 96 - 192 | U1017: >192
B1018: Discharge Duration (hrs)
A1022: Dissolved Zinc - November - Probability of Occurrence
A1023: Conc. (mg/L) | B1023: Baseline Conditions | K1023: Proposed Conditions
B1024: > 0.1 | C1024: 0.003 | D1024: 0 | E1024: 0.001 | F1024: 0.001 | G1024: 0.001 | H1024: 0 | I1024: 0 | J1024: 0 | K1024: 0 | L1024: > 0.1 | M1024: 0 | N1024: 0 | O1024: 0 | P1024: 0 | Q1024: 0 | R1024: 0 | S1024: 0 | T1024: 0 | U1024: 0
B1025: 0.09 - 0.1 | C1025: 0 | D1025: 0 | E1025: 0 | F1025: 0 | G1025: 0 | H1025: 0 | I1025: 0 | J1025: 0 | K1025: 0 | L1025: 0.09 - 0.1 | M1025: 0 | N1025: 0 | O1025: 0 | P1025: 0 | Q1025: 0 | R1025: 0 | S1025: 0 | T1025: 0 | U1025: 0
B1026: 0.08 - 0.09 | C1026: 0.003 | D1026: 0 | E1026: 0.001 | F1026: 0.001 | G1026: 0.001 | H1026: 0 | I1026: 0 | J1026: 0 | K1026: 0 | L1026: 0.08 - 0.09 | M1026: 0 | N1026: 0 | O1026: 0 | P1026: 0 | Q1026: 0 | R1026: 0 | S1026: 0 | T1026: 0 | U1026: 0
B1027: 0.07 - 0.08 | C1027: 0.005 | D1027: 0 | E1027: 0.002 | F1027: 0.002 | G1027: 0.001 | H1027: 0 | I1027: 0 | J1027: 0 | K1027: 0 | L1027: 0.07 - 0.08 | M1027: 0.001 | N1027: 0 | O1027: 0 | P1027: 0.001 | Q1027: 0 | R1027: 0 | S1027: 0 | T1027: 0 | U1027: 0
B1028: 0.06 - 0.07 | C1028: 0.011 | D1028: 0.001 | E1028: 0.003 | F1028: 0.004 | G1028: 0.002 | H1028: 0.001 | I1028: 0 | J1028: 0 | K1028: 0 | L1028: 0.06 - 0.07 | M1028: 0.003 | N1028: 0 | O1028: 0.001 | P1028: 0.001 | Q1028: 0.001 | R1028: 0 | S1028: 0 | T1028: 0 | U1028: 0
B1029: 0.05 - 0.06 | C1029: 0.026 | D1029: 0.002 | E1029: 0.007 | F1029: 0.009 | G1029: 0.006 | H1029: 0.002 | I1029: 0 | J1029: 0 | K1029: 0 | L1029: 0.05 - 0.06 | M1029: 0.011 | N1029: 0.001 | O1029: 0.003 | P1029: 0.004 | Q1029: 0.002 | R1029: 0.001 | S1029: 0 | T1029: 0 | U1029: 0
B1030: 0.04 - 0.05 | C1030: 0.052 | D1030: 0.004 | E1030: 0.014 | F1030: 0.019 | G1030: 0.012 | H1030: 0.003 | I1030: 0 | J1030: 0 | K1030: 0 | L1030: 0.04 - 0.05 | M1030: 0.03 | N1030: 0.002 | O1030: 0.008 | P1030: 0.011 | Q1030: 0.007 | R1030: 0.002 | S1030: 0 | T1030: 0 | U1030: 0
B1031: 0.03 - 0.04 | C1031: 0.137 | D1031: 0.011 | E1031: 0.037 | F1031: 0.049 | G1031: 0.03 | H1031: 0.009 | I1031: 0.001 | J1031: 0 | K1031: 0 | L1031: 0.03 - 0.04 | M1031: 0.083 | N1031: 0.006 | O1031: 0.022 | P1031: 0.03 | Q1031: 0.018 | R1031: 0.006 | S1031: 0.001 | T1031: 0 | U1031: 0
B1032: 0.02 - 0.03 | C1032: 0.291 | D1032: 0.023 | E1032: 0.079 | F1032: 0.103 | G1032: 0.064 | H1032: 0.019 | I1032: 0.003 | J1032: 0 | K1032: 0 | L1032: 0.02 - 0.03 | M1032: 0.234 | N1032: 0.018 | O1032: 0.063 | P1032: 0.084 | Q1032: 0.051 | R1032: 0.016 | S1032: 0.002 | T1032: 0 | U1032: 0
B1033: 0.01 - 0.02 | C1033: 0.41 | D1033: 0.033 | E1033: 0.111 | F1033: 0.145 | G1033: 0.09 | H1033: 0.027 | I1033: 0.004 | J1033: 0 | K1033: 0 | L1033: 0.01 - 0.02 | M1033: 0.494 | N1033: 0.038 | O1033: 0.132 | P1033: 0.177 | Q1033: 0.108 | R1033: 0.034 | S1033: 0.005 | T1033: 0 | U1033: 0
B1034: 0 - 0.01 | C1034: 0.06 | D1034: 0.005 | E1034: 0.016 | F1034: 0.021 | G1034: 0.013 | H1034: 0.004 | I1034: 0.001 | J1034: 0 | K1034: 0 | L1034: 0 - 0.01 | M1034: 0.141 | N1034: 0.011 | O1034: 0.038 | P1034: 0.05 | Q1034: 0.031 | R1034: 0.01 | S1034: 0.001 | T1034: 0 | U1034: 0
D1035: 0.079 | E1035: 0.271 | F1035: 0.354 | G1035: 0.22 | H1035: 0.065 | I1035: 0.009 | J1035: 0 | K1035: 0 | N1035: 0.076 | O1035: 0.267 | P1035: 0.358 | Q1035: 0.218 | R1035: 0.069 | S1035: 0.009 | T1035: 0 | U1035: 0
D1036: 0 - 3 | E1036: 3 - 6 | F1036: 6 - 12 | G1036: 12 - 24 | H1036: 24 - 48 | I1036: 48 - 96 | J1036: 96 - 192 | K1036: >192 | N1036: 0 - 3 | O1036: 3 - 6 | P1036: 6 - 12 | Q1036: 12 - 24 | R1036: 24 - 48 | S1036: 48 - 96 | T1036: 96 - 192 | U1036: >192
B1037: Discharge Duration (hrs)
A1041: Dissolved Zinc - December - Probability of Occurrence
A1042: Conc. (mg/L) | B1042: Baseline Conditions | K1042: Proposed Conditions
B1043: > 0.1 | C1043: 0.003 | D1043: 0 | E1043: 0.001 | F1043: 0.001 | G1043: 0.001 | H1043: 0 | I1043: 0 | J1043: 0 | K1043: 0 | L1043: > 0.1 | M1043: 0 | N1043: 0 | O1043: 0 | P1043: 0 | Q1043: 0 | R1043: 0 | S1043: 0 | T1043: 0 | U1043: 0
B1044: 0.09 - 0.1 | C1044: 0 | D1044: 0 | E1044: 0 | F1044: 0 | G1044: 0 | H1044: 0 | I1044: 0 | J1044: 0 | K1044: 0 | L1044: 0.09 - 0.1 | M1044: 0 | N1044: 0 | O1044: 0 | P1044: 0 | Q1044: 0 | R1044: 0 | S1044: 0 | T1044: 0 | U1044: 0
B1045: 0.08 - 0.09 | C1045: 0.003 | D1045: 0 | E1045: 0.001 | F1045: 0.001 | G1045: 0.001 | H1045: 0 | I1045: 0 | J1045: 0 | K1045: 0 | L1045: 0.08 - 0.09 | M1045: 0 | N1045: 0 | O1045: 0 | P1045: 0 | Q1045: 0 | R1045: 0 | S1045: 0 | T1045: 0 | U1045: 0
B1046: 0.07 - 0.08 | C1046: 0.004 | D1046: 0 | E1046: 0.001 | F1046: 0.002 | G1046: 0.001 | H1046: 0 | I1046: 0 | J1046: 0 | K1046: 0 | L1046: 0.07 - 0.08 | M1046: 0.001 | N1046: 0 | O1046: 0 | P1046: 0.001 | Q1046: 0 | R1046: 0 | S1046: 0 | T1046: 0 | U1046: 0
B1047: 0.06 - 0.07 | C1047: 0.012 | D1047: 0.001 | E1047: 0.003 | F1047: 0.004 | G1047: 0.003 | H1047: 0.001 | I1047: 0 | J1047: 0 | K1047: 0 | L1047: 0.06 - 0.07 | M1047: 0.003 | N1047: 0 | O1047: 0.001 | P1047: 0.001 | Q1047: 0.001 | R1047: 0 | S1047: 0 | T1047: 0 | U1047: 0
B1048: 0.05 - 0.06 | C1048: 0.025 | D1048: 0.002 | E1048: 0.006 | F1048: 0.009 | G1048: 0.006 | H1048: 0.002 | I1048: 0 | J1048: 0 | K1048: 0 | L1048: 0.05 - 0.06 | M1048: 0.01 | N1048: 0.001 | O1048: 0.002 | P1048: 0.004 | Q1048: 0.002 | R1048: 0.001 | S1048: 0 | T1048: 0 | U1048: 0
B1049: 0.04 - 0.05 | C1049: 0.053 | D1049: 0.004 | E1049: 0.013 | F1049: 0.018 | G1049: 0.013 | H1049: 0.004 | I1049: 0.001 | J1049: 0 | K1049: 0 | L1049: 0.04 - 0.05 | M1049: 0.029 | N1049: 0.002 | O1049: 0.007 | P1049: 0.011 | Q1049: 0.007 | R1049: 0.002 | S1049: 0 | T1049: 0 | U1049: 0
B1050: 0.03 - 0.04 | C1050: 0.137 | D1050: 0.01 | E1050: 0.034 | F1050: 0.048 | G1050: 0.033 | H1050: 0.011 | I1050: 0.001 | J1050: 0 | K1050: 0 | L1050: 0.03 - 0.04 | M1050: 0.083 | N1050: 0.006 | O1050: 0.02 | P1050: 0.03 | Q1050: 0.02 | R1050: 0.006 | S1050: 0.001 | T1050: 0 | U1050: 0
B1051: 0.02 - 0.03 | C1051: 0.291 | D1051: 0.021 | E1051: 0.073 | F1051: 0.101 | G1051: 0.07 | H1051: 0.023 | I1051: 0.003 | J1051: 0 | K1051: 0 | L1051: 0.02 - 0.03 | M1051: 0.234 | N1051: 0.016 | O1051: 0.057 | P1051: 0.084 | Q1051: 0.057 | R1051: 0.017 | S1051: 0.003 | T1051: 0 | U1051: 0
B1052: 0.01 - 0.02 | C1052: 0.408 | D1052: 0.029 | E1052: 0.102 | F1052: 0.141 | G1052: 0.098 | H1052: 0.033 | I1052: 0.004 | J1052: 0.001 | K1052: 0 | L1052: 0.01 - 0.02 | M1052: 0.495 | N1052: 0.035 | O1052: 0.12 | P1052: 0.177 | Q1052: 0.121 | R1052: 0.036 | S1052: 0.006 | T1052: 0 | U1052: 0
B1053: 0 - 0.01 | C1053: 0.06 | D1053: 0.004 | E1053: 0.015 | F1053: 0.021 | G1053: 0.014 | H1053: 0.005 | I1053: 0.001 | J1053: 0 | K1053: 0 | L1053: 0 - 0.01 | M1053: 0.14 | N1053: 0.01 | O1053: 0.034 | P1053: 0.05 | Q1053: 0.034 | R1053: 0.01 | S1053: 0.002 | T1053: 0 | U1053: 0
D1054: 0.071 | E1054: 0.249 | F1054: 0.346 | G1054: 0.24 | H1054: 0.079 | I1054: 0.01 | J1054: 0.001 | K1054: 0 | N1054: 0.07 | O1054: 0.241 | P1054: 0.358 | Q1054: 0.242 | R1054: 0.072 | S1054: 0.012 | T1054: 0 | U1054: 0
D1055: 0 - 3 | E1055: 3 - 6 | F1055: 6 - 12 | G1055: 12 - 24 | H1055: 24 - 48 | I1055: 48 - 96 | J1055: 96 - 192 | K1055: >192 | N1055: 0 - 3 | O1055: 3 - 6 | P1055: 6 - 12 | Q1055: 12 - 24 | R1055: 24 - 48 | S1055: 48 - 96 | T1055: 96 - 192 | U1055: >192
B1056: Discharge Duration (hrs)

Sheet RegionMap (hidden)

Sheet Additional_Gauges (hidden)
A1: Rain Gauge | B1: Month | C1: Infiltration | D1: Flow Control | E1: Avg Duration (hr) | F1: Std Dev (hr) | G1: Avg Flow (cfs) | H1: std Dev (cfs) | I1: Duration Distribution Type | J1: Flow distribution type
A2: Astoria | B2: 1 | C2: 0 | D2: 0 | E2: 15 | F2: 15.57 | G2: 0.01462 | H2: 0.03254 | I2: 1 | J2: 1
A3: Astoria | B3: 1 | C3: 20 | D3: 0 | E3: 12 | F3: 13.1 | G3: 0.01187 | H3: 0.03139 | I3: 1 | J3: 1 | K3: Q average value interpolated between 0% and 40% values due to anomolous model results
A4: Astoria | B4: 1 | C4: 40 | D4: 0 | E4: 9 | F4: 9.86 | G4: 0.00912 | H4: 0.03024 | I4: 1 | J4: 1
A5: Astoria | B5: 1 | C5: 60 | D5: 0 | E5: 6 | F5: 7.26 | G5: 0.00623 | H5: 0.02715 | I5: 1 | J5: 1
A6: Astoria | B6: 1 | C6: 80 | D6: 0 | E6: 5 | F6: 5.05 | G6: 0.00324 | H6: 0.02133 | I6: 1 | J6: 1
A7: Astoria | B7: 1 | C7: 0 | D7: 1 | E7: 175 | F7: 243.07 | G7: 0.01318 | H7: 0.01013 | I7: 1 | J7: 1
A8: Astoria | B8: 1 | C8: 20 | D8: 1 | E8: 129 | F8: 149.88 | G8: 0.01083 | H8: 0.01018 | I8: 1 | J8: 1
A9: Astoria | B9: 1 | C9: 40 | D9: 1 | E9: 77 | F9: 86.01 | G9: 0.00824 | H9: 0.00977 | I9: 1 | J9: 1
A10: Astoria | B10: 1 | C10: 60 | D10: 1 | E10: 46 | F10: 46.69 | G10: 0.00563 | H10: 0.00935 | I10: 1 | J10: 1
A11: Astoria | B11: 1 | C11: 80 | D11: 1 | E11: 15 | F11: 7.37 | G11: 0.00316 | H11: 0.00917 | I11: 1 | J11: 1 | K11: flow avg and std dev value interpolated from lower infiltration values because MGS flood model did not converge on a solution
A12: Astoria | B12: 2 | C12: 0 | D12: 0 | E12: 14 | F12: 13.84 | G12: 0.01279 | H12: 0.02934 | I12: 1 | J12: 1
A13: Astoria | B13: 2 | C13: 20 | D13: 0 | E13: 11 | F13: 11.47 | G13: 0.010225 | H13: 0.028225 | I13: 1 | J13: 1 | K13: Q average value interpolated between 0% and 40% values due to anomolous model results
A14: Astoria | B14: 2 | C14: 40 | D14: 0 | E14: 8 | F14: 8.19 | G14: 0.00766 | H14: 0.02711 | I14: 1 | J14: 1
A15: Astoria | B15: 2 | C15: 60 | D15: 0 | E15: 6 | F15: 7.16 | G15: 0.00506 | H15: 0.02411 | I15: 1 | J15: 1
A16: Astoria | B16: 2 | C16: 80 | D16: 0 | E16: 5 | F16: 5.77 | G16: 0.0025 | H16: 0.01846 | I16: 1 | J16: 1
A17: Astoria | B17: 2 | C17: 0 | D17: 1 | E17: 134 | F17: 153.56 | G17: 0.01144 | H17: 0.00935 | I17: 1 | J17: 1
A18: Astoria | B18: 2 | C18: 20 | D18: 1 | E18: 104 | F18: 130.34 | G18: 0.00919 | H18: 0.00928 | I18: 1 | J18: 1
A19: Astoria | B19: 2 | C19: 40 | D19: 1 | E19: 59 | F19: 74.67 | G19: 0.00679 | H19: 0.00872 | I19: 1 | J19: 1
A20: Astoria | B20: 2 | C20: 60 | D20: 1 | E20: 42 | F20: 52.6 | G20: 0.00445 | H20: 0.00808 | I20: 1 | J20: 1
A21: Astoria | B21: 2 | C21: 80 | D21: 1 | E21: 25 | F21: 30.53 | G21: 0.002125 | H21: 0.007765 | I21: 1 | J21: 1 | K21: flow avg and std dev value interpolated from lower infiltration values because MGS flood model did not converge on a solution
A22: Astoria | B22: 3 | C22: 0 | D22: 0 | E22: 12 | F22: 12.01 | G22: 0.01052 | H22: 0.02467 | I22: 1 | J22: 1
A23: Astoria | B23: 3 | C23: 20 | D23: 0 | E23: 10 | F23: 9.56 | G23: 0.00819 | H23: 0.023475 | I23: 1 | J23: 1 | K23: Q average value interpolated between 0% and 40% values due to anomolous model results
A24: Astoria | B24: 3 | C24: 40 | D24: 0 | E24: 7 | F24: 7.13 | G24: 0.00586 | H24: 0.02228 | I24: 1 | J24: 1
A25: Astoria | B25: 3 | C25: 60 | D25: 0 | E25: 5 | F25: 5.67 | G25: 0.00364 | H25: 0.0191 | I25: 1 | J25: 1
A26: Astoria | B26: 3 | C26: 80 | D26: 0 | E26: 4 | F26: 4.27 | G26: 0.00156 | H26: 0.0135 | I26: 1 | J26: 1
A27: Astoria | B27: 3 | C27: 0 | D27: 1 | E27: 103 | F27: 110.56 | G27: 0.00872 | H27: 0.00777 | I27: 1 | J27: 1
A28: Astoria | B28: 3 | C28: 20 | D28: 1 | E28: 74 | F28: 69.37 | G28: 0.00681 | H28: 0.00743 | I28: 1 | J28: 1
A29: Astoria | B29: 3 | C29: 40 | D29: 1 | E29: 46 | F29: 45.92 | G29: 0.00485 | H29: 0.0067 | I29: 1 | J29: 1
A30: Astoria | B30: 3 | C30: 60 | D30: 1 | E30: 29 | F30: 25.79 | G30: 0.00303 | H30: 0.00595 | I30: 1 | J30: 1
A31: Astoria | B31: 3 | C31: 80 | D31: 1 | E31: 12 | F31: 5.66 | G31: 0.001095 | H31: 0.005415 | I31: 1 | J31: 1 | K31: flow avg and std dev value interpolated from lower infiltration values because MGS flood model did not converge on a solution
A32: Astoria | B32: 4 | C32: 0 | D32: 0 | E32: 11 | F32: 10.72 | G32: 0.00695 | H32: 0.01901 | I32: 1 | J32: 1
A33: Astoria | B33: 4 | C33: 20 | D33: 0 | E33: 8 | F33: 9.15 | G33: 0.005225 | H33: 0.017855 | I33: 1 | J33: 1 | K33: Q average value interpolated between 0% and 40% values due to anomolous model results
A34: Astoria | B34: 4 | C34: 40 | D34: 0 | E34: 6 | F34: 6.73 | G34: 0.0035 | H34: 0.0167 | I34: 1 | J34: 1
A35: Astoria | B35: 4 | C35: 60 | D35: 0 | E35: 4 | F35: 5.33 | G35: 0.002 | H35: 0.01387 | I35: 1 | J35: 1
A36: Astoria | B36: 4 | C36: 80 | D36: 0 | E36: 4 | F36: 4.81 | G36: 0.00078 | H36: 0.00917 | I36: 1 | J36: 1
A37: Astoria | B37: 4 | C37: 0 | D37: 1 | E37: 71 | F37: 69.29 | G37: 0.00585 | H37: 0.00633 | I37: 1 | J37: 1
A38: Astoria | B38: 4 | C38: 20 | D38: 1 | E38: 46 | F38: 50.19 | G38: 0.00435 | H38: 0.00593 | I38: 1 | J38: 1
A39: Astoria | B39: 4 | C39: 40 | D39: 1 | E39: 35 | F39: 36.16 | G39: 0.0029 | H39: 0.0052 | I39: 1 | J39: 1
A40: Astoria | B40: 4 | C40: 60 | D40: 1 | E40: 23 | F40: 23.85 | G40: 0.00163 | H40: 0.00443 | I40: 1 | J40: 1
A41: Astoria | B41: 4 | C41: 80 | D41: 1 | E41: 11 | F41: 11.54 | G41: 0.000155 | H41: 0.003885 | I41: 1 | J41: 1 | K41: flow avg and std dev value interpolated from lower infiltration values because MGS flood model did not converge on a solution
A42: Astoria | B42: 5 | C42: 0 | D42: 0 | E42: 8 | F42: 7.71 | G42: 0.00477 | H42: 0.01547 | I42: 1 | J42: 1
A43: Astoria | B43: 5 | C43: 20 | D43: 0 | E43: 7 | F43: 7.03 | G43: 0.003475 | H43: 0.014445 | I43: 1 | J43: 1 | K43: Q average value interpolated between 0% and 40% values due to anomolous model results
A44: Astoria | B44: 5 | C44: 40 | D44: 0 | E44: 5 | F44: 5.82 | G44: 0.00218 | H44: 0.01342 | I44: 1 | J44: 1
A45: Astoria | B45: 5 | C45: 60 | D45: 0 | E45: 4 | F45: 5.18 | G45: 0.00118 | H45: 0.01086 | I45: 1 | J45: 1
A46: Astoria | B46: 5 | C46: 80 | D46: 0 | E46: 3 | F46: 2.74 | G46: 0.00043 | H46: 0.0071 | I46: 1 | J46: 1
A47: Astoria | B47: 5 | C47: 0 | D47: 1 | E47: 47 | F47: 46.26 | G47: 0.00267 | H47: 0.0043 | I47: 1 | J47: 1
A48: Astoria | B48: 5 | C48: 20 | D48: 1 | E48: 38 | F48: 35.99 | G48: 0.00187 | H48: 0.00384 | I48: 1 | J48: 1
A49: Astoria | B49: 5 | C49: 40 | D49: 1 | E49: 33 | F49: 29.46 | G49: 0.00118 | H49: 0.00322 | I49: 1 | J49: 1
A50: Astoria | B50: 5 | C50: 60 | D50: 1 | E50: 22 | F50: 20.8 | G50: 0.00063 | H50: 0.00258 | I50: 1 | J50: 1
A51: Astoria | B51: 5 | C51: 80 | D51: 1 | E51: 11 | F51: 12.14 | G51: 0.00063 | H51: 0.00258 | I51: 1 | J51: 1 | K51: flow avg and std dev value are same as 60% infiltration value because interpolation resulted in negative value
A52: Astoria | B52: 6 | C52: 0 | D52: 0 | E52: 8 | F52: 7.7 | G52: 0.00499 | H52: 0.01739 | I52: 1 | J52: 1
A53: Astoria | B53: 6 | C53: 20 | D53: 0 | E53: 6 | F53: 6.5 | G53: 0.00376 | H53: 0.016415 | I53: 1 | J53: 1 | K53: Q average value interpolated between 0% and 40% values due to anomolous model results
A54: Astoria | B54: 6 | C54: 40 | D54: 0 | E54: 5 | F54: 5.56 | G54: 0.00253 | H54: 0.01544 | I54: 1 | J54: 1
A55: Astoria | B55: 6 | C55: 60 | D55: 0 | E55: 4 | F55: 3.64 | G55: 0.00148 | H55: 0.01355 | I55: 1 | J55: 1
A56: Astoria | B56: 6 | C56: 80 | D56: 0 | E56: 2 | F56: 3.16 | G56: 0.00061 | H56: 0.00849 | I56: 1 | J56: 1
A57: Astoria | B57: 6 | C57: 0 | D57: 1 | E57: 45 | F57: 38.44 | G57: 0.0025 | H57: 0.00445 | I57: 1 | J57: 1
A58: Astoria | B58: 6 | C58: 20 | D58: 1 | E58: 34 | F58: 29.54 | G58: 0.00188 | H58: 0.00409 | I58: 1 | J58: 1
A59: Astoria | B59: 6 | C59: 40 | D59: 1 | E59: 27 | F59: 22.11 | G59: 0.0013 | H59: 0.00359 | I59: 1 | J59: 1
A60: Astoria | B60: 6 | C60: 60 | D60: 1 | E60: 18 | F60: 15.6 | G60: 0.00078 | H60: 0.00313 | I60: 1 | J60: 1
A61: Astoria | B61: 6 | C61: 80 | D61: 1 | E61: 9 | F61: 9.09 | G61: 0.00018 | H61: 0.0027 | I61: 1 | J61: 1 | K61: flow avg and std dev value interpolated from lower infiltration values because MGS flood model did not converge on a solution
A62: Astoria | B62: 7 | C62: 0 | D62: 0 | E62: 8 | F62: 6.25 | G62: 0.0033 | H62: 0.01484 | I62: 1 | J62: 1
A63: Astoria | B63: 7 | C63: 20 | D63: 0 | E63: 6 | F63: 5.19 | G63: 0.00249 | H63: 0.014035 | I63: 1 | J63: 1 | K63: Q average value interpolated between 0% and 40% values due to anomolous model results
A64: Astoria | B64: 7 | C64: 40 | D64: 0 | E64: 5 | F64: 4.37 | G64: 0.00168 | H64: 0.01323 | I64: 1 | J64: 1
A65: Astoria | B65: 7 | C65: 60 | D65: 0 | E65: 4 | F65: 4.11 | G65: 0.00102 | H65: 0.01154 | I65: 1 | J65: 1
A66: Astoria | B66: 7 | C66: 80 | D66: 0 | E66: 4 | F66: 4.25 | G66: 0.00043 | H66: 0.00846 | I66: 1 | J66: 1
A67: Astoria | B67: 7 | C67: 0 | D67: 1 | E67: 41 | F67: 31.96 | G67: 0.00094 | H67: 0.00281 | I67: 1 | J67: 1
A68: Astoria | B68: 7 | C68: 20 | D68: 1 | E68: 29 | F68: 29.17 | G68: 0.00071 | H68: 0.00259 | I68: 1 | J68: 1
A69: Astoria | B69: 7 | C69: 40 | D69: 1 | E69: 27 | F69: 27.76 | G69: 0.00052 | H69: 0.00231 | I69: 1 | J69: 1
A70: Astoria | B70: 7 | C70: 60 | D70: 1 | E70: 21 | F70: 19.74 | G70: 0.00036 | H70: 0.00213 | I70: 1 | J70: 1
A71: Astoria | B71: 7 | C71: 80 | D71: 1 | E71: 15 | F71: 11.72 | G71: 0.00015 | H71: 0.00188 | I71: 1 | J71: 1 | K71: flow avg and std dev value interpolated from lower infiltration values because MGS flood model did not converge on a solution
A72: Astoria | B72: 8 | C72: 0 | D72: 0 | E72: 9 | F72: 7.36 | G72: 0.00455 | H72: 0.01743 | I72: 1 | J72: 1
A73: Astoria | B73: 8 | C73: 20 | D73: 0 | E73: 7 | F73: 7.06 | G73: 0.00347 | H73: 0.016495 | I73: 1 | J73: 1 | K73: Q average value interpolated between 0% and 40% values due to anomolous model results
A74: Astoria | B74: 8 | C74: 40 | D74: 0 | E74: 5 | F74: 5.23 | G74: 0.00239 | H74: 0.01556 | I74: 1 | J74: 1
A75: Astoria | B75: 8 | C75: 60 | D75: 0 | E75: 4 | F75: 3.71 | G75: 0.00147 | H75: 0.01401 | I75: 1 | J75: 1
A76: Astoria | B76: 8 | C76: 80 | D76: 0 | E76: 2 | F76: 2.13 | G76: 0.00062 | H76: 0.00928 | I76: 1 | J76: 1
A77: Astoria | B77: 8 | C77: 0 | D77: 1 | E77: 56 | F77: 49.37 | G77: 0.0012 | H77: 0.00328 | I77: 1 | J77: 1
A78: Astoria | B78: 8 | C78: 20 | D78: 1 | E78: 40 | F78: 29.22 | G78: 0.00104 | H78: 0.00313 | I78: 1 | J78: 1
A79: Astoria | B79: 8 | C79: 40 | D79: 1 | E79: 36 | F79: 22.64 | G79: 0.00081 | H79: 0.00282 | I79: 1 | J79: 1
A80: Astoria | B80: 8 | C80: 60 | D80: 1 | E80: 21 | F80: 16.26 | G80: 0.00059 | H80: 0.00259 | I80: 1 | J80: 1
A81: Astoria | B81: 8 | C81: 80 | D81: 1 | E81: 6 | F81: 9.88 | G81: 0.0059 | H81: 0.00259 | I81: 1 | J81: 1 | K81: flow avg and std dev value are same as 60% infiltration value because interpolation resulted in negative value
A82: Astoria | B82: 9 | C82: 0 | D82: 0 | E82: 10 | F82: 10.22 | G82: 0.00633 | H82: 0.02264 | I82: 1 | J82: 1
A83: Astoria | B83: 9 | C83: 20 | D83: 0 | E83: 8 | F83: 7.52 | G83: 0.00497 | H83: 0.021755 | I83: 1 | J83: 1 | K83: Q average value interpolated between 0% and 40% values due to anomolous model results
A84: Astoria | B84: 9 | C84: 40 | D84: 0 | E84: 5 | F84: 5.33 | G84: 0.00361 | H84: 0.02087 | I84: 1 | J84: 1
A85: Astoria | B85: 9 | C85: 60 | D85: 0 | E85: 4 | F85: 4.28 | G85: 0.00232 | H85: 0.01831 | I85: 1 | J85: 1
A86: Astoria | B86: 9 | C86: 80 | D86: 0 | E86: 2 | F86: 2.28 | G86: 0.00103 | H86: 0.01387 | I86: 1 | J86: 1
A87: Astoria | B87: 9 | C87: 0 | D87: 1 | E87: 63 | F87: 65.02 | G87: 0.00297 | H87: 0.00511 | I87: 1 | J87: 1
A88: Astoria | B88: 9 | C88: 20 | D88: 1 | E88: 45 | F88: 47.52 | G88: 0.0024 | H88: 0.00479 | I88: 1 | J88: 1
A89: Astoria | B89: 9 | C89: 40 | D89: 1 | E89: 35 | F89: 37.92 | G89: 0.00179 | H89: 0.00425 | I89: 1 | J89: 1
A90: Astoria | B90: 9 | C90: 60 | D90: 1 | E90: 25 | F90: 26.47 | G90: 0.00122 | H90: 0.0038 | I90: 1 | J90: 1
A91: Astoria | B91: 9 | C91: 80 | D91: 1 | E91: 15 | F91: 15.02 | G91: 0.00063 | H91: 0.00337 | I91: 1 | J91: 1 | K91: flow avg and std dev value interpolated from lower infiltration values because MGS flood model did not converge on a solution
A92: Astoria | B92: 10 | C92: 0 | D92: 0 | E92: 12 | F92: 12.76 | G92: 0.01049 | H92: 0.02946 | I92: 1 | J92: 1
A93: Astoria | B93: 10 | C93: 20 | D93: 0 | E93: 10 | F93: 11.02 | G93: 0.008475 | H93: 0.02848 | I93: 1 | J93: 1 | K93: Q average value interpolated between 0% and 40% values due to anomolous model results
A94: Astoria | B94: 10 | C94: 40 | D94: 0 | E94: 7 | F94: 8.26 | G94: 0.00646 | H94: 0.0275 | I94: 1 | J94: 1
A95: Astoria | B95: 10 | C95: 60 | D95: 0 | E95: 6 | F95: 6.36 | G95: 0.00435 | H95: 0.02466 | I95: 1 | J95: 1
A96: Astoria | B96: 10 | C96: 80 | D96: 0 | E96: 4 | F96: 3.87 | G96: 0.00219 | H96: 0.01936 | I96: 1 | J96: 1
A97: Astoria | B97: 10 | C97: 0 | D97: 1 | E97: 133 | F97: 158.03 | G97: 0.0067 | H97: 0.00771 | I97: 1 | J97: 1
A98: Astoria | B98: 10 | C98: 20 | D98: 1 | E98: 74 | F98: 87.18 | G98: 0.00566 | H98: 0.0075 | I98: 1 | J98: 1
A99: Astoria | B99: 10 | C99: 40 | D99: 1 | E99: 54 | F99: 59.73 | G99: 0.0044 | H99: 0.00696 | I99: 1 | J99: 1
A100: Astoria | B100: 10 | C100: 60 | D100: 1 | E100: 34 | F100: 31.17 | G100: 0.00309 | H100: 0.00648 | I100: 1 | J100: 1
A101: Astoria | B101: 10 | C101: 80 | D101: 1 | E101: 14 | F101: 2.61 | G101: 0.00194 | H101: 0.006105 | I101: 1 | J101: 1 | K101: flow avg and std dev value interpolated from lower infiltration values because MGS flood model did not converge on a solution
A102: Astoria | B102: 11 | C102: 0 | D102: 0 | E102: 14 | F102: 14.01 | G102: 0.01543 | H102: 0.03628 | I102: 1 | J102: 1
A103: Astoria | B103: 11 | C103: 20 | D103: 0 | E103: 11 | F103: 11.97 | G103: 0.01269 | H103: 0.03542 | I103: 1 | J103: 1 | K103: Q average value interpolated between 0% and 40% values due to anomolous model results
A104: Astoria | B104: 11 | C104: 40 | D104: 0 | E104: 8 | F104: 9 | G104: 0.00995 | H104: 0.03456 | I104: 1 | J104: 1
A105: Astoria | B105: 11 | C105: 60 | D105: 0 | E105: 6 | F105: 7.14 | G105: 0.00701 | H105: 0.03107 | I105: 1 | J105: 1
A106: Astoria | B106: 11 | C106: 80 | D106: 0 | E106: 5 | F106: 6.09 | G106: 0.00394 | H106: 0.02558 | I106: 1 | J106: 1
A107: Astoria | B107: 11 | C107: 0 | D107: 1 | E107: 221 | F107: 257.85 | G107: 0.01318 | H107: 0.00958 | I107: 1 | J107: 1
A108: Astoria | B108: 11 | C108: 20 | D108: 1 | E108: 117 | F108: 152 | G108: 0.01107 | H108: 0.00976 | I108: 1 | J108: 1
A109: Astoria | B109: 11 | C109: 40 | D109: 1 | E109: 74 | F109: 83.55 | G109: 0.00861 | H109: 0.00956 | I109: 1 | J109: 1
A110: Astoria | B110: 11 | C110: 60 | D110: 1 | E110: 44 | F110: 46.91 | G110: 0.00608 | H110: 0.00945 | I110: 1 | J110: 1
A111: Astoria | B111: 11 | C111: 80 | D111: 1 | E111: 14 | F111: 10.27 | G111: 0.003795 | H111: 0.00944 | I111: 1 | J111: 1 | K111: flow avg and std dev value interpolated from lower infiltration values because MGS flood model did not converge on a solution
A112: Astoria | B112: 12 | C112: 0 | D112: 0 | E112: 15 | F112: 14.91 | G112: 0.01537 | H112: 0.03456 | I112: 1 | J112: 1
A113: Astoria | B113: 12 | C113: 20 | D113: 0 | E113: 12 | F113: 12 | G113: 0.01257 | H113: 0.033425 | I113: 1 | J113: 1 | K113: Q average value interpolated between 0% and 40% values due to anomolous model results
A114: Astoria | B114: 12 | C114: 40 | D114: 0 | E114: 9 | F114: 9.51 | G114: 0.00977 | H114: 0.03229 | I114: 1 | J114: 1
A115: Astoria | B115: 12 | C115: 60 | D115: 0 | E115: 6 | F115: 7.01 | G115: 0.0068 | H115: 0.02931 | I115: 1 | J115: 1
A116: Astoria | B116: 12 | C116: 80 | D116: 0 | E116: 5 | F116: 5.06 | G116: 0.00366 | H116: 0.02349 | I116: 1 | J116: 1
A117: Astoria | B117: 12 | C117: 0 | D117: 1 | E117: 161 | F117: 212.22 | G117: 0.01425 | H117: 0.00962 | I117: 1 | J117: 1
A118: Astoria | B118: 12 | C118: 20 | D118: 1 | E118: 107 | F118: 133.21 | G118: 0.0118 | H118: 0.00991 | I118: 1 | J118: 1
A119: Astoria | B119: 12 | C119: 40 | D119: 1 | E119: 78 | F119: 86.08 | G119: 0.00908 | H119: 0.00966 | I119: 1 | J119: 1
A120: Astoria | B120: 12 | C120: 60 | D120: 1 | E120: 47 | F120: 50.83 | G120: 0.00636 | H120: 0.00938 | I120: 1 | J120: 1
A121: Astoria | B121: 12 | C121: 80 | D121: 1 | E121: 16 | F121: 15.58 | G121: 0.003775 | H121: 0.0094 | I121: 1 | J121: 1 | K121: flow avg and std dev value interpolated from lower infiltration values because MGS flood model did not converge on a solution
A122: Burlington | B122: 1 | C122: 0 | D122: 0 | E122: 8 | F122: 9.42 | G122: 0.00653 | H122: 0.0185 | I122: 1 | J122: 1
A123: Burlington | B123: 1 | C123: 20 | D123: 0 | E123: 7 | F123: 9.21 | G123: 0.00524 | H123: 0.01771 | I123: 1 | J123: 1 | K123: Q average value interpolated between 0% and 40% values due to anomolous model results
A124: Burlington | B124: 1 | C124: 40 | D124: 0 | E124: 6 | F124: 7.87 | G124: 0.00395 | H124: 0.01692 | I124: 1 | J124: 1
A125: Burlington | B125: 1 | C125: 60 | D125: 0 | E125: 6 | F125: 7.76 | G125: 0.00268 | H125: 0.01507 | I125: 1 | J125: 1
A126: Burlington | B126: 1 | C126: 80 | D126: 0 | E126: 5 | F126: 5.96 | G126: 0.00137 | H126: 0.0117 | I126: 1 | J126: 1
A127: Burlington | B127: 1 | C127: 0 | D127: 1 | E127: 69 | F127: 69.06 | G127: 0.00526 | H127: 0.00206 | I127: 1 | J127: 1
A128: Burlington | B128: 1 | C128: 20 | D128: 1 | E128: 70 | F128: 93.32 | G128: 0.00422 | H128: 0.00246 | I128: 1 | J128: 1
A129: Burlington | B129: 1 | C129: 40 | D129: 1 | E129: 60 | F129: 60.87 | G129: 0.0031 | H129: 0.0028 | I129: 1 | J129: 1
A130: Burlington | B130: 1 | C130: 60 | D130: 1 | E130: 43 | F130: 30.68 | G130: 0.00208 | H130: 0.00292 | I130: 1 | J130: 1
A131: Burlington | B131: 1 | C131: 80 | D131: 1 | E131: 34 | F131: 20.38 | G131: 0.00108 | H131: 0.0026 | I131: 1 | J131: 1
A132: Burlington | B132: 2 | C132: 0 | D132: 0 | E132: 7 | F132: 7.91 | G132: 0.00551 | H132: 0.01624 | I132: 1 | J132: 1
A133: Burlington | B133: 2 | C133: 20 | D133: 0 | E133: 6 | F133: 7.37 | G133: 0.00433 | H133: 0.015475 | I133: 1 | J133: 1 | K133: Q average value interpolated between 0% and 40% values due to anomolous model results
A134: Burlington | B134: 2 | C134: 40 | D134: 0 | E134: 5 | F134: 6.68 | G134: 0.00315 | H134: 0.01471 | I134: 1 | J134: 1
A135: Burlington | B135: 2 | C135: 60 | D135: 0 | E135: 5 | F135: 7.02 | G135: 0.00203 | H135: 0.01275 | I135: 1 | J135: 1
A136: Burlington | B136: 2 | C136: 80 | D136: 0 | E136: 4 | F136: 5.65 | G136: 0.00094 | H136: 0.00906 | I136: 1 | J136: 1
A137: Burlington | B137: 2 | C137: 0 | D137: 1 | E137: 0 | F137: 0 | G137: 0.0045 | H137: 0.0023 | I137: 1 | J137: 1
A138: Burlington | B138: 2 | C138: 20 | D138: 1 | E138: 2 | F138: 0 | G138: 0.00336 | H138: 0.00256 | I138: 1 | J138: 1
A139: Burlington | B139: 2 | C139: 40 | D139: 1 | E139: 2 | F139: 0 | G139: 0.00244 | H139: 0.00258 | I139: 1 | J139: 1
A140: Burlington | B140: 2 | C140: 60 | D140: 1 | E140: 43 | F140: 50.2 | G140: 0.00158 | H140: 0.00243 | I140: 1 | J140: 1
A141: Burlington | B141: 2 | C141: 80 | D141: 1 | E141: 30 | F141: 37.23 | G141: 0.0007 | H141: 0.00207 | I141: 1 | J141: 1
A142: Burlington | B142: 3 | C142: 0 | D142: 0 | E142: 6 | F142: 5.32 | G142: 0.00396 | H142: 0.01283 | I142: 1 | J142: 1
A143: Burlington | B143: 3 | C143: 20 | D143: 0 | E143: 5 | F143: 5.2 | G143: 0.003015 | H143: 0.012165 | I143: 1 | J143: 1 | K143: Q average value interpolated between 0% and 40% values due to anomolous model results
A144: Burlington | B144: 3 | C144: 40 | D144: 0 | E144: 4 | F144: 4.66 | G144: 0.00207 | H144: 0.0115 | I144: 1 | J144: 1
A145: Burlington | B145: 3 | C145: 60 | D145: 0 | E145: 4 | F145: 4.16 | G145: 0.00122 | H145: 0.00933 | I145: 1 | J145: 1
A146: Burlington | B146: 3 | C146: 80 | D146: 0 | E146: 3 | F146: 3.13 | G146: 0.00042 | H146: 0.00605 | I146: 1 | J146: 1
A147: Burlington | B147: 3 | C147: 0 | D147: 1 | E147: 0 | F147: 0 | G147: 0.00352 | H147: 0.00186 | I147: 1 | J147: 1
A148: Burlington | B148: 3 | C148: 20 | D148: 1 | E148: 0 | F148: 0 | G148: 0.00239 | H148: 0.00173 | I148: 1 | J148: 1
A149: Burlington | B149: 3 | C149: 40 | D149: 1 | E149: 0 | F149: 0 | G149: 0.0015 | H149: 0.0016 | I149: 1 | J149: 1
A150: Burlington | B150: 3 | C150: 60 | D150: 1 | E150: 0 | F150: 0 | G150: 0.00084 | H150: 0.00141 | I150: 1 | J150: 1
A151: Burlington | B151: 3 | C151: 80 | D151: 1 | E151: 0 | F151: 0 | G151: 0.00028 | H151: 0.00097 | I151: 1 | J151: 1
A152: Burlington | B152: 4 | C152: 0 | D152: 0 | E152: 6 | F152: 5.57 | G152: 0.00377 | H152: 0.0128 | I152: 1 | J152: 1
A153: Burlington | B153: 4 | C153: 20 | D153: 0 | E153: 5 | F153: 5.54 | G153: 0.00289 | H153: 0.012105 | I153: 1 | J153: 1 | K153: Q average value interpolated between 0% and 40% values due to anomolous model results
A154: Burlington | B154: 4 | C154: 40 | D154: 0 | E154: 4 | F154: 4.95 | G154: 0.00201 | H154: 0.01141 | I154: 1 | J154: 1
A155: Burlington | B155: 4 | C155: 60 | D155: 0 | E155: 4 | F155: 4.35 | G155: 0.0012 | H155: 0.00967 | I155: 1 | J155: 1
A156: Burlington | B156: 4 | C156: 80 | D156: 0 | E156: 2 | F156: 2.04 | G156: 0.00042 | H156: 0.00617 | I156: 1 | J156: 1
A157: Burlington | B157: 4 | C157: 0 | D157: 1 | E157: 0 | F157: 0 | G157: 0.00269 | H157: 0.00136 | I157: 1 | J157: 1
A158: Burlington | B158: 4 | C158: 20 | D158: 1 | E158: 0 | F158: 0 | G158: 0.00184 | H158: 0.0015 | I158: 1 | J158: 1
A159: Burlington | B159: 4 | C159: 40 | D159: 1 | E159: 0 | F159: 0 | G159: 0.00128 | H159: 0.00154 | I159: 1 | J159: 1
A160: Burlington | B160: 4 | C160: 60 | D160: 1 | E160: 0 | F160: 0 | G160: 0.00077 | H160: 0.00141 | I160: 1 | J160: 1
A161: Burlington | B161: 4 | C161: 80 | D161: 1 | E161: 0 | F161: 0 | G161: 0.00029 | H161: 0.00099 | I161: 1 | J161: 1
A162: Burlington | B162: 5 | C162: 0 | D162: 0 | E162: 7 | F162: 5.86 | G162: 0.00388 | H162: 0.01622 | I162: 1 | J162: 1
A163: Burlington | B163: 5 | C163: 20 | D163: 0 | E163: 6 | F163: 5.35 | G163: 0.003105 | H163: 0.015615 | I163: 1 | J163: 1 | K163: Q average value interpolated between 0% and 40% values due to anomolous model results
A164: Burlington | B164: 5 | C164: 40 | D164: 0 | E164: 5 | F164: 4.85 | G164: 0.00233 | H164: 0.01501 | I164: 1 | J164: 1
A165: Burlington | B165: 5 | C165: 60 | D165: 0 | E165: 4 | F165: 4.34 | G165: 0.00159 | H165: 0.01374 | I165: 1 | J165: 1
A166: Burlington | B166: 5 | C166: 80 | D166: 0 | E166: 2 | F166: 2.69 | G166: 0.00081 | H166: 0.01127 | I166: 1 | J166: 1
A167: Burlington | B167: 5 | C167: 0 | D167: 1 | E167: 0 | F167: 0 | G167: 0.00201 | H167: 0.00142 | I167: 1 | J167: 1
A168: Burlington | B168: 5 | C168: 20 | D168: 1 | E168: 0 | F168: 0 | G168: 0.00152 | H168: 0.00157 | I168: 1 | J168: 1
A169: Burlington | B169: 5 | C169: 40 | D169: 1 | E169: 0 | F169: 0 | G169: 0.00112 | H169: 0.00162 | I169: 1 | J169: 1
A170: Burlington | B170: 5 | C170: 60 | D170: 1 | E170: 1 | F170: 0 | G170: 0.00076 | H170: 0.00157 | I170: 1 | J170: 1
A171: Burlington | B171: 5 | C171: 80 | D171: 1 | E171: 12 | F171: 17.71 | G171: 0.00038 | H171: 0.00142 | I171: 1 | J171: 1
A172: Burlington | B172: 6 | C172: 0 | D172: 0 | E172: 7 | F172: 5.76 | G172: 0.00383 | H172: 0.01573 | I172: 1 | J172: 1
A173: Burlington | B173: 6 | C173: 20 | D173: 0 | E173: 6 | F173: 5.52 | G173: 0.00307 | H173: 0.01519 | I173: 1 | J173: 1 | K173: Q average value interpolated between 0% and 40% values due to anomolous model results
A174: Burlington | B174: 6 | C174: 40 | D174: 0 | E174: 5 | F174: 4.69 | G174: 0.00231 | H174: 0.01465 | I174: 1 | J174: 1
A175: Burlington | B175: 6 | C175: 60 | D175: 0 | E175: 4 | F175: 4.43 | G175: 0.00156 | H175: 0.01355 | I175: 1 | J175: 1
A176: Burlington | B176: 6 | C176: 80 | D176: 0 | E176: 3 | F176: 3.06 | G176: 0.00077 | H176: 0.01054 | I176: 1 | J176: 1
A177: Burlington | B177: 6 | C177: 0 | D177: 1 | E177: 0 | F177: 0 | G177: 0.00177 | H177: 0.00146 | I177: 1 | J177: 1
A178: Burlington | B178: 6 | C178: 20 | D178: 1 | E178: 0 | F178: 0 | G178: 0.0014 | H178: 0.00157 | I178: 1 | J178: 1
A179: Burlington | B179: 6 | C179: 40 | D179: 1 | E179: 0 | F179: 0 | G179: 0.00105 | H179: 0.0016 | I179: 1 | J179: 1
A180: Burlington | B180: 6 | C180: 60 | D180: 1 | E180: 0 | F180: 0 | G180: 0.00071 | H180: 0.00149 | I180: 1 | J180: 1
A181: Burlington | B181: 6 | C181: 80 | D181: 1 | E181: 0 | F181: 0 | G181: 0.00035 | H181: 0.00123 | I181: 1 | J181: 1
A182: Burlington | B182: 7 | C182: 0 | D182: 0 | E182: 7 | F182: 6.99 | G182: 0.00334 | H182: 0.01446 | I182: 1 | J182: 1
A183: Burlington | B183: 7 | C183: 20 | D183: 0 | E183: 6 | F183: 6.82 | G183: 0.002685 | H183: 0.0141 | I183: 1 | J183: 1 | K183: Q average value interpolated between 0% and 40% values due to anomolous model results
A184: Burlington | B184: 7 | C184: 40 | D184: 0 | E184: 5 | F184: 5.44 | G184: 0.00203 | H184: 0.01374 | I184: 1 | J184: 1
A185: Burlington | B185: 7 | C185: 60 | D185: 0 | E185: 4 | F185: 5.1 | G185: 0.00135 | H185: 0.01168 | I185: 1 | J185: 1
A186: Burlington | B186: 7 | C186: 80 | D186: 0 | E186: 4 | F186: 4.21 | G186: 0.00065 | H186: 0.00923 | I186: 1 | J186: 1
A187: Burlington | B187: 7 | C187: 0 | D187: 1 | E187: 0 | F187: 0 | G187: 0.00132 | H187: 0.00138 | I187: 1 | J187: 1
A188: Burlington | B188: 7 | C188: 20 | D188: 1 | E188: 0 | F188: 0 | G188: 0.001 | H188: 0.00142 | I188: 1 | J188: 1
A189: Burlington | B189: 7 | C189: 40 | D189: 1 | E189: 0 | F189: 0 | G189: 0.00075 | H189: 0.00142 | I189: 1 | J189: 1
A190: Burlington | B190: 7 | C190: 60 | D190: 1 | E190: 0 | F190: 0 | G190: 0.00049 | H190: 0.00131 | I190: 1 | J190: 1
A191: Burlington | B191: 7 | C191: 80 | D191: 1 | E191: 15 | F191: 0.71 | G191: 0.00025 | H191: 0.00109 | I191: 1 | J191: 1
A192: Burlington | B192: 8 | C192: 0 | D192: 0 | E192: 8 | F192: 7.85 | G192: 0.00471 | H192: 0.0207 | I192: 1 | J192: 1
A193: Burlington | B193: 8 | C193: 20 | D193: 0 | E193: 7 | F193: 6.8 | G193: 0.003905 | H193: 0.02035 | I193: 1 | J193: 1 | K193: Q average value interpolated between 0% and 40% values due to anomolous model results
A194: Burlington | B194: 8 | C194: 40 | D194: 0 | E194: 6 | F194: 6.19 | G194: 0.0031 | H194: 0.02 | I194: 1 | J194: 1
A195: Burlington | B195: 8 | C195: 60 | D195: 0 | E195: 5 | F195: 5.45 | G195: 0.00227 | H195: 0.01884 | I195: 1 | J195: 1
A196: Burlington | B196: 8 | C196: 80 | D196: 0 | E196: 4 | F196: 4.27 | G196: 0.00135 | H196: 0.0163 | I196: 1 | J196: 1
A197: Burlington | B197: 8 | C197: 0 | D197: 1 | E197: 0 | F197: 0 | G197: 0.00106 | H197: 0.00146 | I197: 1 | J197: 1
A198: Burlington | B198: 8 | C198: 20 | D198: 1 | E198: 0 | F198: 0 | G198: 0.00092 | H198: 0.00158 | I198: 1 | J198: 1
A199: Burlington | B199: 8 | C199: 40 | D199: 1 | E199: 0 | F199: 0 | G199: 0.00077 | H199: 0.00163 | I199: 1 | J199: 1
A200: Burlington | B200: 8 | C200: 60 | D200: 1 | E200: 0 | F200: 0 | G200: 0.00062 | H200: 0.00162 | I200: 1 | J200: 1
... 881 more rows

Sheet Saved_Dilution_Inputs (hidden)
A1: ID | B1: User | C1: Date Entered | D1: Description | F1: =MAX(A2:A65531) -> 0

Sheet Saved_Dilution_Concentrations (hidden)
A1: ID | B1: subbasin | C1: Parameter | D1: Concentration (mg/L)
A2: 0 | B2: 1 | C2: 4 | D2: 0.001
A3: 0 | B3: 1 | C3: 5 | D3: 0.001

Sheet Saved_RivPlum_Inputs (hidden)
A1: ID | B1: Sub basin # | C1: month | D1: Stream Depth (ft): | E1: Stream Velocity (fps): | F1: Channel Width (ft): | G1: Stream Slope (ft/ft) or Manning roughness "n": | H1: Slope =0 Manning=1 | I1: Discharge Distance | J1: Description

Sheet Saved_Outfall_Settings (hidden)
A1: ID | B1: user | C1: Date Entered | D1: Description | E1: Project ID | F1: Rain Gauge | G1: =MAX(A2:A65526) -> 0

Sheet Outfall_Settings (hidden)
A1: ID | B1: Subbasin | C1: type | D1: treatment type | E1: Infiltration | F1: area

Sheet Puget East (hidden)
A1: Rainfall | B1: Month | C1: Infiltration | D1: Flow Control | E1: Avg Duration (hr) | F1: SD (hr) | G1: Avg Flow (cfs) | H1: SD (cfs) | I1: Duration Distribution Type | J1: Flow distribution type
A2: 24 | B2: 1 | C2: 0 | D2: 0 | E2: 8.1615 | F2: 7.332 | G2: 0.00415 | H2: 0.01166 | I2: 1 | J2: 1
A3: 24 | B3: 1 | C3: 20 | D3: 0 | E3: 7.45 | F3: 6.818 | G3: 0.0024 | H3: 0.00989 | I3: 1 | J3: 1
A4: 24 | B4: 1 | C4: 40 | D4: 0 | E4: 6.013 | F4: 5.7132 | G4: 0.00175 | H4: 0.0093 | I4: 1 | J4: 1
A5: 24 | B5: 1 | C5: 60 | D5: 0 | E5: 4.4011 | F5: 4.0223 | G5: 0.00149 | H5: 0.00911 | I5: 1 | J5: 1
A6: 24 | B6: 1 | C6: 80 | D6: 0 | E6: 3.1796 | F6: 3.0146 | G6: 0.00063 | H6: 0.00673 | I6: 1 | J6: 1
A7: 24 | B7: 1 | C7: 0 | D7: 1 | E7: 0 | F7: 0 | G7: 0.004825714286 | H7: 0.00438 | I7: 1 | J7: 1 | K7: flow avg and std dev value interpolated from corresponding values for rainfall 32 and 60 because MGS Flood model did not converge
A8: 24 | B8: 1 | C8: 20 | D8: 1 | E8: 0 | F8: 0 | G8: 0.003831428571 | H8: 0.004817142857 | I8: 1 | J8: 1 | K8: flow avg and std dev value interpolated from corresponding values for rainfall 32 and 60 because MGS Flood model did not converge
A9: 24 | B9: 1 | C9: 40 | D9: 1 | E9: 0 | F9: 0 | G9: 0.002871428571 | H9: 0.00444 | I9: 1 | J9: 1 | K9: flow avg and std dev value interpolated from corresponding values for rainfall 32 and 60 because MGS Flood model did not converge
A10: 24 | B10: 1 | C10: 60 | D10: 1 | E10: 0 | F10: 0 | G10: 0.00105 | H10: 0.00069 | I10: 1 | J10: 1
A11: 24 | B11: 1 | C11: 80 | D11: 1 | E11: 0 | F11: 0 | G11: 0.00053 | H11: 0.00062 | I11: 1 | J11: 1
A12: 24 | B12: 2 | C12: 0 | D12: 0 | E12: 7.5754 | F12: 6.6887 | G12: 0.00374 | H12: 0.01095 | I12: 1 | J12: 1
A13: 24 | B13: 2 | C13: 20 | D13: 0 | E13: 6.7201 | F13: 6.4467 | G13: 0.00202 | H13: 0.00904 | I13: 1 | J13: 1
A14: 24 | B14: 2 | C14: 40 | D14: 0 | E14: 5.4962 | F14: 5.5339 | G14: 0.00146 | H14: 0.00836 | I14: 1 | J14: 1
A15: 24 | B15: 2 | C15: 60 | D15: 0 | E15: 4.5849 | F15: 4.5495 | G15: 0.00129 | H15: 0.00873 | I15: 1 | J15: 1
A16: 24 | B16: 2 | C16: 80 | D16: 0 | E16: 3.1324 | F16: 3.0253 | G16: 0.00052 | H16: 0.0059 | I16: 1 | J16: 1
A17: 24 | B17: 2 | C17: 0 | D17: 1 | E17: 0 | F17: 0 | G17: 0.004337142857 | H17: 0.0042 | I17: 1 | J17: 1 | K17: flow avg and std dev value interpolated from corresponding values for rainfall 32 and 60 because MGS Flood model did not converge
A18: 24 | B18: 2 | C18: 20 | D18: 1 | E18: 0 | F18: 0 | G18: 0.003445714286 | H18: 0.004817142857 | I18: 1 | J18: 1 | K18: flow avg and std dev value interpolated from corresponding values for rainfall 32 and 60 because MGS Flood model did not converge
A19: 24 | B19: 2 | C19: 40 | D19: 1 | E19: 0 | F19: 0 | G19: 0.002511428571 | H19: 0.004482857143 | I19: 1 | J19: 1 | K19: flow avg and std dev value interpolated from corresponding values for rainfall 32 and 60 because MGS Flood model did not converge
A20: 24 | B20: 2 | C20: 60 | D20: 1 | E20: 0 | F20: 0 | G20: 0.00098 | H20: 0.00041 | I20: 1 | J20: 1
A21: 24 | B21: 2 | C21: 80 | D21: 1 | E21: 0 | F21: 0 | G21: 0.00042 | H21: 0.00037 | I21: 1 | J21: 1
A22: 24 | B22: 3 | C22: 0 | D22: 0 | E22: 7.2052 | F22: 6.3926 | G22: 0.00337 | H22: 0.01073 | I22: 1 | J22: 1
A23: 24 | B23: 3 | C23: 20 | D23: 0 | E23: 6.4314 | F23: 5.7336 | G23: 0.0018 | H23: 0.00884 | I23: 1 | J23: 1
A24: 24 | B24: 3 | C24: 40 | D24: 0 | E24: 5.0951 | F24: 4.7226 | G24: 0.0013 | H24: 0.00824 | I24: 1 | J24: 1
A25: 24 | B25: 3 | C25: 60 | D25: 0 | E25: 4.4319 | F25: 4.4935 | G25: 0.00116 | H25: 0.00855 | I25: 1 | J25: 1
A26: 24 | B26: 3 | C26: 80 | D26: 0 | E26: 3.024 | F26: 2.635 | G26: 0.00048 | H26: 0.0064 | I26: 1 | J26: 1
A27: 24 | B27: 3 | C27: 0 | D27: 1 | E27: 0 | F27: 0 | G27: 0.003351428571 | H27: 0.003651428571 | I27: 1 | J27: 1 | K27: flow avg and std dev value interpolated from corresponding values for rainfall 32 and 60 because MGS Flood model did not converge
A28: 24 | B28: 3 | C28: 20 | D28: 1 | E28: 0 | F28: 0 | G28: 0.002562857143 | H28: 0.004037142857 | I28: 1 | J28: 1 | K28: flow avg and std dev value interpolated from corresponding values for rainfall 32 and 60 because MGS Flood model did not converge
A29: 24 | B29: 3 | C29: 40 | D29: 1 | E29: 0 | F29: 0 | G29: 0.001842857143 | H29: 0.003642857143 | I29: 1 | J29: 1 | K29: flow avg and std dev value interpolated from corresponding values for rainfall 32 and 60 because MGS Flood model did not converge
A30: 24 | B30: 3 | C30: 60 | D30: 1 | E30: 0 | F30: 0 | G30: 0.00096 | H30: 0.00037 | I30: 1 | J30: 1
A31: 24 | B31: 3 | C31: 80 | D31: 1 | E31: 0 | F31: 0 | G31: 0.00036 | H31: 0.00034 | I31: 1 | J31: 1
A32: 24 | B32: 4 | C32: 0 | D32: 0 | E32: 6.4793 | F32: 5.676 | G32: 0.00283 | H32: 0.0097 | I32: 1 | J32: 1
A33: 24 | B33: 4 | C33: 20 | D33: 0 | E33: 5.9801 | F33: 5.6742 | G33: 0.00136 | H33: 0.00759 | I33: 1 | J33: 1
A34: 24 | B34: 4 | C34: 40 | D34: 0 | E34: 4.9158 | F34: 5.1271 | G34: 0.00099 | H34: 0.00698 | I34: 1 | J34: 1
A35: 24 | B35: 4 | C35: 60 | D35: 0 | E35: 4 | F35: 4.613 | G35: 0.00098 | H35: 0.00742 | I35: 1 | J35: 1
A36: 24 | B36: 4 | C36: 80 | D36: 0 | E36: 0 | F36: 0 | G36: 0.00038 | H36: 0.00484 | I36: 1 | J36: 1
A37: 24 | B37: 4 | C37: 0 | D37: 1 | E37: 0 | F37: 0 | G37: 0.0018 | H37: 0.00342 | I37: 1 | J37: 1 | K37: flow avg and std dev value interpolated from corresponding values for rainfall 32 and 60 because MGS Flood model did not converge
A38: 24 | B38: 4 | C38: 20 | D38: 1 | E38: 0 | F38: 0 | G38: 0.001517142857 | H38: 0.003514285714 | I38: 1 | J38: 1 | K38: flow avg and std dev value interpolated from corresponding values for rainfall 32 and 60 because MGS Flood model did not converge
A39: 24 | B39: 4 | C39: 40 | D39: 1 | E39: 0 | F39: 0 | G39: 0.001165714286 | H39: 0.003111428571 | I39: 1 | J39: 1 | K39: flow avg and std dev value interpolated from corresponding values for rainfall 32 and 60 because MGS Flood model did not converge
A40: 24 | B40: 4 | C40: 60 | D40: 1 | E40: 0 | F40: 0 | G40: 0.00088 | H40: 0.00043 | I40: 1 | J40: 1
A41: 24 | B41: 4 | C41: 80 | D41: 1 | E41: 0 | F41: 0 | G41: 0.00025 | H41: 0.00032 | I41: 1 | J41: 1
A42: 24 | B42: 5 | C42: 0 | D42: 0 | E42: 6.683 | F42: 5.2991 | G42: 0.00277 | H42: 0.01074 | I42: 1 | J42: 1
A43: 24 | B43: 5 | C43: 20 | D43: 0 | E43: 5.9513 | F43: 5.2237 | G43: 0.00107 | H43: 0.00746 | I43: 1 | J43: 1
A44: 24 | B44: 5 | C44: 40 | D44: 0 | E44: 4.9507 | F44: 4.797 | G44: 0.0008 | H44: 0.00708 | I44: 1 | J44: 1
A45: 24 | B45: 5 | C45: 60 | D45: 0 | E45: 3.9097 | F45: 3.3967 | G45: 0.00107 | H45: 0.00886 | I45: 1 | J45: 1
A46: 24 | B46: 5 | C46: 80 | D46: 0 | E46: 0 | F46: 0 | G46: 0.00052 | H46: 0.00696 | I46: 1 | J46: 1
A47: 24 | B47: 5 | C47: 0 | D47: 1 | E47: 0 | F47: 0 | G47: 0.0007114285714 | H47: 0.00288 | I47: 1 | J47: 1 | K47: flow avg and std dev value interpolated from corresponding values for rainfall 32 and 60 because MGS Flood model did not converge
A48: 24 | B48: 5 | C48: 20 | D48: 1 | E48: 0 | F48: 0 | G48: 0.001037142857 | H48: 0.00288 | I48: 1 | J48: 1 | K48: flow avg and std dev value interpolated from corresponding values for rainfall 32 and 60 because MGS Flood model did not converge
A49: 24 | B49: 5 | C49: 40 | D49: 1 | E49: 0 | F49: 0 | G49: 0.0008828571429 | H49: 0.002562857143 | I49: 1 | J49: 1 | K49: flow avg and std dev value interpolated from corresponding values for rainfall 32 and 60 because MGS Flood model did not converge
A50: 24 | B50: 5 | C50: 60 | D50: 1 | E50: 0 | F50: 0 | G50: 0.00081 | H50: 0.00037 | I50: 1 | J50: 1
A51: 24 | B51: 5 | C51: 80 | D51: 1 | E51: 0 | F51: 0 | G51: 0.00026 | H51: 0.00034 | I51: 1 | J51: 1
A52: 24 | B52: 6 | C52: 0 | D52: 0 | E52: 7.399 | F52: 6.5 | G52: 0.00306 | H52: 0.01261 | I52: 1 | J52: 1
A53: 24 | B53: 6 | C53: 20 | D53: 0 | E53: 6.6066 | F53: 5.9914 | G53: 0.00102 | H53: 0.00803 | I53: 1 | J53: 1
A54: 24 | B54: 6 | C54: 40 | D54: 0 | E54: 5.4889 | F54: 5.1072 | G54: 0.00079 | H54: 0.00765 | I54: 1 | J54: 1
A55: 24 | B55: 6 | C55: 60 | D55: 0 | E55: 4.4706 | F55: 4.1934 | G55: 0.00133 | H55: 0.01097 | I55: 1 | J55: 1
A56: 24 | B56: 6 | C56: 80 | D56: 0 | E56: 0 | F56: 0 | G56: 0.0007 | H56: 0.00921 | I56: 1 | J56: 1
A57: 24 | B57: 6 | C57: 0 | D57: 1 | E57: 0 | F57: 0 | G57: 0.0006171428571 | H57: 0.002597142857 | I57: 1 | J57: 1 | K57: flow avg and std dev value interpolated from corresponding values for rainfall 32 and 60 because MGS Flood model did not converge
A58: 24 | B58: 6 | C58: 20 | D58: 1 | E58: 0 | F58: 0 | G58: 0.0009171428571 | H58: 0.002588571429 | I58: 1 | J58: 1 | K58: flow avg and std dev value interpolated from corresponding values for rainfall 32 and 60 because MGS Flood model did not converge
A59: 24 | B59: 6 | C59: 40 | D59: 1 | E59: 0 | F59: 0 | G59: 0.00072 | H59: 0.002322857143 | I59: 1 | J59: 1 | K59: flow avg and std dev value interpolated from corresponding values for rainfall 32 and 60 because MGS Flood model did not converge
A60: 24 | B60: 6 | C60: 60 | D60: 1 | E60: 0 | F60: 0 | G60: 0.00074 | H60: 0.00027 | I60: 1 | J60: 1
A61: 24 | B61: 6 | C61: 80 | D61: 1 | E61: 0 | F61: 0 | G61: 0.00028 | H61: 0.00082 | I61: 1 | J61: 1
A62: 24 | B62: 7 | C62: 0 | D62: 0 | E62: 6.9752 | F62: 5.3719 | G62: 0.00244 | H62: 0.01034 | I62: 1 | J62: 1
A63: 24 | B63: 7 | C63: 20 | D63: 0 | E63: 6.3866 | F63: 5.0306 | G63: 0.00054 | H63: 0.00543 | I63: 1 | J63: 1
A64: 24 | B64: 7 | C64: 40 | D64: 0 | E64: 5.2524 | F64: 4.347 | G64: 0.00042 | H64: 0.00519 | I64: 1 | J64: 1
A65: 24 | B65: 7 | C65: 60 | D65: 0 | E65: 0 | F65: 0 | G65: 0.00102 | H65: 0.00896 | I65: 1 | J65: 1
A66: 24 | B66: 7 | C66: 80 | D66: 0 | E66: 0 | F66: 0 | G66: 0.0005 | H66: 0.0067 | I66: 1 | J66: 1
A67: 24 | B67: 7 | C67: 0 | D67: 1 | E67: 0 | F67: 0 | G67: 9.428571429e-05 | H67: 0.001765714286 | I67: 1 | J67: 1 | K67: flow avg and std dev value interpolated from corresponding values for rainfall 32 and 60 because MGS Flood model did not converge
A68: 24 | B68: 7 | C68: 20 | D68: 1 | E68: 0 | F68: 0 | G68: 0.0003942857143 | H68: 0.001791428571 | I68: 1 | J68: 1 | K68: flow avg and std dev value interpolated from corresponding values for rainfall 32 and 60 because MGS Flood model did not converge
A69: 24 | B69: 7 | C69: 40 | D69: 1 | E69: 0 | F69: 0 | G69: 0.00036 | H69: 0.001671428571 | I69: 1 | J69: 1 | K69: flow avg and std dev value interpolated from corresponding values for rainfall 32 and 60 because MGS Flood model did not converge
A70: 24 | B70: 7 | C70: 60 | D70: 1 | E70: 0 | F70: 0 | G70: 0.00065 | H70: 0.00028 | I70: 1 | J70: 1
A71: 24 | B71: 7 | C71: 80 | D71: 1 | E71: 0 | F71: 0 | G71: 0.0002 | H71: 0.0003 | I71: 1 | J71: 1
A72: 24 | B72: 8 | C72: 0 | D72: 0 | E72: 6.871 | F72: 5.407 | G72: 0.00304 | H72: 0.01284 | I72: 1 | J72: 1
A73: 24 | B73: 8 | C73: 20 | D73: 0 | E73: 6.5678 | F73: 5.0136 | G73: 0.00063 | H73: 0.00647 | I73: 1 | J73: 1
A74: 24 | B74: 8 | C74: 40 | D74: 0 | E74: 5.4854 | F74: 3.9627 | G74: 0.0005 | H74: 0.00629 | I74: 1 | J74: 1
A75: 24 | B75: 8 | C75: 60 | D75: 0 | E75: 0 | F75: 0 | G75: 0.00143 | H75: 0.0113 | I75: 1 | J75: 1
A76: 24 | B76: 8 | C76: 80 | D76: 0 | E76: 0 | F76: 0 | G76: 0.0008 | H76: 0.00878 | I76: 1 | J76: 1
A77: 24 | B77: 8 | C77: 0 | D77: 1 | E77: 0 | F77: 0 | G77: 0.0006514285714 | H77: 0.00204 | I77: 1 | J77: 1 | K77: flow avg and std dev value interpolated from corresponding values for rainfall 32 and 60 because MGS Flood model did not converge
A78: 24 | B78: 8 | C78: 20 | D78: 1 | E78: 0 | F78: 0 | G78: 0.0006257142857 | H78: 0.002074285714 | I78: 1 | J78: 1 | K78: flow avg and std dev value interpolated from corresponding values for rainfall 32 and 60 because MGS Flood model did not converge
A79: 24 | B79: 8 | C79: 40 | D79: 1 | E79: 0 | F79: 0 | G79: 0.0006857142857 | H79: 0.00216 | I79: 1 | J79: 1 | K79: flow avg and std dev value interpolated from corresponding values for rainfall 32 and 60 because MGS Flood model did not converge
A80: 24 | B80: 8 | C80: 60 | D80: 1 | E80: 0 | F80: 0 | G80: 0.00052 | H80: 0.00028 | I80: 1 | J80: 1
A81: 24 | B81: 8 | C81: 80 | D81: 1 | E81: 0 | F81: 0 | G81: 0.00015 | H81: 0.00028 | I81: 1 | J81: 1
A82: 24 | B82: 9 | C82: 0 | D82: 0 | E82: 7.0548 | F82: 5.2964 | G82: 0.00341 | H82: 0.01402 | I82: 1 | J82: 1
A83: 24 | B83: 9 | C83: 20 | D83: 0 | E83: 6.2601 | F83: 4.9833 | G83: 0.00109 | H83: 0.00877 | I83: 1 | J83: 1
A84: 24 | B84: 9 | C84: 40 | D84: 0 | E84: 5.2811 | F84: 4.3159 | G84: 0.00085 | H84: 0.00848 | I84: 1 | J84: 1
A85: 24 | B85: 9 | C85: 60 | D85: 0 | E85: 4.1644 | F85: 3.326 | G85: 0.00153 | H85: 0.01229 | I85: 1 | J85: 1
A86: 24 | B86: 9 | C86: 80 | D86: 0 | E86: 0 | F86: 0 | G86: 0.00083 | H86: 0.01008 | I86: 1 | J86: 1
A87: 24 | B87: 9 | C87: 0 | D87: 1 | E87: 0 | F87: 0 | G87: 0.001688571429 | H87: 0.002957142857 | I87: 1 | J87: 1 | K87: flow avg and std dev value interpolated from corresponding values for rainfall 32 and 60 because MGS Flood model did not converge
A88: 24 | B88: 9 | C88: 20 | D88: 1 | E88: 0 | F88: 0 | G88: 0.001251428571 | H88: 0.002922857143 | I88: 1 | J88: 1 | K88: flow avg and std dev value interpolated from corresponding values for rainfall 32 and 60 because MGS Flood model did not converge
A89: 24 | B89: 9 | C89: 40 | D89: 1 | E89: 0 | F89: 0 | G89: 0.0009942857143 | H89: 0.002657142857 | I89: 1 | J89: 1 | K89: flow avg and std dev value interpolated from corresponding values for rainfall 32 and 60 because MGS Flood model did not converge
A90: 24 | B90: 9 | C90: 60 | D90: 1 | E90: 0 | F90: 0 | G90: 0.00051 | H90: 0.00029 | I90: 1 | J90: 1
A91: 24 | B91: 9 | C91: 80 | D91: 1 | E91: 0 | F91: 0 | G91: 0.0003 | H91: 0.00046 | I91: 1 | J91: 1
A92: 24 | B92: 10 | C92: 0 | D92: 0 | E92: 7.3882 | F92: 5.8996 | G92: 0.00381 | H92: 0.01276 | I92: 1 | J92: 1
A93: 24 | B93: 10 | C93: 20 | D93: 0 | E93: 6.7573 | F93: 5.8091 | G93: 0.00175 | H93: 0.0096 | I93: 1 | J93: 1
A94: 24 | B94: 10 | C94: 40 | D94: 0 | E94: 5.7636 | F94: 4.9803 | G94: 0.00133 | H94: 0.00918 | I94: 1 | J94: 1
A95: 24 | B95: 10 | C95: 60 | D95: 0 | E95: 4.3699 | F95: 3.87 | G95: 0.00157 | H95: 0.0109 | I95: 1 | J95: 1
A96: 24 | B96: 10 | C96: 80 | D96: 0 | E96: 3.1549 | F96: 3.4729 | G96: 0.00077 | H96: 0.00834 | I96: 1 | J96: 1
A97: 24 | B97: 10 | C97: 0 | D97: 1 | E97: 0 | F97: 0 | G97: 0.003445714286 | H97: 0.003985714286 | I97: 1 | J97: 1 | K97: flow avg and std dev value interpolated from corresponding values for rainfall 32 and 60 because MGS Flood model did not converge
A98: 24 | B98: 10 | C98: 20 | D98: 1 | E98: 0 | F98: 0 | G98: 0.002734285714 | H98: 0.004105714286 | I98: 1 | J98: 1 | K98: flow avg and std dev value interpolated from corresponding values for rainfall 32 and 60 because MGS Flood model did not converge
A99: 24 | B99: 10 | C99: 40 | D99: 1 | E99: 0 | F99: 0 | G99: 0.002082857143 | H99: 0.003762857143 | I99: 1 | J99: 1 | K99: flow avg and std dev value interpolated from corresponding values for rainfall 32 and 60 because MGS Flood model did not converge
A100: 24 | B100: 10 | C100: 60 | D100: 1 | E100: 0 | F100: 0 | G100: 0.0006 | H100: 0.00028 | I100: 1 | J100: 1
A101: 24 | B101: 10 | C101: 80 | D101: 1 | E101: 0 | F101: 0 | G101: 0.00038 | H101: 0.00048 | I101: 1 | J101: 1
A102: 24 | B102: 11 | C102: 0 | D102: 0 | E102: 7.9932 | F102: 7.3429 | G102: 0.00456 | H102: 0.01341 | I102: 1 | J102: 1
A103: 24 | B103: 11 | C103: 20 | D103: 0 | E103: 7.3092 | F103: 7.2127 | G103: 0.00281 | H103: 0.01167 | I103: 1 | J103: 1
A104: 24 | B104: 11 | C104: 40 | D104: 0 | E104: 6.2129 | F104: 6.0749 | G104: 0.00211 | H104: 0.01116 | I104: 1 | J104: 1
A105: 24 | B105: 11 | C105: 60 | D105: 0 | E105: 5.2362 | F105: 4.8762 | G105: 0.00183 | H105: 0.01114 | I105: 1 | J105: 1
A106: 24 | B106: 11 | C106: 80 | D106: 0 | E106: 3.615 | F106: 3.9068 | G106: 0.00088 | H106: 0.00869 | I106: 1 | J106: 1
A107: 24 | B107: 11 | C107: 0 | D107: 1 | E107: 0 | F107: 0 | G107: 0.006 | H107: 0.004628571429 | I107: 1 | J107: 1 | K107: flow avg and std dev value interpolated from corresponding values for rainfall 32 and 60 because MGS Flood model did not converge
A108: 24 | B108: 11 | C108: 20 | D108: 1 | E108: 0 | F108: 0 | G108: 0.004585714286 | H108: 0.004868571429 | I108: 1 | J108: 1 | K108: flow avg and std dev value interpolated from corresponding values for rainfall 32 and 60 because MGS Flood model did not converge
A109: 24 | B109: 11 | C109: 40 | D109: 1 | E109: 0 | F109: 0 | G109: 0.003257142857 | H109: 0.004594285714 | I109: 1 | J109: 1 | K109: flow avg and std dev value interpolated from corresponding values for rainfall 32 and 60 because MGS Flood model did not converge
A110: 24 | B110: 11 | C110: 60 | D110: 1 | E110: 0 | F110: 0 | G110: 0.00077 | H110: 0.00028 | I110: 1 | J110: 1
A111: 24 | B111: 11 | C111: 80 | D111: 1 | E111: 0 | F111: 0 | G111: 0.00054 | H111: 0.00056 | I111: 1 | J111: 1
A112: 24 | B112: 12 | C112: 0 | D112: 0 | E112: 8.0474 | F112: 7.4574 | G112: 0.00461 | H112: 0.01299 | I112: 1 | J112: 1
A113: 24 | B113: 12 | C113: 20 | D113: 0 | E113: 7.3631 | F113: 7.3538 | G113: 0.00296 | H113: 0.01153 | I113: 1 | J113: 1
A114: 24 | B114: 12 | C114: 40 | D114: 0 | E114: 6.4981 | F114: 6.4396 | G114: 0.0022 | H114: 0.01093 | I114: 1 | J114: 1
A115: 24 | B115: 12 | C115: 60 | D115: 0 | E115: 5.2507 | F115: 5.3311 | G115: 0.00176 | H115: 0.01061 | I115: 1 | J115: 1
A116: 24 | B116: 12 | C116: 80 | D116: 0 | E116: 3.9254 | F116: 3.9229 | G116: 0.00081 | H116: 0.0081 | I116: 1 | J116: 1
A117: 24 | B117: 12 | C117: 0 | D117: 1 | E117: 0 | F117: 0 | G117: 0.006 | H117: 0.00468 | I117: 1 | J117: 1 | K117: flow avg and std dev value interpolated from corresponding values for rainfall 32 and 60 because MGS Flood model did not converge
A118: 24 | B118: 12 | C118: 20 | D118: 1 | E118: 0 | F118: 0 | G118: 0.004362857143 | H118: 0.005057142857 | I118: 1 | J118: 1 | K118: flow avg and std dev value interpolated from corresponding values for rainfall 32 and 60 because MGS Flood model did not converge
A119: 24 | B119: 12 | C119: 40 | D119: 1 | E119: 0 | F119: 0 | G119: 0.00312 | H119: 0.004662857143 | I119: 1 | J119: 1 | K119: flow avg and std dev value interpolated from corresponding values for rainfall 32 and 60 because MGS Flood model did not converge
A120: 24 | B120: 12 | C120: 60 | D120: 1 | E120: 0 | F120: 0 | G120: 0.001 | H120: 0.00105 | I120: 1 | J120: 1
A121: 24 | B121: 12 | C121: 80 | D121: 1 | E121: 0 | F121: 0 | G121: 0.0007 | H121: 0.00151 | I121: 1 | J121: 1
A122: 28 | B122: 1 | C122: 0 | D122: 0 | E122: 8.9488 | F122: 8.2975 | G122: 0.00492000021 | H122: 0.01342000067 | I122: 1 | J122: 1
A123: 28 | B123: 1 | C123: 20 | D123: 0 | E123: 8.0354 | F123: 7.603 | G123: 0.003732500132 | H123: 0.01252750028 | I123: 1 | J123: 1 | K123: Q average value interpolated between 0% and 40% values due to anomolous model results
A124: 28 | B124: 1 | C124: 40 | D124: 0 | E124: 6.5744 | F124: 6.302 | G124: 0.002545000054 | H124: 0.01163499989 | I124: 1 | J124: 1
A125: 28 | B125: 1 | C125: 60 | D125: 0 | E125: 5.0573 | F125: 4.9246 | G125: 0.001820000121 | H125: 0.01077000052 | I125: 1 | J125: 1
A126: 28 | B126: 1 | C126: 80 | D126: 0 | E126: 3.9323 | F126: 3.7874 | G126: 0.0008549999911 | H126: 0.008410000242 | I126: 1 | J126: 1
A127: 28 | B127: 1 | C127: 0 | D127: 1 | E127: 0 | F127: 0 | G127: 0.004522857256 | H127: 0.003054999979 | I127: 1 | J127: 1
A128: 28 | B128: 1 | C128: 20 | D128: 1 | E128: 0 | F128: 0 | G128: 0.003665714292 | H128: 0.003388571553 | I128: 1 | J128: 1
A129: 28 | B129: 1 | C129: 40 | D129: 1 | E129: 0 | F129: 0 | G129: 0.002695714356 | H129: 0.003244999796 | I129: 1 | J129: 1
A130: 28 | B130: 1 | C130: 60 | D130: 1 | E130: 0 | F130: 0 | G130: 0.001334999921 | H130: 0.001334999921 | I130: 1 | J130: 1
A131: 28 | B131: 1 | C131: 80 | D131: 1 | E131: 0 | F131: 0 | G131: 0.0006750000175 | H131: 0.001185000059 | I131: 1 | J131: 1
A132: 28 | B132: 2 | C132: 0 | D132: 0 | E132: 8.8254 | F132: 8.1391 | G132: 0.004859999754 | H132: 0.0133049991 | I132: 1 | J132: 1
A133: 28 | B133: 2 | C133: 20 | D133: 0 | E133: 7.9358 | F133: 7.6271 | G133: 0.005955000408 | H133: 0.01494000014 | I133: 1 | J133: 1
A134: 28 | B134: 2 | C134: 40 | D134: 0 | E134: 6.438 | F134: 6.4316 | G134: 0.002534999978 | H134: 0.01144500077 | I134: 1 | J134: 1
A135: 28 | B135: 2 | C135: 60 | D135: 0 | E135: 5.1665 | F135: 5.2384 | G135: 0.001825000043 | H135: 0.0107850004 | I135: 1 | J135: 1
A136: 28 | B136: 2 | C136: 80 | D136: 0 | E136: 3.9356 | F136: 4.0071 | G136: 0.0008650000091 | H136: 0.008120000362 | I136: 1 | J136: 1
A137: 28 | B137: 2 | C137: 0 | D137: 1 | E137: 0 | F137: 0 | G137: 0.004273571074 | H137: 0.002929999959 | I137: 1 | J137: 1
A138: 28 | B138: 2 | C138: 20 | D138: 1 | E138: 0 | F138: 0 | G138: 0.003452857025 | H138: 0.00328857149 | I138: 1 | J138: 1
A139: 28 | B139: 2 | C139: 40 | D139: 1 | E139: 0 | F139: 0 | G139: 0.00256071426 | H139: 0.003216428449 | I139: 1 | J139: 1
A140: 28 | B140: 2 | C140: 60 | D140: 1 | E140: 0 | F140: 0 | G140: 0.001344999997 | H140: 0.001205000095 | I140: 1 | J140: 1
A141: 28 | B141: 2 | C141: 80 | D141: 1 | E141: 0 | F141: 0 | G141: 0.0006500000018 | H141: 0.001099999994 | I141: 1 | J141: 1
A142: 28 | B142: 3 | C142: 0 | D142: 0 | E142: 8.3238 | F142: 7.339 | G142: 0.004325000104 | H142: 0.01238499954 | I142: 1 | J142: 1
A143: 28 | B143: 3 | C143: 20 | D143: 0 | E143: 7.4643 | F143: 6.7827 | G143: 0.003257500008 | H143: 0.01147999987 | I143: 1 | J143: 1 | K143: Q average value interpolated between 0% and 40% values due to anomolous model results
A144: 28 | B144: 3 | C144: 40 | D144: 0 | E144: 5.8695 | F144: 5.5701 | G144: 0.002189999912 | H144: 0.0105750002 | I144: 1 | J144: 1
A145: 28 | B145: 3 | C145: 60 | D145: 0 | E145: 4.8093 | F145: 4.9107 | G145: 0.001545000006 | H145: 0.009874999523 | I145: 1 | J145: 1
A146: 28 | B146: 3 | C146: 80 | D146: 0 | E146: 3.4952 | F146: 3.342 | G146: 0.0006849999772 | H146: 0.007430000231 | I146: 1 | J146: 1
A147: 28 | B147: 3 | C147: 0 | D147: 1 | E147: 0 | F147: 0 | G147: 0.003765714355 | H147: 0.002520714188 | I147: 1 | J147: 1
A148: 28 | B148: 3 | C148: 20 | D148: 1 | E148: 0 | F148: 0 | G148: 0.002946428489 | H148: 0.00276357145 | I148: 1 | J148: 1
A149: 28 | B149: 3 | C149: 40 | D149: 1 | E149: 0 | F149: 0 | G149: 0.002126428531 | H149: 0.002636428457 | I149: 1 | J149: 1
A150: 28 | B150: 3 | C150: 60 | D150: 1 | E150: 0 | F150: 0 | G150: 0.001214999938 | H150: 0.0009699999937 | I150: 1 | J150: 1
A151: 28 | B151: 3 | C151: 80 | D151: 1 | E151: 0 | F151: 0 | G151: 0.0005149999633 | H151: 0.0008350000135 | I151: 1 | J151: 1
A152: 28 | B152: 4 | C152: 0 | D152: 0 | E152: 7.5499 | F152: 6.8192 | G152: 0.003459999803 | H152: 0.0111999996 | I152: 1 | J152: 1
A153: 28 | B153: 4 | C153: 20 | D153: 0 | E153: 6.8397 | F153: 6.5526 | G153: 0.002572499914 | H153: 0.01024500001 | I153: 1 | J153: 1 | K153: Q average value interpolated between 0% and 40% values due to anomolous model results
A154: 28 | B154: 4 | C154: 40 | D154: 0 | E154: 5.5066 | F154: 5.6975 | G154: 0.001685000025 | H154: 0.009290000424 | I154: 1 | J154: 1
A155: 28 | B155: 4 | C155: 60 | D155: 0 | E155: 4.4896 | F155: 4.7723 | G155: 0.001240000012 | H155: 0.008755000308 | I155: 1 | J155: 1
A156: 28 | B156: 4 | C156: 80 | D156: 0 | E156: 2.0213 | F156: 2.1806 | G156: 0.0005450000172 | H156: 0.006155000068 | I156: 1 | J156: 1
A157: 28 | B157: 4 | C157: 0 | D157: 1 | E157: 0 | F157: 0 | G157: 0.002795000095 | H157: 0.00224000006 | I157: 1 | J157: 1
A158: 28 | B158: 4 | C158: 20 | D158: 1 | E158: 0 | F158: 0 | G158: 0.002113571391 | H158: 0.002427142812 | I158: 1 | J158: 1
A159: 28 | B159: 4 | C159: 40 | D159: 1 | E159: 0 | F159: 0 | G159: 0.001487857196 | H159: 0.002295714337 | I159: 1 | J159: 1
A160: 28 | B160: 4 | C160: 60 | D160: 1 | E160: 0 | F160: 0 | G160: 0.0009850000497 | H160: 0.0009350000182 | I160: 1 | J160: 1
A161: 28 | B161: 4 | C161: 80 | D161: 1 | E161: 0 | F161: 0 | G161: 0.0003700000234 | H161: 0.0007600000245 | I161: 1 | J161: 1
A162: 28 | B162: 5 | C162: 0 | D162: 0 | E162: 7.4287 | F162: 6.0401 | G162: 0.003130000085 | H162: 0.01139999926 | I162: 1 | J162: 1
A163: 28 | B163: 5 | C163: 20 | D163: 0 | E163: 6.5874 | F163: 5.8302 | G163: 0.002275000035 | H163: 0.01024999935 | I163: 1 | J163: 1 | K163: Q average value interpolated between 0% and 40% values due to anomolous model results
A164: 28 | B164: 5 | C164: 40 | D164: 0 | E164: 5.4643 | F164: 5.2828 | G164: 0.001419999986 | H164: 0.009099999443 | I164: 1 | J164: 1
A165: 28 | B165: 5 | C165: 60 | D165: 0 | E165: 4.2843 | F165: 4.0654 | G165: 0.001184999943 | H165: 0.009250000119 | I165: 1 | J165: 1
A166: 28 | B166: 5 | C166: 80 | D166: 0 | E166: 1.8347 | F166: 1.7698 | G166: 0.0005649999948 | H166: 0.007085000165 | I166: 1 | J166: 1
A167: 28 | B167: 5 | C167: 0 | D167: 1 | E167: 0 | F167: 0 | G167: 0.0019107142 | H167: 0.001954999985 | I167: 1 | J167: 1
A168: 28 | B168: 5 | C168: 20 | D168: 1 | E168: 0 | F168: 0 | G168: 0.001428571413 | H168: 0.002060000086 | I168: 1 | J168: 1
A169: 28 | B169: 5 | C169: 40 | D169: 1 | E169: 0 | F169: 0 | G169: 0.001026428537 | H169: 0.001916428562 | I169: 1 | J169: 1
A170: 28 | B170: 5 | C170: 60 | D170: 1 | E170: 0 | F170: 0 | G170: 0.0007650000043 | H170: 0.0007600000245 | I170: 1 | J170: 1
A171: 28 | B171: 5 | C171: 80 | D171: 1 | E171: 0 | F171: 0 | G171: 0.0002950000053 | H171: 0.0006200000062 | I171: 1 | J171: 1
A172: 28 | B172: 6 | C172: 0 | D172: 0 | E172: 7.3606 | F172: 5.8941 | G172: 0.003159999847 | H172: 0.01291999966 | I172: 1 | J172: 1
A173: 28 | B173: 6 | C173: 20 | D173: 0 | E173: 6.636 | F173: 5.5428 | G173: 0.002279999899 | H173: 0.01147999987 | I173: 1 | J173: 1 | K173: Q average value interpolated between 0% and 40% values due to anomolous model results
A174: 28 | B174: 6 | C174: 40 | D174: 0 | E174: 5.6088 | F174: 4.9994 | G174: 0.00139999995 | H174: 0.01004000008 | I174: 1 | J174: 1
A175: 28 | B175: 6 | C175: 60 | D175: 0 | E175: 4.5947 | F175: 4.1775 | G175: 0.001344999997 | H175: 0.01100500021 | I175: 1 | J175: 1
A176: 28 | B176: 6 | C176: 80 | D176: 0 | E176: 1.6674 | F176: 1.4976 | G176: 0.0007050000131 | H176: 0.00916500017 | I176: 1 | J176: 1
A177: 28 | B177: 6 | C177: 0 | D177: 1 | E177: 0 | F177: 0 | G177: 0.001473571407 | H177: 0.001793571515 | I177: 1 | J177: 1
A178: 28 | B178: 6 | C178: 20 | D178: 1 | E178: 0 | F178: 0 | G178: 0.001113571459 | H178: 0.001864285674 | I178: 1 | J178: 1
A179: 28 | B179: 6 | C179: 40 | D179: 1 | E179: 0 | F179: 0 | G179: 0.0008300000336 | H179: 0.001756428508 | I179: 1 | J179: 1
A180: 28 | B180: 6 | C180: 60 | D180: 1 | E180: 0 | F180: 0 | G180: 0.0006799999974 | H180: 0.0006849999772 | I180: 1 | J180: 1
A181: 28 | B181: 6 | C181: 80 | D181: 1 | E181: 0 | F181: 0 | G181: 0.0003000000142 | H181: 0.0008650000091 | I181: 1 | J181: 1
A182: 28 | B182: 7 | C182: 0 | D182: 0 | E182: 7.0898 | F182: 5.6361 | G182: 0.002564999973 | H182: 0.01118000038 | I182: 1 | J182: 1
A183: 28 | B183: 7 | C183: 20 | D183: 0 | E183: 6.4347 | F183: 5.3723 | G183: 0.001805000007 | H183: 0.009702499956 | I183: 1 | J183: 1 | K183: Q average value interpolated between 0% and 40% values due to anomolous model results
A184: 28 | B184: 7 | C184: 40 | D184: 0 | E184: 5.4226 | F184: 4.6404 | G184: 0.001045000041 | H184: 0.008224999532 | I184: 1 | J184: 1
A185: 28 | B185: 7 | C185: 60 | D185: 0 | E185: 2.3395 | F185: 1.9246 | G185: 0.001084999996 | H185: 0.009469999932 | I185: 1 | J185: 1
A186: 28 | B186: 7 | C186: 80 | D186: 0 | E186: 1.6239 | F186: 1.5548 | G186: 0.0005649999948 | H186: 0.007439999841 | I186: 1 | J186: 1
A187: 28 | B187: 7 | C187: 0 | D187: 1 | E187: 0 | F187: 0 | G187: 0.000772142841 | H187: 0.0013528571 | I187: 1 | J187: 1
A188: 28 | B188: 7 | C188: 20 | D188: 1 | E188: 0 | F188: 0 | G188: 0.0005671428517 | H188: 0.001370714279 | I188: 1 | J188: 1
A189: 28 | B189: 7 | C189: 40 | D189: 1 | E189: 0 | F189: 0 | G189: 0.0004450000124 | H189: 0.001310714288 | I189: 1 | J189: 1
A190: 28 | B190: 7 | C190: 60 | D190: 1 | E190: 0 | F190: 0 | G190: 0.0004999999655 | H190: 0.0005750000128 | I190: 1 | J190: 1
A191: 28 | B191: 7 | C191: 80 | D191: 1 | E191: 0 | F191: 0 | G191: 0.0001950000005 | H191: 0.0005100000417 | I191: 1 | J191: 1
A192: 28 | B192: 8 | C192: 0 | D192: 0 | E192: 7.1131 | F192: 5.691 | G192: 0.003285000101 | H192: 0.01318500005 | I192: 1 | J192: 1
A193: 28 | B193: 8 | C193: 20 | D193: 0 | E193: 6.5266 | F193: 5.2491 | G193: 0.002305000089 | H193: 0.0113725001 | I193: 1 | J193: 1 | K193: Q average value interpolated between 0% and 40% values due to anomolous model results
A194: 28 | B194: 8 | C194: 40 | D194: 0 | E194: 5.2577 | F194: 4.4241 | G194: 0.001325000077 | H194: 0.009560000151 | I194: 1 | J194: 1
A195: 28 | B195: 8 | C195: 60 | D195: 0 | E195: 2.1524 | F195: 1.9912 | G195: 0.001440000022 | H195: 0.01126999967 | I195: 1 | J195: 1
A196: 28 | B196: 8 | C196: 80 | D196: 0 | E196: 1.8333 | F196: 1.7239 | G196: 0.0007899999619 | H196: 0.008905000053 | I196: 1 | J196: 1
A197: 28 | B197: 8 | C197: 0 | D197: 1 | E197: 0 | F197: 0 | G197: 0.0007007142995 | H197: 0.001414999948 | I197: 1 | J197: 1
A198: 28 | B198: 8 | C198: 20 | D198: 1 | E198: 0 | F198: 0 | G198: 0.0005678571761 | H198: 0.001472142758 | I198: 1 | J198: 1
A199: 28 | B199: 8 | C199: 40 | D199: 1 | E199: 0 | F199: 0 | G199: 0.0005528571783 | H199: 0.00153499993 | I199: 1 | J199: 1
A200: 28 | B200: 8 | C200: 60 | D200: 1 | E200: 0 | F200: 0 | G200: 0.0004100000078 | H200: 0.0005649999948 | I200: 1 | J200: 1
... 1001 more rows

Sheet Puget West (hidden)
A1: Rainfall | B1: Month | C1: Infiltration | D1: Flow Control | E1: Duration Avg (hr) | F1: Duration SD (hr) | G1: Flow Avg (cfs) | H1: Flow SD (cfs) | I1: Duration Distribution Type | J1: Flow distribution type
A2: 32 | B2: 1 | C2: 0 | D2: 0 | E2: 10.9383 | F2: 10.5502 | G2: 0.00703 | H2: 0.0185 | I2: 1 | J2: 1 | L2: distribution types
A3: 32 | B3: 1 | C3: 20 | D3: 0 | E3: 9.7012 | F3: 9.6502 | G3: 0.005675 | H3: 0.0178 | I3: 1 | J3: 1 | K3: Q average value interpolated between 0% and 40% values due to anomolous model results | L3: 0 - normal
A4: 32 | B4: 1 | C4: 40 | D4: 0 | E4: 7.9442 | F4: 8.1229 | G4: 0.00432 | H4: 0.0171 | I4: 1 | J4: 1 | L4: 1 - log normal
A5: 32 | B5: 1 | C5: 60 | D5: 0 | E5: 6.4236 | F5: 6.537 | G5: 0.00295 | H5: 0.01531 | I5: 1 | J5: 1 | L5: 2 - logistic
A6: 32 | B6: 1 | C6: 80 | D6: 0 | E6: 4.9739 | F6: 4.737 | G6: 0.0015 | H6: 0.01227 | I6: 1 | J6: 1
A7: 32 | B7: 1 | C7: 0 | D7: 1 | E7: 0 | F7: 0 | G7: 0.00551 | H7: 0.00271 | I7: 1 | J7: 1
A8: 32 | B8: 1 | C8: 20 | D8: 1 | E8: 0 | F8: 0 | G8: 0.0044 | H8: 0.00287 | I8: 1 | J8: 1
A9: 32 | B9: 1 | C9: 40 | D9: 1 | E9: 0 | F9: 0 | G9: 0.00332 | H9: 0.00282 | I9: 1 | J9: 1
A10: 32 | B10: 1 | C10: 60 | D10: 1 | E10: 0 | F10: 0 | G10: 0.00228 | H10: 0.00268 | I10: 1 | J10: 1
A11: 32 | B11: 1 | C11: 80 | D11: 1 | E11: 0 | F11: 0 | G11: 0.00115 | H11: 0.00245 | I11: 1 | J11: 1
A12: 32 | B12: 2 | C12: 0 | D12: 0 | E12: 10.5646 | F12: 10.0206 | G12: 0.00639 | H12: 0.01734 | I12: 1 | J12: 1
A13: 32 | B13: 2 | C13: 20 | D13: 0 | E13: 9.3186 | F13: 9.2675 | G13: 0.005105 | H13: 0.01665 | I13: 1 | J13: 1 | K13: Q average value interpolated between 0% and 40% values due to anomolous model results
A14: 32 | B14: 2 | C14: 40 | D14: 0 | E14: 7.5327 | F14: 8.0864 | G14: 0.00382 | H14: 0.01596 | I14: 1 | J14: 1
A15: 32 | B15: 2 | C15: 60 | D15: 0 | E15: 6.1069 | F15: 6.6508 | G15: 0.00257 | H15: 0.0143 | I15: 1 | J15: 1
A16: 32 | B16: 2 | C16: 80 | D16: 0 | E16: 4.9512 | F16: 5.6636 | G16: 0.00129 | H16: 0.01124 | I16: 1 | J16: 1
A17: 32 | B17: 2 | C17: 0 | D17: 1 | E17: 0 | F17: 0 | G17: 0.00505 | H17: 0.00253 | I17: 1 | J17: 1
A18: 32 | B18: 2 | C18: 20 | D18: 1 | E18: 0 | F18: 0 | G18: 0.00395 | H18: 0.00272 | I18: 1 | J18: 1
A19: 32 | B19: 2 | C19: 40 | D19: 1 | E19: 0 | F19: 0 | G19: 0.00292 | H19: 0.00272 | I19: 1 | J19: 1
A20: 32 | B20: 2 | C20: 60 | D20: 1 | E20: 0 | F20: 0 | G20: 0.00193 | H20: 0.0026 | I20: 1 | J20: 1
A21: 32 | B21: 2 | C21: 80 | D21: 1 | E21: 0 | F21: 0 | G21: 0.00096 | H21: 0.00241 | I21: 1 | J21: 1
A22: 32 | B22: 3 | C22: 0 | D22: 0 | E22: 9.1109 | F22: 8.5192 | G22: 0.00495 | H22: 0.01401 | I22: 1 | J22: 1
A23: 32 | B23: 3 | C23: 20 | D23: 0 | E23: 7.9259 | F23: 7.6924 | G23: 0.00383 | H23: 0.01336 | I23: 1 | J23: 1 | K23: Q average value interpolated between 0% and 40% values due to anomolous model results
A24: 32 | B24: 3 | C24: 40 | D24: 0 | E24: 6.3682 | F24: 6.6412 | G24: 0.00271 | H24: 0.01271 | I24: 1 | J24: 1
A25: 32 | B25: 3 | C25: 60 | D25: 0 | E25: 5.104 | F25: 5.4597 | G25: 0.00168 | H25: 0.01089 | I25: 1 | J25: 1
A26: 32 | B26: 3 | C26: 80 | D26: 0 | E26: 3.9085 | F26: 4.5256 | G26: 0.0007 | H26: 0.00794 | I26: 1 | J26: 1
A27: 32 | B27: 3 | C27: 0 | D27: 1 | E27: 0 | F27: 0 | G27: 0.0042 | H27: 0.00215 | I27: 1 | J27: 1
A28: 32 | B28: 3 | C28: 20 | D28: 1 | E28: 0 | F28: 0 | G28: 0.00307 | H28: 0.00221 | I28: 1 | J28: 1
A29: 32 | B29: 3 | C29: 40 | D29: 1 | E29: 0 | F29: 0 | G29: 0.0021 | H29: 0.00209 | I29: 1 | J29: 1
A30: 32 | B30: 3 | C30: 60 | D30: 1 | E30: 0 | F30: 0 | G30: 0.00125 | H30: 0.00184 | I30: 1 | J30: 1
A31: 32 | B31: 3 | C31: 80 | D31: 1 | E31: 0 | F31: 0 | G31: 0.0005 | H31: 0.0015 | I31: 1 | J31: 1
A32: 32 | B32: 4 | C32: 0 | D32: 0 | E32: 7.7404 | F32: 6.8893 | G32: 0.00337 | H32: 0.01162 | I32: 1 | J32: 1
A33: 32 | B33: 4 | C33: 20 | D33: 0 | E33: 6.7882 | F33: 6.5349 | G33: 0.00255 | H33: 0.01101 | I33: 1 | J33: 1 | K33: Q average value interpolated between 0% and 40% values due to anomolous model results
A34: 32 | B34: 4 | C34: 40 | D34: 0 | E34: 5.2703 | F34: 5.3743 | G34: 0.00173 | H34: 0.0104 | I34: 1 | J34: 1
A35: 32 | B35: 4 | C35: 60 | D35: 0 | E35: 4.2654 | F35: 4.7683 | G35: 0.00104 | H35: 0.00903 | I35: 1 | J35: 1
A36: 32 | B36: 4 | C36: 80 | D36: 0 | E36: 3.4667 | F36: 3.7986 | G36: 0.00045 | H36: 0.00654 | I36: 1 | J36: 1
A37: 32 | B37: 4 | C37: 0 | D37: 1 | E37: 0 | F37: 0 | G37: 0.0028 | H37: 0.00179 | I37: 1 | J37: 1
A38: 32 | B38: 4 | C38: 20 | D38: 1 | E38: 0 | F38: 0 | G38: 0.00185 | H38: 0.00177 | I38: 1 | J38: 1
A39: 32 | B39: 4 | C39: 40 | D39: 1 | E39: 0 | F39: 0 | G39: 0.00122 | H39: 0.00166 | I39: 1 | J39: 1
A40: 32 | B40: 4 | C40: 60 | D40: 1 | E40: 0 | F40: 0 | G40: 0.00071 | H40: 0.00148 | I40: 1 | J40: 1
A41: 32 | B41: 4 | C41: 80 | D41: 1 | E41: 0 | F41: 0 | G41: 0.00029 | H41: 0.00124 | I41: 1 | J41: 1
A42: 32 | B42: 5 | C42: 0 | D42: 0 | E42: 7.4045 | F42: 6.5356 | G42: 0.00297 | H42: 0.01126 | I42: 1 | J42: 1
A43: 32 | B43: 5 | C43: 20 | D43: 0 | E43: 6.3168 | F43: 6.1836 | G43: 0.002255 | H43: 0.01073 | I43: 1 | J43: 1 | K43: Q average value interpolated between 0% and 40% values due to anomolous model results
A44: 32 | B44: 5 | C44: 40 | D44: 0 | E44: 5.3596 | F44: 5.7314 | G44: 0.00154 | H44: 0.0102 | I44: 1 | J44: 1
A45: 32 | B45: 5 | C45: 60 | D45: 0 | E45: 4.4172 | F45: 4.4405 | G45: 0.00094 | H45: 0.00888 | I45: 1 | J45: 1
A46: 32 | B46: 5 | C46: 80 | D46: 0 | E46: 3.35 | F46: 3.1848 | G46: 0.00039 | H46: 0.00639 | I46: 1 | J46: 1
A47: 32 | B47: 5 | C47: 0 | D47: 1 | E47: 0 | F47: 0 | G47: 0.00159 | H47: 0.00143 | I47: 1 | J47: 1
A48: 32 | B48: 5 | C48: 20 | D48: 1 | E48: 0 | F48: 0 | G48: 0.00108 | H48: 0.00137 | I48: 1 | J48: 1
A49: 32 | B49: 5 | C49: 40 | D49: 1 | E49: 0 | F49: 0 | G49: 0.00073 | H49: 0.00124 | I49: 1 | J49: 1
A50: 32 | B50: 5 | C50: 60 | D50: 1 | E50: 0 | F50: 0 | G50: 0.00044 | H50: 0.00105 | I50: 1 | J50: 1
A51: 32 | B51: 5 | C51: 80 | D51: 1 | E51: 0 | F51: 0 | G51: 0.00018 | H51: 0.0008 | I51: 1 | J51: 1
A52: 32 | B52: 6 | C52: 0 | D52: 0 | E52: 6.9976 | F52: 5.1253 | G52: 0.00282 | H52: 0.0131 | I52: 1 | J52: 1
A53: 32 | B53: 6 | C53: 20 | D53: 0 | E53: 6.3035 | F53: 5.0149 | G53: 0.002215 | H53: 0.01262 | I53: 1 | J53: 1 | K53: Q average value interpolated between 0% and 40% values due to anomolous model results
A54: 32 | B54: 6 | C54: 40 | D54: 0 | E54: 4.711 | F54: 4.1323 | G54: 0.00161 | H54: 0.01214 | I54: 1 | J54: 1
A55: 32 | B55: 6 | C55: 60 | D55: 0 | E55: 4.0333 | F55: 4.0051 | G55: 0.00107 | H55: 0.01096 | I55: 1 | J55: 1
A56: 32 | B56: 6 | C56: 80 | D56: 0 | E56: 3.2435 | F56: 3.7125 | G56: 0.00052 | H56: 0.00906 | I56: 1 | J56: 1
A57: 32 | B57: 6 | C57: 0 | D57: 1 | E57: 0 | F57: 0 | G57: 0.00118 | H57: 0.00132 | I57: 1 | J57: 1
A58: 32 | B58: 6 | C58: 20 | D58: 1 | E58: 0 | F58: 0 | G58: 0.00089 | H58: 0.00131 | I58: 1 | J58: 1
A59: 32 | B59: 6 | C59: 40 | D59: 1 | E59: 0 | F59: 0 | G59: 0.00064 | H59: 0.00121 | I59: 1 | J59: 1
A60: 32 | B60: 6 | C60: 60 | D60: 1 | E60: 0 | F60: 0 | G60: 0.00042 | H60: 0.00108 | I60: 1 | J60: 1
A61: 32 | B61: 6 | C61: 80 | D61: 1 | E61: 0 | F61: 0 | G61: 0.0002 | H61: 0.00091 | I61: 1 | J61: 1
A62: 32 | B62: 7 | C62: 0 | D62: 0 | E62: 6.86 | F62: 5.2333 | G62: 0.00231 | H62: 0.01157 | I62: 1 | J62: 1
A63: 32 | B63: 7 | C63: 20 | D63: 0 | E63: 5.9436 | F63: 4.9275 | G63: 0.001815 | H63: 0.011125 | I63: 1 | J63: 1 | K63: Q average value interpolated between 0% and 40% values due to anomolous model results
A64: 32 | B64: 7 | C64: 40 | D64: 0 | E64: 5.1351 | F64: 4.4701 | G64: 0.00132 | H64: 0.01068 | I64: 1 | J64: 1
A65: 32 | B65: 7 | C65: 60 | D65: 0 | E65: 4.2661 | F65: 4.1514 | G65: 0.0009 | H65: 0.00965 | I65: 1 | J65: 1
A66: 32 | B66: 7 | C66: 80 | D66: 0 | E66: 0 | F66: 0 | G66: 0.00044 | H66: 0.00771 | I66: 1 | J66: 1
A67: 32 | B67: 7 | C67: 0 | D67: 1 | E67: 0 | F67: 0 | G67: 0.00063 | H67: 0.00103 | I67: 1 | J67: 1
A68: 32 | B68: 7 | C68: 20 | D68: 1 | E68: 0 | F68: 0 | G68: 0.00047 | H68: 0.001 | I68: 1 | J68: 1
A69: 32 | B69: 7 | C69: 40 | D69: 1 | E69: 0 | F69: 0 | G69: 0.00034 | H69: 0.00092 | I69: 1 | J69: 1
A70: 32 | B70: 7 | C70: 60 | D70: 1 | E70: 0 | F70: 0 | G70: 0.00023 | H70: 0.00082 | I70: 1 | J70: 1
A71: 32 | B71: 7 | C71: 80 | D71: 1 | E71: 0 | F71: 0 | G71: 0.00012 | H71: 0.00072 | I71: 1 | J71: 1
A72: 32 | B72: 8 | C72: 0 | D72: 0 | E72: 6.9481 | F72: 6.3214 | G72: 0.00319 | H72: 0.01356 | I72: 1 | J72: 1
A73: 32 | B73: 8 | C73: 20 | D73: 0 | E73: 6.3062 | F73: 6.1057 | G73: 0.002515 | H73: 0.013115 | I73: 1 | J73: 1 | K73: Q average value interpolated between 0% and 40% values due to anomolous model results
A74: 32 | B74: 8 | C74: 40 | D74: 0 | E74: 5.1505 | F74: 5.3603 | G74: 0.00184 | H74: 0.01267 | I74: 1 | J74: 1
A75: 32 | B75: 8 | C75: 60 | D75: 0 | E75: 4.5248 | F75: 5.1666 | G75: 0.00125 | H75: 0.01146 | I75: 1 | J75: 1
A76: 32 | B76: 8 | C76: 80 | D76: 0 | E76: 0 | F76: 0 | G76: 0.00064 | H76: 0.00931 | I76: 1 | J76: 1
A77: 32 | B77: 8 | C77: 0 | D77: 1 | E77: 0 | F77: 0 | G77: 0.00049 | H77: 0.001 | I77: 1 | J77: 1
A78: 32 | B78: 8 | C78: 20 | D78: 1 | E78: 0 | F78: 0 | G78: 0.00039 | H78: 0.00099 | I78: 1 | J78: 1
A79: 32 | B79: 8 | C79: 40 | D79: 1 | E79: 0 | F79: 0 | G79: 0.0003 | H79: 0.00094 | I79: 1 | J79: 1
A80: 32 | B80: 8 | C80: 60 | D80: 1 | E80: 0 | F80: 0 | G80: 0.00022 | H80: 0.00087 | I80: 1 | J80: 1
A81: 32 | B81: 8 | C81: 80 | D81: 1 | E81: 0 | F81: 0 | G81: 0.00015 | H81: 0.00084 | I81: 1 | J81: 1
A82: 32 | B82: 9 | C82: 0 | D82: 0 | E82: 8.0137 | F82: 7.0812 | G82: 0.00389 | H82: 0.01519 | I82: 1 | J82: 1
A83: 32 | B83: 9 | C83: 20 | D83: 0 | E83: 7.1616 | F83: 6.3087 | G83: 0.0031 | H83: 0.01471 | I83: 1 | J83: 1 | K83: Q average value interpolated between 0% and 40% values due to anomolous model results
A84: 32 | B84: 9 | C84: 40 | D84: 0 | E84: 5.6906 | F84: 5.5433 | G84: 0.00231 | H84: 0.01423 | I84: 1 | J84: 1
A85: 32 | B85: 9 | C85: 60 | D85: 0 | E85: 4.6833 | F85: 4.468 | G85: 0.00158 | H85: 0.01317 | I85: 1 | J85: 1
A86: 32 | B86: 9 | C86: 80 | D86: 0 | E86: 3.1676 | F86: 2.9943 | G86: 0.00082 | H86: 0.0107 | I86: 1 | J86: 1
A87: 32 | B87: 9 | C87: 0 | D87: 1 | E87: 0 | F87: 0 | G87: 0.00128 | H87: 0.0015 | I87: 1 | J87: 1
A88: 32 | B88: 9 | C88: 20 | D88: 1 | E88: 0 | F88: 0 | G88: 0.00105 | H88: 0.00152 | I88: 1 | J88: 1
A89: 32 | B89: 9 | C89: 40 | D89: 1 | E89: 0 | F89: 0 | G89: 0.00082 | H89: 0.00143 | I89: 1 | J89: 1
A90: 32 | B90: 9 | C90: 60 | D90: 1 | E90: 0 | F90: 0 | G90: 0.00058 | H90: 0.0013 | I90: 1 | J90: 1
A91: 32 | B91: 9 | C91: 80 | D91: 1 | E91: 0 | F91: 0 | G91: 0.00033 | H91: 0.00116 | I91: 1 | J91: 1
A92: 32 | B92: 10 | C92: 0 | D92: 0 | E92: 9.0045 | F92: 8.4887 | G92: 0.0056 | H92: 0.01761 | I92: 1 | J92: 1
A93: 32 | B93: 10 | C93: 20 | D93: 0 | E93: 8.0975 | F93: 7.7835 | G93: 0.00451 | H93: 0.01703 | I93: 1 | J93: 1 | K93: Q average value interpolated between 0% and 40% values due to anomolous model results
A94: 32 | B94: 10 | C94: 40 | D94: 0 | E94: 6.5267 | F94: 6.5172 | G94: 0.00342 | H94: 0.01645 | I94: 1 | J94: 1
A95: 32 | B95: 10 | C95: 60 | D95: 0 | E95: 5.2442 | F95: 5.324 | G95: 0.00236 | H95: 0.01503 | I95: 1 | J95: 1
A96: 32 | B96: 10 | C96: 80 | D96: 0 | E96: 4.2521 | F96: 4.4508 | G96: 0.00124 | H96: 0.01211 | I96: 1 | J96: 1
A97: 32 | B97: 10 | C97: 0 | D97: 1 | E97: 0 | F97: 0 | G97: 0.00244 | H97: 0.00203 | I97: 1 | J97: 1
A98: 32 | B98: 10 | C98: 20 | D98: 1 | E98: 0 | F98: 0 | G98: 0.00212 | H98: 0.00218 | I98: 1 | J98: 1
A99: 32 | B99: 10 | C99: 40 | D99: 1 | E99: 0 | F99: 0 | G99: 0.00172 | H99: 0.00215 | I99: 1 | J99: 1
A100: 32 | B100: 10 | C100: 60 | D100: 1 | E100: 0 | F100: 0 | G100: 0.00126 | H100: 0.00206 | I100: 1 | J100: 1
A101: 32 | B101: 10 | C101: 80 | D101: 1 | E101: 0 | F101: 0 | G101: 0.00072 | H101: 0.00199 | I101: 1 | J101: 1
A102: 32 | B102: 11 | C102: 0 | D102: 0 | E102: 10.2787 | F102: 9.6969 | G102: 0.0073 | H102: 0.01996 | I102: 1 | J102: 1
A103: 32 | B103: 11 | C103: 20 | D103: 0 | E103: 9.0987 | F103: 8.9763 | G103: 0.00594 | H103: 0.01931 | I103: 1 | J103: 1 | K103: Q average value interpolated between 0% and 40% values due to anomolous model results
A104: 32 | B104: 11 | C104: 40 | D104: 0 | E104: 7.4751 | F104: 7.411 | G104: 0.00458 | H104: 0.01866 | I104: 1 | J104: 1
A105: 32 | B105: 11 | C105: 60 | D105: 0 | E105: 6.0778 | F105: 6.1911 | G105: 0.00321 | H105: 0.01702 | I105: 1 | J105: 1
A106: 32 | B106: 11 | C106: 80 | D106: 0 | E106: 4.9495 | F106: 5.0931 | G106: 0.00173 | H106: 0.01402 | I106: 1 | J106: 1
A107: 32 | B107: 11 | C107: 0 | D107: 1 | E107: 0 | F107: 0 | G107: 0.00472 | H107: 0.00237 | I107: 1 | J107: 1
A108: 32 | B108: 11 | C108: 20 | D108: 1 | E108: 0 | F108: 0 | G108: 0.00419 | H108: 0.00275 | I108: 1 | J108: 1
A109: 32 | B109: 11 | C109: 40 | D109: 1 | E109: 0 | F109: 0 | G109: 0.0034 | H109: 0.00284 | I109: 1 | J109: 1
A110: 32 | B110: 11 | C110: 60 | D110: 1 | E110: 0 | F110: 0 | G110: 0.00248 | H110: 0.00281 | I110: 1 | J110: 1
A111: 32 | B111: 11 | C111: 80 | D111: 1 | E111: 0 | F111: 0 | G111: 0.00141 | H111: 0.00285 | I111: 1 | J111: 1
A112: 32 | B112: 12 | C112: 0 | D112: 0 | E112: 11.104 | F112: 10.5693 | G112: 0.00721 | H112: 0.01879 | I112: 1 | J112: 1
A113: 32 | B113: 12 | C113: 20 | D113: 0 | E113: 9.9471 | F113: 9.7491 | G113: 0.005835 | H113: 0.018105 | I113: 1 | J113: 1 | K113: Q average value interpolated between 0% and 40% values due to anomolous model results
A114: 32 | B114: 12 | C114: 40 | D114: 0 | E114: 8.0412 | F114: 8.2218 | G114: 0.00446 | H114: 0.01742 | I114: 1 | J114: 1
A115: 32 | B115: 12 | C115: 60 | D115: 0 | E115: 6.564 | F115: 6.9926 | G115: 0.00307 | H115: 0.01569 | I115: 1 | J115: 1
A116: 32 | B116: 12 | C116: 80 | D116: 0 | E116: 5.1884 | F116: 4.9277 | G116: 0.0016 | H116: 0.01255 | I116: 1 | J116: 1
A117: 32 | B117: 12 | C117: 0 | D117: 1 | E117: 0 | F117: 0 | G117: 0.00586 | H117: 0.00263 | I117: 1 | J117: 1
A118: 32 | B118: 12 | C118: 20 | D118: 1 | E118: 0 | F118: 0 | G118: 0.00498 | H118: 0.00291 | I118: 1 | J118: 1
A119: 32 | B119: 12 | C119: 40 | D119: 1 | E119: 0 | F119: 0 | G119: 0.00386 | H119: 0.00297 | I119: 1 | J119: 1
A120: 32 | B120: 12 | C120: 60 | D120: 1 | E120: 0 | F120: 0 | G120: 0.00262 | H120: 0.0029 | I120: 1 | J120: 1
A121: 32 | B121: 12 | C121: 80 | D121: 1 | E121: 0 | F121: 0 | G121: 0.00133 | H121: 0.00271 | I121: 1 | J121: 1
A122: 36 | B122: 1 | C122: 0 | D122: 0 | E122: 11.4591 | F122: 11.0615 | G122: 0.008089999668 | H122: 0.02077000029 | I122: 1 | J122: 1
A123: 36 | B123: 1 | C123: 20 | D123: 0 | E123: 10.0278 | F123: 9.9974 | G123: 0.006551666418 | H123: 0.01998333354 | I123: 1 | J123: 1 | K123: Q average value interpolated between 0% and 40% values due to anomolous model results
A124: 36 | B124: 1 | C124: 40 | D124: 0 | E124: 8.0802 | F124: 8.296 | G124: 0.005013333168 | H124: 0.01919666678 | I124: 1 | J124: 1
A125: 36 | B125: 1 | C125: 60 | D125: 0 | E125: 6.5149 | F125: 6.6028 | G125: 0.003420000197 | H125: 0.01710333303 | I125: 1 | J125: 1
A126: 36 | B126: 1 | C126: 80 | D126: 0 | E126: 5.0482 | F126: 4.7779 | G126: 0.001730000018 | H126: 0.01351999957 | I126: 1 | J126: 1
A127: 36 | B127: 1 | C127: 0 | D127: 1 | E127: 62.4992 | F127: 66.0787 | G127: 0.006370000076 | H127: 0.003569999943 | I127: 1 | J127: 1
A128: 36 | B128: 1 | C128: 20 | D128: 1 | E128: 37.8629 | F128: 41.9596 | G128: 0.00512333354 | H128: 0.003770000068 | I128: 1 | J128: 1
A129: 36 | B129: 1 | C129: 40 | D129: 1 | E129: 26.2711 | F129: 29.8192 | G129: 0.003903333331 | H129: 0.003680000082 | I129: 1 | J129: 1
A130: 36 | B130: 1 | C130: 60 | D130: 1 | E130: 17.741 | F130: 17.5981 | G130: 0.002666666638 | H130: 0.003499999875 | I130: 1 | J130: 1
A131: 36 | B131: 1 | C131: 80 | D131: 1 | E131: 9.4721 | F131: 8.6456 | G131: 0.001339999959 | H131: 0.003156666644 | I131: 1 | J131: 1
A132: 36 | B132: 2 | C132: 0 | D132: 0 | E132: 10.9335 | F132: 10.4938 | G132: 0.007226666901 | H132: 0.01934000105 | I132: 1 | J132: 1
A133: 36 | B133: 2 | C133: 20 | D133: 0 | E133: 9.5842 | F133: 9.5413 | G133: 0.005783333443 | H133: 0.01855833363 | I133: 1 | J133: 1 | K133: Q average value interpolated between 0% and 40% values due to anomolous model results
A134: 36 | B134: 2 | C134: 40 | D134: 0 | E134: 7.7027 | F134: 8.1826 | G134: 0.004339999985 | H134: 0.01777666621 | I134: 1 | J134: 1
A135: 36 | B135: 2 | C135: 60 | D135: 0 | E135: 6.1855 | F135: 6.7229 | G135: 0.002910000039 | H135: 0.01587333344 | I135: 1 | J135: 1
A136: 36 | B136: 2 | C136: 80 | D136: 0 | E136: 4.9513 | F136: 5.6896 | G136: 0.001453333418 | H136: 0.01232666615 | I136: 1 | J136: 1
A137: 36 | B137: 2 | C137: 0 | D137: 1 | E137: 53.1537 | F137: 62.7156 | G137: 0.005713333376 | H137: 0.003369999817 | I137: 1 | J137: 1
A138: 36 | B138: 2 | C138: 20 | D138: 1 | E138: 34.6402 | F138: 39.358 | G138: 0.004483333323 | H138: 0.003569999943 | I138: 1 | J138: 1
A139: 36 | B139: 2 | C139: 40 | D139: 1 | E139: 25.6835 | F139: 27.78 | G139: 0.00333666685 | H139: 0.003523333231 | I139: 1 | J139: 1
A140: 36 | B140: 2 | C140: 60 | D140: 1 | E140: 16.9962 | F140: 17.685 | G140: 0.002210000064 | H140: 0.003373333486 | I140: 1 | J140: 1
A141: 36 | B141: 2 | C141: 80 | D141: 1 | E141: 9.236 | F141: 8.601 | G141: 0.001099999994 | H141: 0.003073333297 | I141: 1 | J141: 1
A142: 36 | B142: 3 | C142: 0 | D142: 0 | E142: 9.4968 | F142: 8.9127 | G142: 0.005539999809 | H142: 0.01559333317 | I142: 1 | J142: 1
A143: 36 | B143: 3 | C143: 20 | D143: 0 | E143: 8.1304 | F143: 7.9919 | G143: 0.004289999837 | H143: 0.01484333351 | I143: 1 | J143: 1 | K143: Q average value interpolated between 0% and 40% values due to anomolous model results
A144: 36 | B144: 3 | C144: 40 | D144: 0 | E144: 6.4779 | F144: 6.8004 | G144: 0.003039999865 | H144: 0.01409333386 | I144: 1 | J144: 1
A145: 36 | B145: 3 | C145: 60 | D145: 0 | E145: 5.1579 | F145: 5.508 | G145: 0.001876666676 | H145: 0.01207000017 | I145: 1 | J145: 1
A146: 36 | B146: 3 | C146: 80 | D146: 0 | E146: 3.9515 | F146: 4.5932 | G146: 0.000783333322 | H146: 0.008666666225 | I146: 1 | J146: 1
A147: 36 | B147: 3 | C147: 0 | D147: 1 | E147: 31.4741 | F147: 32.4835 | G147: 0.004596666433 | H147: 0.002813333413 | I147: 1 | J147: 1
A148: 36 | B148: 3 | C148: 20 | D148: 1 | E148: 24.553 | F148: 24.8221 | G148: 0.003386666765 | H148: 0.002839999972 | I148: 1 | J148: 1
A149: 36 | B149: 3 | C149: 40 | D149: 1 | E149: 17.0259 | F149: 17.9193 | G149: 0.002343333326 | H149: 0.002659999998 | I149: 1 | J149: 1
A150: 36 | B150: 3 | C150: 60 | D150: 1 | E150: 0 | F150: 0 | G150: 0.00140333327 | H150: 0.002366666682 | I150: 1 | J150: 1
A151: 36 | B151: 3 | C151: 80 | D151: 1 | E151: 0 | F151: 0 | G151: 0.0005700000329 | H151: 0.001946666627 | I151: 1 | J151: 1
A152: 36 | B152: 4 | C152: 0 | D152: 0 | E152: 7.9857 | F152: 7.1805 | G152: 0.003756666789 | H152: 0.01284333318 | I152: 1 | J152: 1
A153: 36 | B153: 4 | C153: 20 | D153: 0 | E153: 6.9122 | F153: 6.7164 | G153: 0.00283666671 | H153: 0.01214999985 | I153: 1 | J153: 1 | K153: Q average value interpolated between 0% and 40% values due to anomolous model results
A154: 36 | B154: 4 | C154: 40 | D154: 0 | E154: 5.3215 | F154: 5.4494 | G154: 0.001916666632 | H154: 0.01145666651 | I154: 1 | J154: 1
A155: 36 | B155: 4 | C155: 60 | D155: 0 | E155: 4.2833 | F155: 4.7848 | G155: 0.001143333386 | H155: 0.009913333692 | I155: 1 | J155: 1
A156: 36 | B156: 4 | C156: 80 | D156: 0 | E156: 3.4804 | F156: 3.8966 | G156: 0.0004900000058 | H156: 0.007073333021 | I156: 1 | J156: 1
A157: 36 | B157: 4 | C157: 0 | D157: 1 | E157: 0 | F157: 0 | G157: 0.00298999995 | H157: 0.002300000051 | I157: 1 | J157: 1
A158: 36 | B158: 4 | C158: 20 | D158: 1 | E158: 0 | F158: 0 | G158: 0.002033333294 | H158: 0.002266666619 | I158: 1 | J158: 1
A159: 36 | B159: 4 | C159: 40 | D159: 1 | E159: 0 | F159: 0 | G159: 0.001356666675 | H159: 0.002103333361 | I159: 1 | J159: 1
A160: 36 | B160: 4 | C160: 60 | D160: 1 | E160: 0 | F160: 0 | G160: 0.0007866666419 | H160: 0.001873333356 | I160: 1 | J160: 1
A161: 36 | B161: 4 | C161: 80 | D161: 1 | E161: 0 | F161: 0 | G161: 0.0003233333409 | H161: 0.001566666644 | I161: 1 | J161: 1
A162: 36 | B162: 5 | C162: 0 | D162: 0 | E162: 7.5877 | F162: 6.7366 | G162: 0.003273333423 | H162: 0.01236333326 | I162: 1 | J162: 1
A163: 36 | B163: 5 | C163: 20 | D163: 0 | E163: 6.5097 | F163: 6.4124 | G163: 0.002483333403 | H163: 0.01175333327 | I163: 1 | J163: 1 | K163: Q average value interpolated between 0% and 40% values due to anomolous model results
A164: 36 | B164: 5 | C164: 40 | D164: 0 | E164: 5.3276 | F164: 5.7226 | G164: 0.001693333383 | H164: 0.01114333328 | I164: 1 | J164: 1
A165: 36 | B165: 5 | C165: 60 | D165: 0 | E165: 4.4682 | F165: 4.561 | G165: 0.001019999967 | H165: 0.009619999677 | I165: 1 | J165: 1
A166: 36 | B166: 5 | C166: 80 | D166: 0 | E166: 3.3879 | F166: 3.2752 | G166: 0.0004233333457 | H166: 0.00689000031 | I166: 1 | J166: 1
A167: 36 | B167: 5 | C167: 0 | D167: 1 | E167: 0 | F167: 0 | G167: 0.001743333298 | H167: 0.001833333285 | I167: 1 | J167: 1
A168: 36 | B168: 5 | C168: 20 | D168: 1 | E168: 0 | F168: 0 | G168: 0.001219999976 | H168: 0.001746666618 | I168: 1 | J168: 1
A169: 36 | B169: 5 | C169: 40 | D169: 1 | E169: 0 | F169: 0 | G169: 0.0008333333535 | H169: 0.0015733334 | I169: 1 | J169: 1
A170: 36 | B170: 5 | C170: 60 | D170: 1 | E170: 0 | F170: 0 | G170: 0.0004966666456 | H170: 0.001343333279 | I170: 1 | J170: 1
A171: 36 | B171: 5 | C171: 80 | D171: 1 | E171: 0 | F171: 0 | G171: 0.0002099999983 | H171: 0.001049999963 | I171: 1 | J171: 1
A172: 36 | B172: 6 | C172: 0 | D172: 0 | E172: 7.1719 | F172: 5.3897 | G172: 0.003109999932 | H172: 0.01422999986 | I172: 1 | J172: 1
A173: 36 | B173: 6 | C173: 20 | D173: 0 | E173: 6.3793 | F173: 5.152 | G173: 0.002436666633 | H173: 0.01368333353 | I173: 1 | J173: 1 | K173: Q average value interpolated between 0% and 40% values due to anomolous model results
A174: 36 | B174: 6 | C174: 40 | D174: 0 | E174: 4.8434 | F174: 4.2105 | G174: 0.001763333334 | H174: 0.0131366672 | I174: 1 | J174: 1
A175: 36 | B175: 6 | C175: 60 | D175: 0 | E175: 4.0286 | F175: 3.873 | G175: 0.001156666665 | H175: 0.01173333265 | I175: 1 | J175: 1
A176: 36 | B176: 6 | C176: 80 | D176: 0 | E176: 3.2599 | F176: 3.7132 | G176: 0.0005533333169 | H176: 0.009633333422 | I176: 1 | J176: 1
A177: 36 | B177: 6 | C177: 0 | D177: 1 | E177: 0 | F177: 0 | G177: 0.001333333319 | H177: 0.001703333342 | I177: 1 | J177: 1
A178: 36 | B178: 6 | C178: 20 | D178: 1 | E178: 0 | F178: 0 | G178: 0.001003333367 | H178: 0.001659999951 | I178: 1 | J178: 1
A179: 36 | B179: 6 | C179: 40 | D179: 1 | E179: 0 | F179: 0 | G179: 0.0007266666507 | H179: 0.001526666689 | I179: 1 | J179: 1
A180: 36 | B180: 6 | C180: 60 | D180: 1 | E180: 0 | F180: 0 | G180: 0.000476666668 | H180: 0.001369999954 | I180: 1 | J180: 1
A181: 36 | B181: 6 | C181: 80 | D181: 1 | E181: 0 | F181: 0 | G181: 0.0002333333396 | H181: 0.001196666621 | I181: 1 | J181: 1
A182: 36 | B182: 7 | C182: 0 | D182: 0 | E182: 6.9972 | F182: 5.371 | G182: 0.00252999994 | H182: 0.01257333346 | I182: 1 | J182: 1
A183: 36 | B183: 7 | C183: 20 | D183: 0 | E183: 6.0019 | F183: 5.0763 | G183: 0.001981666661 | H183: 0.01207000017 | I183: 1 | J183: 1 | K183: Q average value interpolated between 0% and 40% values due to anomolous model results
A184: 36 | B184: 7 | C184: 40 | D184: 0 | E184: 5.0809 | F184: 4.5315 | G184: 0.001433333382 | H184: 0.01156666689 | I184: 1 | J184: 1
A185: 36 | B185: 7 | C185: 60 | D185: 0 | E185: 4.2457 | F185: 4.1522 | G185: 0.0009666666738 | H185: 0.01032333355 | I185: 1 | J185: 1
A186: 36 | B186: 7 | C186: 80 | D186: 0 | E186: 0 | F186: 0 | G186: 0.0004666666791 | H186: 0.008216666989 | I186: 1 | J186: 1
A187: 36 | B187: 7 | C187: 0 | D187: 1 | E187: 0 | F187: 0 | G187: 0.0007000000332 | H187: 0.001296666684 | I187: 1 | J187: 1
A188: 36 | B188: 7 | C188: 20 | D188: 1 | E188: 0 | F188: 0 | G188: 0.0005233333213 | H188: 0.001243333332 | I188: 1 | J188: 1
A189: 36 | B189: 7 | C189: 40 | D189: 1 | E189: 0 | F189: 0 | G189: 0.0003833333321 | H189: 0.001146666706 | I189: 1 | J189: 1
A190: 36 | B190: 7 | C190: 60 | D190: 1 | E190: 0 | F190: 0 | G190: 0.0002600000007 | H190: 0.001043333323 | I190: 1 | J190: 1
A191: 36 | B191: 7 | C191: 80 | D191: 1 | E191: 0 | F191: 0 | G191: 0.0001433333382 | H191: 0.000950000016 | I191: 1 | J191: 1
A192: 36 | B192: 8 | C192: 0 | D192: 0 | E192: 7.0532 | F192: 6.3985 | G192: 0.003480000189 | H192: 0.01471333299 | I192: 1 | J192: 1
A193: 36 | B193: 8 | C193: 20 | D193: 0 | E193: 6.3156 | F193: 6.1618 | G193: 0.002733333386 | H193: 0.01421333291 | I193: 1 | J193: 1 | K193: Q average value interpolated between 0% and 40% values due to anomolous model results
A194: 36 | B194: 8 | C194: 40 | D194: 0 | E194: 5.1361 | F194: 5.4327 | G194: 0.001986666583 | H194: 0.01371333282 | I194: 1 | J194: 1
A195: 36 | B195: 8 | C195: 60 | D195: 0 | E195: 4.4744 | F195: 5.0897 | G195: 0.001333333319 | H195: 0.01229333319 | I195: 1 | J195: 1
A196: 36 | B196: 8 | C196: 80 | D196: 0 | E196: 0 | F196: 0 | G196: 0.0006699999794 | H196: 0.009859999642 | I196: 1 | J196: 1
A197: 36 | B197: 8 | C197: 0 | D197: 1 | E197: 0 | F197: 0 | G197: 0.0005933333305 | H197: 0.00131666672 | I197: 1 | J197: 1
A198: 36 | B198: 8 | C198: 20 | D198: 1 | E198: 0 | F198: 0 | G198: 0.000476666668 | H198: 0.001303333323 | I198: 1 | J198: 1
A199: 36 | B199: 8 | C199: 40 | D199: 1 | E199: 0 | F199: 0 | G199: 0.0003733333433 | H199: 0.001243333332 | I199: 1 | J199: 1
A200: 36 | B200: 8 | C200: 60 | D200: 1 | E200: 0 | F200: 0 | G200: 0.0002899999963 | H200: 0.001196666621 | I200: 1 | J200: 1
... 761 more rows

Sheet Vancouver (hidden)
A1: Rainfall | B1: Month | C1: Infiltration | D1: Flow Control | E1: Storm Duration Avg (hr) | F1: Storm Duration SD (hr) | G1: Flow Avg (cfs) | H1: Flow SD (cfs) | I1: Duration Distribution Type | J1: Flow distribution type
A2: 40 | B2: 1 | C2: 0 | D2: 0 | E2: 11.5709 | F2: 10.8814 | G2: 0.00864 | H2: 0.02105 | I2: 1 | J2: 1 | L2: distribution types
A3: 40 | B3: 1 | C3: 20 | D3: 0 | E3: 9.9578 | F3: 9.6056 | G3: 0.00559 | H3: 0.01864 | I3: 1 | J3: 1 | L3: 0 - normal
A4: 40 | B4: 1 | C4: 40 | D4: 0 | E4: 7.7703 | F4: 7.9243 | G4: 0.00528 | H4: 0.01936 | I4: 1 | J4: 1 | L4: 1 - log normal
A5: 40 | B5: 1 | C5: 60 | D5: 0 | E5: 6.2761 | F5: 6.2787 | G5: 0.00353 | H5: 0.01706 | I5: 1 | J5: 1 | L5: 2 - logistic
A6: 40 | B6: 1 | C6: 80 | D6: 0 | E6: 4.887 | F6: 4.6846 | G6: 0.00177 | H6: 0.01317 | I6: 1 | J6: 1
A7: 40 | B7: 1 | C7: 0 | D7: 1 | E7: 0 | F7: 0 | G7: 0.00713 | H7: 0.00366 | I7: 1 | J7: 1
A8: 40 | B8: 1 | C8: 20 | D8: 1 | E8: 0 | F8: 0 | G8: 0.00573 | H8: 0.00387 | I8: 1 | J8: 1
A9: 40 | B9: 1 | C9: 40 | D9: 1 | E9: 0 | F9: 0 | G9: 0.00431 | H9: 0.00384 | I9: 1 | J9: 1
A10: 40 | B10: 1 | C10: 60 | D10: 1 | E10: 0 | F10: 0 | G10: 0.00289 | H10: 0.00378 | I10: 1 | J10: 1
A11: 40 | B11: 1 | C11: 80 | D11: 1 | E11: 0 | F11: 0 | G11: 0.00142 | H11: 0.00325 | I11: 1 | J11: 1
A12: 40 | B12: 2 | C12: 0 | D12: 0 | E12: 10.9457 | F12: 9.9764 | G12: 0.00772 | H12: 0.01971 | I12: 1 | J12: 1
A13: 40 | B13: 2 | C13: 20 | D13: 0 | E13: 9.6113 | F13: 9.3763 | G13: 0.00477 | H13: 0.0171 | I13: 1 | J13: 1
A14: 40 | B14: 2 | C14: 40 | D14: 0 | E14: 7.6792 | F14: 8.168 | G14: 0.0046 | H14: 0.01804 | I14: 1 | J14: 1
A15: 40 | B15: 2 | C15: 60 | D15: 0 | E15: 6.0845 | F15: 7.0863 | G15: 0.00301 | H15: 0.01578 | I15: 1 | J15: 1
A16: 40 | B16: 2 | C16: 80 | D16: 0 | E16: 4.7081 | F16: 4.8895 | G16: 0.00147 | H16: 0.01205 | I16: 1 | J16: 1
A17: 40 | B17: 2 | C17: 0 | D17: 1 | E17: 0 | F17: 0 | G17: 0.00642 | H17: 0.00321 | I17: 1 | J17: 1
A18: 40 | B18: 2 | C18: 20 | D18: 1 | E18: 0 | F18: 0 | G18: 0.00504 | H18: 0.00344 | I18: 1 | J18: 1
A19: 40 | B19: 2 | C19: 40 | D19: 1 | E19: 0 | F19: 0 | G19: 0.00367 | H19: 0.00351 | I19: 1 | J19: 1
A20: 40 | B20: 2 | C20: 60 | D20: 1 | E20: 0 | F20: 0 | G20: 0.00236 | H20: 0.00359 | I20: 1 | J20: 1
A21: 40 | B21: 2 | C21: 80 | D21: 1 | E21: 0 | F21: 0 | G21: 0.00115 | H21: 0.00316 | I21: 1 | J21: 1
A22: 40 | B22: 3 | C22: 0 | D22: 0 | E22: 9.6062 | F22: 8.6943 | G22: 0.00599 | H22: 0.01613 | I22: 1 | J22: 1
A23: 40 | B23: 3 | C23: 20 | D23: 0 | E23: 8.2469 | F23: 7.87 | G23: 0.00348 | H23: 0.01379 | I23: 1 | J23: 1
A24: 40 | B24: 3 | C24: 40 | D24: 0 | E24: 6.4753 | F24: 6.5551 | G24: 0.00328 | H24: 0.01456 | I24: 1 | J24: 1
A25: 40 | B25: 3 | C25: 60 | D25: 0 | E25: 5.0652 | F25: 5.0713 | G25: 0.00198 | H25: 0.0122 | I25: 1 | J25: 1
A26: 40 | B26: 3 | C26: 80 | D26: 0 | E26: 3.7091 | F26: 3.7033 | G26: 0.00079 | H26: 0.0083 | I26: 1 | J26: 1
A27: 40 | B27: 3 | C27: 0 | D27: 1 | E27: 0 | F27: 0 | G27: 0.00533 | H27: 0.00271 | I27: 1 | J27: 1
A28: 40 | B28: 3 | C28: 20 | D28: 1 | E28: 0 | F28: 0 | G28: 0.00393 | H28: 0.00284 | I28: 1 | J28: 1
A29: 40 | B29: 3 | C29: 40 | D29: 1 | E29: 0 | F29: 0 | G29: 0.0027 | H29: 0.00271 | I29: 1 | J29: 1
A30: 40 | B30: 3 | C30: 60 | D30: 1 | E30: 0 | F30: 0 | G30: 0.00157 | H30: 0.00248 | I30: 1 | J30: 1
A31: 40 | B31: 3 | C31: 80 | D31: 1 | E31: 0 | F31: 0 | G31: 0.00062 | H31: 0.00194 | I31: 1 | J31: 1
A32: 40 | B32: 4 | C32: 0 | D32: 0 | E32: 8.1581 | F32: 7.2502 | G32: 0.00429 | H32: 0.01388 | I32: 1 | J32: 1
A33: 40 | B33: 4 | C33: 20 | D33: 0 | E33: 7.1915 | F33: 6.7178 | G33: 0.003255 | H33: 0.013145 | I33: 1 | J33: 1
A34: 40 | B34: 4 | C34: 40 | D34: 0 | E34: 5.386 | F34: 5.2128 | G34: 0.00222 | H34: 0.01241 | I34: 1 | J34: 1
A35: 40 | B35: 4 | C35: 60 | D35: 0 | E35: 4.1411 | F35: 4.5182 | G35: 0.00133 | H35: 0.01052 | I35: 1 | J35: 1
A36: 40 | B36: 4 | C36: 80 | D36: 0 | E36: 3.3152 | F36: 3.7778 | G36: 0.00056 | H36: 0.00732 | I36: 1 | J36: 1
A37: 40 | B37: 4 | C37: 0 | D37: 1 | E37: 0 | F37: 0 | G37: 0.00342 | H37: 0.00221 | I37: 1 | J37: 1
A38: 40 | B38: 4 | C38: 20 | D38: 1 | E38: 0 | F38: 0 | G38: 0.00232 | H38: 0.00225 | I38: 1 | J38: 1
A39: 40 | B39: 4 | C39: 40 | D39: 1 | E39: 0 | F39: 0 | G39: 0.00153 | H39: 0.00216 | I39: 1 | J39: 1
A40: 40 | B40: 4 | C40: 60 | D40: 1 | E40: 0 | F40: 0 | G40: 0.00088 | H40: 0.00206 | I40: 1 | J40: 1
A41: 40 | B41: 4 | C41: 80 | D41: 1 | E41: 0 | F41: 0 | G41: 0.00036 | H41: 0.00171 | I41: 1 | J41: 1
A42: 40 | B42: 5 | C42: 0 | D42: 0 | E42: 7.7206 | F42: 6.6079 | G42: 0.00389 | H42: 0.01406 | I42: 1 | J42: 1
A43: 40 | B43: 5 | C43: 20 | D43: 0 | E43: 6.7822 | F43: 6.2358 | G43: 0.002995 | H43: 0.013435 | I43: 1 | J43: 1
A44: 40 | B44: 5 | C44: 40 | D44: 0 | E44: 5.4712 | F44: 5.3595 | G44: 0.0021 | H44: 0.01281 | I44: 1 | J44: 1
A45: 40 | B45: 5 | C45: 60 | D45: 0 | E45: 4.5469 | F45: 4.4933 | G45: 0.00129 | H45: 0.01083 | I45: 1 | J45: 1
A46: 40 | B46: 5 | C46: 80 | D46: 0 | E46: 3.2805 | F46: 2.9045 | G46: 0.00057 | H46: 0.00811 | I46: 1 | J46: 1
A47: 40 | B47: 5 | C47: 0 | D47: 1 | E47: 0 | F47: 0 | G47: 0.00219 | H47: 0.00194 | I47: 1 | J47: 1
A48: 40 | B48: 5 | C48: 20 | D48: 1 | E48: 0 | F48: 0 | G48: 0.0016 | H48: 0.00193 | I48: 1 | J48: 1
A49: 40 | B49: 5 | C49: 40 | D49: 1 | E49: 0 | F49: 0 | G49: 0.00112 | H49: 0.00179 | I49: 1 | J49: 1
A50: 40 | B50: 5 | C50: 60 | D50: 1 | E50: 0 | F50: 0 | G50: 0.00069 | H50: 0.00162 | I50: 1 | J50: 1
A51: 40 | B51: 5 | C51: 80 | D51: 1 | E51: 0 | F51: 0 | G51: 0.00031 | H51: 0.00129 | I51: 1 | J51: 1
A52: 40 | B52: 6 | C52: 0 | D52: 0 | E52: 7.5206 | F52: 5.9906 | G52: 0.00366 | H52: 0.01462 | I52: 1 | J52: 1
A53: 40 | B53: 6 | C53: 20 | D53: 0 | E53: 6.4104 | F53: 5.2634 | G53: 0.002865 | H53: 0.01404 | I53: 1 | J53: 1
A54: 40 | B54: 6 | C54: 40 | D54: 0 | E54: 5.1416 | F54: 4.8179 | G54: 0.00207 | H54: 0.01346 | I54: 1 | J54: 1
A55: 40 | B55: 6 | C55: 60 | D55: 0 | E55: 4.3264 | F55: 4.1871 | G55: 0.00134 | H55: 0.01154 | I55: 1 | J55: 1
A56: 40 | B56: 6 | C56: 80 | D56: 0 | E56: 3.4242 | F56: 3.8246 | G56: 0.00063 | H56: 0.00897 | I56: 1 | J56: 1
A57: 40 | B57: 6 | C57: 0 | D57: 1 | E57: 0 | F57: 0 | G57: 0.0018 | H57: 0.00189 | I57: 1 | J57: 1
A58: 40 | B58: 6 | C58: 20 | D58: 1 | E58: 0 | F58: 0 | G58: 0.00136 | H58: 0.00189 | I58: 1 | J58: 1
A59: 40 | B59: 6 | C59: 40 | D59: 1 | E59: 0 | F59: 0 | G59: 0.00099 | H59: 0.00177 | I59: 1 | J59: 1
A60: 40 | B60: 6 | C60: 60 | D60: 1 | E60: 0 | F60: 0 | G60: 0.00064 | H60: 0.00165 | I60: 1 | J60: 1
A61: 40 | B61: 6 | C61: 80 | D61: 1 | E61: 0 | F61: 0 | G61: 0.00031 | H61: 0.00139 | I61: 1 | J61: 1
A62: 40 | B62: 7 | C62: 0 | D62: 0 | E62: 6.5622 | F62: 4.5033 | G62: 0.0026 | H62: 0.01247 | I62: 1 | J62: 1
A63: 40 | B63: 7 | C63: 20 | D63: 0 | E63: 5.4667 | F63: 4.3176 | G63: 0.002025 | H63: 0.01202 | I63: 1 | J63: 1
A64: 40 | B64: 7 | C64: 40 | D64: 0 | E64: 4.6471 | F64: 3.7742 | G64: 0.00145 | H64: 0.01157 | I64: 1 | J64: 1
A65: 40 | B65: 7 | C65: 60 | D65: 0 | E65: 0 | F65: 0 | G65: 0.00096 | H65: 0.01043 | I65: 1 | J65: 1
A66: 40 | B66: 7 | C66: 80 | D66: 0 | E66: 0 | F66: 0 | G66: 0.00046 | H66: 0.00706 | I66: 1 | J66: 1
A67: 40 | B67: 7 | C67: 0 | D67: 1 | E67: 0 | F67: 0 | G67: 0.00079 | H67: 0.00129 | I67: 1 | J67: 1
A68: 40 | B68: 7 | C68: 20 | D68: 1 | E68: 0 | F68: 0 | G68: 0.00058 | H68: 0.00123 | I68: 1 | J68: 1
A69: 40 | B69: 7 | C69: 40 | D69: 1 | E69: 0 | F69: 0 | G69: 0.00041 | H69: 0.00113 | I69: 1 | J69: 1
A70: 40 | B70: 7 | C70: 60 | D70: 1 | E70: 0 | F70: 0 | G70: 0.00027 | H70: 0.00103 | I70: 1 | J70: 1
A71: 40 | B71: 7 | C71: 80 | D71: 1 | E71: 0 | F71: 0 | G71: 0.00014 | H71: 0.00088 | I71: 1 | J71: 1
A72: 40 | B72: 8 | C72: 0 | D72: 0 | E72: 7.0375 | F72: 6.0504 | G72: 0.00388 | H72: 0.01592 | I72: 1 | J72: 1
A73: 40 | B73: 8 | C73: 20 | D73: 0 | E73: 5.9961 | F73: 5.7918 | G73: 0.00305 | H73: 0.01536 | I73: 1 | J73: 1
A74: 40 | B74: 8 | C74: 40 | D74: 0 | E74: 4.9502 | F74: 5.0426 | G74: 0.00222 | H74: 0.0148 | I74: 1 | J74: 1
A75: 40 | B75: 8 | C75: 60 | D75: 0 | E75: 4.2647 | F75: 3.9143 | G75: 0.00147 | H75: 0.01336 | I75: 1 | J75: 1
A76: 40 | B76: 8 | C76: 80 | D76: 0 | E76: 0 | F76: 0 | G76: 0.00075 | H76: 0.01058 | I76: 1 | J76: 1
A77: 40 | B77: 8 | C77: 0 | D77: 1 | E77: 0 | F77: 0 | G77: 0.00074 | H77: 0.00146 | I77: 1 | J77: 1
A78: 40 | B78: 8 | C78: 20 | D78: 1 | E78: 0 | F78: 0 | G78: 0.0006 | H78: 0.00144 | I78: 1 | J78: 1
A79: 40 | B79: 8 | C79: 40 | D79: 1 | E79: 0 | F79: 0 | G79: 0.00048 | H79: 0.00137 | I79: 1 | J79: 1
A80: 40 | B80: 8 | C80: 60 | D80: 1 | E80: 0 | F80: 0 | G80: 0.00038 | H80: 0.00137 | I80: 1 | J80: 1
A81: 40 | B81: 8 | C81: 80 | D81: 1 | E81: 0 | F81: 0 | G81: 0.00027 | H81: 0.00135 | I81: 1 | J81: 1
A82: 40 | B82: 9 | C82: 0 | D82: 0 | E82: 8.4956 | F82: 6.8253 | G82: 0.00483 | H82: 0.01857 | I82: 1 | J82: 1
A83: 40 | B83: 9 | C83: 20 | D83: 0 | E83: 7.4932 | F83: 6.7327 | G83: 0.003865 | H83: 0.017905 | I83: 1 | J83: 1
A84: 40 | B84: 9 | C84: 40 | D84: 0 | E84: 5.8355 | F84: 5.5642 | G84: 0.0029 | H84: 0.01724 | I84: 1 | J84: 1
A85: 40 | B85: 9 | C85: 60 | D85: 0 | E85: 4.6985 | F85: 4.727 | G85: 0.00195 | H85: 0.01563 | I85: 1 | J85: 1
A86: 40 | B86: 9 | C86: 80 | D86: 0 | E86: 3.5385 | F86: 3.3474 | G86: 0.00101 | H86: 0.0125 | I86: 1 | J86: 1
A87: 40 | B87: 9 | C87: 0 | D87: 1 | E87: 0 | F87: 0 | G87: 0.00172 | H87: 0.00201 | I87: 1 | J87: 1
A88: 40 | B88: 9 | C88: 20 | D88: 1 | E88: 0 | F88: 0 | G88: 0.0014 | H88: 0.00205 | I88: 1 | J88: 1
A89: 40 | B89: 9 | C89: 40 | D89: 1 | E89: 0 | F89: 0 | G89: 0.0011 | H89: 0.00197 | I89: 1 | J89: 1
A90: 40 | B90: 9 | C90: 60 | D90: 1 | E90: 0 | F90: 0 | G90: 0.00079 | H90: 0.00195 | I90: 1 | J90: 1
A91: 40 | B91: 9 | C91: 80 | D91: 1 | E91: 0 | F91: 0 | G91: 0.00046 | H91: 0.00188 | I91: 1 | J91: 1
A92: 40 | B92: 10 | C92: 0 | D92: 0 | E92: 9.4776 | F92: 8.4738 | G92: 0.00656 | H92: 0.02013 | I92: 1 | J92: 1
A93: 40 | B93: 10 | C93: 20 | D93: 0 | E93: 8.2465 | F93: 7.893 | G93: 0.005275 | H93: 0.019505 | I93: 1 | J93: 1
A94: 40 | B94: 10 | C94: 40 | D94: 0 | E94: 6.4177 | F94: 6.3033 | G94: 0.00399 | H94: 0.01888 | I94: 1 | J94: 1
A95: 40 | B95: 10 | C95: 60 | D95: 0 | E95: 5.2088 | F95: 5.1937 | G95: 0.0027 | H95: 0.01678 | I95: 1 | J95: 1
A96: 40 | B96: 10 | C96: 80 | D96: 0 | E96: 3.9337 | F96: 3.7427 | G96: 0.00138 | H96: 0.01331 | I96: 1 | J96: 1
A97: 40 | B97: 10 | C97: 0 | D97: 1 | E97: 0 | F97: 0 | G97: 0.00328 | H97: 0.00263 | I97: 1 | J97: 1
A98: 40 | B98: 10 | C98: 20 | D98: 1 | E98: 0 | F98: 0 | G98: 0.00282 | H98: 0.00285 | I98: 1 | J98: 1
A99: 40 | B99: 10 | C99: 40 | D99: 1 | E99: 0 | F99: 0 | G99: 0.00227 | H99: 0.0029 | I99: 1 | J99: 1
A100: 40 | B100: 10 | C100: 60 | D100: 1 | E100: 0 | F100: 0 | G100: 0.00162 | H100: 0.003 | I100: 1 | J100: 1
A101: 40 | B101: 10 | C101: 80 | D101: 1 | E101: 0 | F101: 0 | G101: 0.00089 | H101: 0.00284 | I101: 1 | J101: 1
A102: 40 | B102: 11 | C102: 0 | D102: 0 | E102: 11.4155 | F102: 10.3289 | G102: 0.00894 | H102: 0.02254 | I102: 1 | J102: 1
A103: 40 | B103: 11 | C103: 20 | D103: 0 | E103: 9.8609 | F103: 9.4828 | G103: 0.00613 | H103: 0.02044 | I103: 1 | J103: 1
A104: 40 | B104: 11 | C104: 40 | D104: 0 | E104: 7.8093 | F104: 7.4246 | G104: 0.00559 | H104: 0.02098 | I104: 1 | J104: 1
A105: 40 | B105: 11 | C105: 60 | D105: 0 | E105: 5.97 | F105: 5.9826 | G105: 0.00381 | H105: 0.01875 | I105: 1 | J105: 1
A106: 40 | B106: 11 | C106: 80 | D106: 0 | E106: 4.8574 | F106: 5.0338 | G106: 0.002 | H106: 0.01483 | I106: 1 | J106: 1
A107: 40 | B107: 11 | C107: 0 | D107: 1 | E107: 0 | F107: 0 | G107: 0.0061 | H107: 0.00318 | I107: 1 | J107: 1
A108: 40 | B108: 11 | C108: 20 | D108: 1 | E108: 0 | F108: 0 | G108: 0.00539 | H108: 0.00363 | I108: 1 | J108: 1
A109: 40 | B109: 11 | C109: 40 | D109: 1 | E109: 0 | F109: 0 | G109: 0.00433 | H109: 0.00377 | I109: 1 | J109: 1
A110: 40 | B110: 11 | C110: 60 | D110: 1 | E110: 0 | F110: 0 | G110: 0.0031 | H110: 0.004 | I110: 1 | J110: 1
A111: 40 | B111: 11 | C111: 80 | D111: 1 | E111: 0 | F111: 0 | G111: 0.00167 | H111: 0.00377 | I111: 1 | J111: 1
A112: 40 | B112: 12 | C112: 0 | D112: 0 | E112: 11.8636 | F112: 11.0909 | G112: 0.00879 | H112: 0.02162 | I112: 1 | J112: 1
A113: 40 | B113: 12 | C113: 20 | D113: 0 | E113: 10.4516 | F113: 9.623 | G113: 0.00612 | H113: 0.01974 | I113: 1 | J113: 1
A114: 40 | B114: 12 | C114: 40 | D114: 0 | E114: 8.0772 | F114: 7.8589 | G114: 0.00546 | H114: 0.01989 | I114: 1 | J114: 1
A115: 40 | B115: 12 | C115: 60 | D115: 0 | E115: 6.4292 | F115: 6.6648 | G115: 0.00369 | H115: 0.01762 | I115: 1 | J115: 1
A116: 40 | B116: 12 | C116: 80 | D116: 0 | E116: 5.108 | F116: 4.8638 | G116: 0.00189 | H116: 0.01366 | I116: 1 | J116: 1
A117: 40 | B117: 12 | C117: 0 | D117: 1 | E117: 0 | F117: 0 | G117: 0.00749 | H117: 0.00323 | I117: 1 | J117: 1
A118: 40 | B118: 12 | C118: 20 | D118: 1 | E118: 0 | F118: 0 | G118: 0.0063 | H118: 0.00353 | I118: 1 | J118: 1
A119: 40 | B119: 12 | C119: 40 | D119: 1 | E119: 0 | F119: 0 | G119: 0.00479 | H119: 0.0037 | I119: 1 | J119: 1
A120: 40 | B120: 12 | C120: 60 | D120: 1 | E120: 0 | F120: 0 | G120: 0.00318 | H120: 0.00391 | I120: 1 | J120: 1
A121: 40 | B121: 12 | C121: 80 | D121: 1 | E121: 0 | F121: 0 | G121: 0.00162 | H121: 0.0035 | I121: 1 | J121: 1
A122: 44 | B122: 1 | C122: 0 | D122: 0 | E122: 12.0612 | F122: 11.5505 | G122: 0.009539999999 | H122: 0.02301499993 | I122: 1 | J122: 1
A123: 44 | B123: 1 | C123: 20 | D123: 0 | E123: 10.1586 | F123: 9.8751 | G123: 0.006260000169 | H123: 0.02047500014 | I123: 1 | J123: 1
A124: 44 | B124: 1 | C124: 40 | D124: 0 | E124: 7.8852 | F124: 8.1182 | G124: 0.005839999765 | H124: 0.02113500051 | I124: 1 | J124: 1
A125: 44 | B125: 1 | C125: 60 | D125: 0 | E125: 6.3754 | F125: 6.3481 | G125: 0.003934999928 | H125: 0.01862999983 | I125: 1 | J125: 1
A126: 44 | B126: 1 | C126: 80 | D126: 0 | E126: 4.9426 | F126: 4.6899 | G126: 0.001939999987 | H126: 0.01414499991 | I126: 1 | J126: 1
A127: 44 | B127: 1 | C127: 0 | D127: 1 | E127: 104.0219 | F127: 122.6107 | G127: 0.007899999619 | H127: 0.004424999934 | I127: 1 | J127: 1
A128: 44 | B128: 1 | C128: 20 | D128: 1 | E128: 55.9416 | F128: 67.4829 | G128: 0.006380000152 | H128: 0.004689999856 | I128: 1 | J128: 1
A129: 44 | B129: 1 | C129: 40 | D129: 1 | E129: 36.4464 | F129: 45.0864 | G129: 0.004809999838 | H129: 0.004669999704 | I129: 1 | J129: 1
A130: 44 | B130: 1 | C130: 60 | D130: 1 | E130: 23.9378 | F130: 26.3933 | G130: 0.003239999991 | H130: 0.004429999739 | I130: 1 | J130: 1
A131: 44 | B131: 1 | C131: 80 | D131: 1 | E131: 12.4024 | F131: 11.6278 | G131: 0.001575000002 | H131: 0.00383000006 | I131: 1 | J131: 1
A132: 44 | B132: 2 | C132: 0 | D132: 0 | E132: 11.3668 | F132: 10.4836 | G132: 0.008515000343 | H132: 0.02155499905 | I132: 1 | J132: 1
A133: 44 | B133: 2 | C133: 20 | D133: 0 | E133: 9.8651 | F133: 9.6044 | G133: 0.005324999802 | H133: 0.01878000051 | I133: 1 | J133: 1
A134: 44 | B134: 2 | C134: 40 | D134: 0 | E134: 7.7393 | F134: 8.189 | G134: 0.005080000032 | H134: 0.01972499862 | I134: 1 | J134: 1
A135: 44 | B135: 2 | C135: 60 | D135: 0 | E135: 6.2127 | F135: 7.1917 | G135: 0.003345000092 | H135: 0.01719500124 | I135: 1 | J135: 1
A136: 44 | B136: 2 | C136: 80 | D136: 0 | E136: 4.6976 | F136: 5.1449 | G136: 0.001610000036 | H136: 0.01297499985 | I136: 1 | J136: 1
A137: 44 | B137: 2 | C137: 0 | D137: 1 | E137: 78.4931 | F137: 96.949 | G137: 0.007059999742 | H137: 0.003905000165 | I137: 1 | J137: 1
A138: 44 | B138: 2 | C138: 20 | D138: 1 | E138: 47.4571 | F138: 56.6527 | G138: 0.005560000427 | H138: 0.004220000003 | I138: 1 | J138: 1
A139: 44 | B139: 2 | C139: 40 | D139: 1 | E139: 29.1676 | F139: 34.4257 | G139: 0.004064999986 | H139: 0.004309999757 | I139: 1 | J139: 1
A140: 44 | B140: 2 | C140: 60 | D140: 1 | E140: 20.2981 | F140: 22.0125 | G140: 0.002650000155 | H140: 0.004209999926 | I140: 1 | J140: 1
A141: 44 | B141: 2 | C141: 80 | D141: 1 | E141: 11.3657 | F141: 11.1276 | G141: 0.001279999968 | H141: 0.003709999844 | I141: 1 | J141: 1
A142: 44 | B142: 3 | C142: 0 | D142: 0 | E142: 9.9061 | F142: 9.0006 | G142: 0.006629999727 | H142: 0.0177699998 | I142: 1 | J142: 1
A143: 44 | B143: 3 | C143: 20 | D143: 0 | E143: 8.4321 | F143: 7.9701 | G143: 0.003920000046 | H143: 0.01528500021 | I143: 1 | J143: 1
A144: 44 | B144: 3 | C144: 40 | D144: 0 | E144: 6.5224 | F144: 6.5317 | G144: 0.003649999853 | H144: 0.01602499932 | I144: 1 | J144: 1
A145: 44 | B145: 3 | C145: 60 | D145: 0 | E145: 5.0819 | F145: 5.1641 | G145: 0.002224999946 | H145: 0.01342999935 | I145: 1 | J145: 1
A146: 44 | B146: 3 | C146: 80 | D146: 0 | E146: 3.7275 | F146: 3.7067 | G146: 0.0008800000069 | H146: 0.009029999375 | I146: 1 | J146: 1
A147: 44 | B147: 3 | C147: 0 | D147: 1 | E147: 39.3403 | F147: 47.0956 | G147: 0.00578000024 | H147: 0.003304999787 | I147: 1 | J147: 1
A148: 44 | B148: 3 | C148: 20 | D148: 1 | E148: 29.024 | F148: 34.503 | G148: 0.004315000027 | H148: 0.003434999846 | I148: 1 | J148: 1
A149: 44 | B149: 3 | C149: 40 | D149: 1 | E149: 18.5697 | F149: 20.4392 | G149: 0.002979999874 | H149: 0.00327999983 | I149: 1 | J149: 1
A150: 44 | B150: 3 | C150: 60 | D150: 1 | E150: 14.2546 | F150: 18.7794 | G150: 0.001769999973 | H150: 0.002940000035 | I150: 1 | J150: 1
A151: 44 | B151: 3 | C151: 80 | D151: 1 | E151: 7.6038 | F151: 7.886 | G151: 0.0006949999952 | H151: 0.002325000009 | I151: 1 | J151: 1
A152: 44 | B152: 4 | C152: 0 | D152: 0 | E152: 8.4907 | F152: 7.4287 | G152: 0.004715000279 | H152: 0.01517499983 | I152: 1 | J152: 1
A153: 44 | B153: 4 | C153: 20 | D153: 0 | E153: 7.304 | F153: 6.8767 | G153: 0.003575000097 | H153: 0.01436499972 | I153: 1 | J153: 1
A154: 44 | B154: 4 | C154: 40 | D154: 0 | E154: 5.3999 | F154: 5.2255 | G154: 0.002434999915 | H154: 0.0135549996 | I154: 1 | J154: 1
A155: 44 | B155: 4 | C155: 60 | D155: 0 | E155: 4.1803 | F155: 4.5328 | G155: 0.001470000017 | H155: 0.01146499999 | I155: 1 | J155: 1
A156: 44 | B156: 4 | C156: 80 | D156: 0 | E156: 3.2453 | F156: 3.7529 | G156: 0.0006050000084 | H156: 0.007825000212 | I156: 1 | J156: 1
A157: 44 | B157: 4 | C157: 0 | D157: 1 | E157: 0 | F157: 0 | G157: 0.003689999925 | H157: 0.002695000032 | I157: 1 | J157: 1
A158: 44 | B158: 4 | C158: 20 | D158: 1 | E158: 0 | F158: 0 | G158: 0.002580000088 | H158: 0.002744999947 | I158: 1 | J158: 1
A159: 44 | B159: 4 | C159: 40 | D159: 1 | E159: 0 | F159: 0 | G159: 0.001720000058 | H159: 0.002624999965 | I159: 1 | J159: 1
A160: 44 | B160: 4 | C160: 60 | D160: 1 | E160: 0 | F160: 0 | G160: 0.001004999969 | H160: 0.002420000033 | I160: 1 | J160: 1
A161: 44 | B161: 4 | C161: 80 | D161: 1 | E161: 0 | F161: 0 | G161: 0.0004049999989 | H161: 0.001999999862 | I161: 1 | J161: 1
A162: 44 | B162: 5 | C162: 0 | D162: 0 | E162: 8.0547 | F162: 6.951 | G162: 0.004319999833 | H162: 0.01534499973 | I162: 1 | J162: 1
A163: 44 | B163: 5 | C163: 20 | D163: 0 | E163: 6.797 | F163: 6.3105 | G163: 0.003322499921 | H163: 0.01462499984 | I163: 1 | J163: 1
A164: 44 | B164: 5 | C164: 40 | D164: 0 | E164: 5.4837 | F164: 5.374 | G164: 0.002325000009 | H164: 0.01390499994 | I164: 1 | J164: 1
A165: 44 | B165: 5 | C165: 60 | D165: 0 | E165: 4.5221 | F165: 4.5541 | G165: 0.001434999984 | H165: 0.01170000061 | I165: 1 | J165: 1
A166: 44 | B166: 5 | C166: 80 | D166: 0 | E166: 3.2802 | F166: 2.8992 | G166: 0.0006150000263 | H166: 0.008609999903 | I166: 1 | J166: 1
A167: 44 | B167: 5 | C167: 0 | D167: 1 | E167: 0 | F167: 0 | G167: 0.002439999953 | H167: 0.002379999962 | I167: 1 | J167: 1
A168: 44 | B168: 5 | C168: 20 | D168: 1 | E168: 0 | F168: 0 | G168: 0.001810000045 | H168: 0.002355000004 | I168: 1 | J168: 1
A169: 44 | B169: 5 | C169: 40 | D169: 1 | E169: 0 | F169: 0 | G169: 0.001270000008 | H169: 0.002180000069 | I169: 1 | J169: 1
A170: 44 | B170: 5 | C170: 60 | D170: 1 | E170: 0 | F170: 0 | G170: 0.0007850000402 | H170: 0.001930000028 | I170: 1 | J170: 1
A171: 44 | B171: 5 | C171: 80 | D171: 1 | E171: 0 | F171: 0 | G171: 0.0003499999875 | H171: 0.001565000042 | I171: 1 | J171: 1
A172: 44 | B172: 6 | C172: 0 | D172: 0 | E172: 7.6404 | F172: 6.2163 | G172: 0.004029999953 | H172: 0.01587500051 | I172: 1 | J172: 1
A173: 44 | B173: 6 | C173: 20 | D173: 0 | E173: 6.4815 | F173: 5.4365 | G173: 0.003155000042 | H173: 0.01523500029 | I173: 1 | J173: 1
A174: 44 | B174: 6 | C174: 40 | D174: 0 | E174: 5.2516 | F174: 4.8844 | G174: 0.002280000132 | H174: 0.01459500007 | I174: 1 | J174: 1
A175: 44 | B175: 6 | C175: 60 | D175: 0 | E175: 4.2654 | F175: 4.1425 | G175: 0.001479999977 | H175: 0.0125099998 | I175: 1 | J175: 1
A176: 44 | B176: 6 | C176: 80 | D176: 0 | E176: 3.4495 | F176: 3.9803 | G176: 0.0006849999772 | H176: 0.009479999542 | I176: 1 | J176: 1
A177: 44 | B177: 6 | C177: 0 | D177: 1 | E177: 0 | F177: 0 | G177: 0.002014999976 | H177: 0.002289999975 | I177: 1 | J177: 1
A178: 44 | B178: 6 | C178: 20 | D178: 1 | E178: 0 | F178: 0 | G178: 0.001524999971 | H178: 0.002270000055 | I178: 1 | J178: 1
A179: 44 | B179: 6 | C179: 40 | D179: 1 | E179: 0 | F179: 0 | G179: 0.001114999992 | H179: 0.002139999997 | I179: 1 | J179: 1
A180: 44 | B180: 6 | C180: 60 | D180: 1 | E180: 0 | F180: 0 | G180: 0.0007299999706 | H180: 0.001960000023 | I180: 1 | J180: 1
A181: 44 | B181: 6 | C181: 80 | D181: 1 | E181: 0 | F181: 0 | G181: 0.0003549999965 | H181: 0.001690000063 | I181: 1 | J181: 1
A182: 44 | B182: 7 | C182: 0 | D182: 0 | E182: 6.7484 | F182: 4.6545 | G182: 0.002834999934 | H182: 0.01355000027 | I182: 1 | J182: 1
A183: 44 | B183: 7 | C183: 20 | D183: 0 | E183: 5.6755 | F183: 4.4639 | G183: 0.002207499929 | H183: 0.01305000018 | I183: 1 | J183: 1
A184: 44 | B184: 7 | C184: 40 | D184: 0 | E184: 4.6788 | F184: 3.7452 | G184: 0.001579999924 | H184: 0.0125500001 | I184: 1 | J184: 1
A185: 44 | B185: 7 | C185: 60 | D185: 0 | E185: 1.9505 | F185: 1.6624 | G185: 0.001055000001 | H185: 0.01122500002 | I185: 1 | J185: 1
A186: 44 | B186: 7 | C186: 80 | D186: 0 | E186: 0 | F186: 0 | G186: 0.0004999999655 | H186: 0.007670000196 | I186: 1 | J186: 1
A187: 44 | B187: 7 | C187: 0 | D187: 1 | E187: 0 | F187: 0 | G187: 0.0008800000069 | H187: 0.001560000004 | I187: 1 | J187: 1
A188: 44 | B188: 7 | C188: 20 | D188: 1 | E188: 0 | F188: 0 | G188: 0.0006450000219 | H188: 0.001480000094 | I188: 1 | J188: 1
A189: 44 | B189: 7 | C189: 40 | D189: 1 | E189: 0 | F189: 0 | G189: 0.0004649999901 | H189: 0.001369999954 | I189: 1 | J189: 1
A190: 44 | B190: 7 | C190: 60 | D190: 1 | E190: 0 | F190: 0 | G190: 0.0003150000121 | H190: 0.00124500005 | I190: 1 | J190: 1
A191: 44 | B191: 7 | C191: 80 | D191: 1 | E191: 0 | F191: 0 | G191: 0.0001749999938 | H191: 0.001109999954 | I191: 1 | J191: 1
A192: 44 | B192: 8 | C192: 0 | D192: 0 | E192: 7.4918 | F192: 6.2808 | G192: 0.004215000197 | H192: 0.01716000028 | I192: 1 | J192: 1
A193: 44 | B193: 8 | C193: 20 | D193: 0 | E193: 6.211 | F193: 5.9793 | G193: 0.003312500077 | H193: 0.01656750031 | I193: 1 | J193: 1
A194: 44 | B194: 8 | C194: 40 | D194: 0 | E194: 5.0506 | F194: 5.2029 | G194: 0.002409999957 | H194: 0.01597500034 | I194: 1 | J194: 1
A195: 44 | B195: 8 | C195: 60 | D195: 0 | E195: 4.281 | F195: 3.8617 | G195: 0.001595000038 | H195: 0.0142800007 | I195: 1 | J195: 1
A196: 44 | B196: 8 | C196: 80 | D196: 0 | E196: 0 | F196: 0 | G196: 0.000800000038 | H196: 0.01107499935 | I196: 1 | J196: 1
A197: 44 | B197: 8 | C197: 0 | D197: 1 | E197: 0 | F197: 0 | G197: 0.0008600000292 | H197: 0.001769999973 | I197: 1 | J197: 1
A198: 44 | B198: 8 | C198: 20 | D198: 1 | E198: 0 | F198: 0 | G198: 0.0006950000534 | H198: 0.001739999978 | I198: 1 | J198: 1
A199: 44 | B199: 8 | C199: 40 | D199: 1 | E199: 0 | F199: 0 | G199: 0.0005749999546 | H199: 0.001689999946 | I199: 1 | J199: 1
A200: 44 | B200: 8 | C200: 60 | D200: 1 | E200: 0 | F200: 0 | G200: 0.0004649999901 | H200: 0.001664999989 | I200: 1 | J200: 1
... 521 more rows

Sheet Annual_Runoff_Volume (hidden)
A1: Rain Gauge | B1: Infiltration | C1: Avg Annual Flow (cf) | D1: Std Dev Flow (cf)
A2: Puget East 24 | B2: 0 | C2: 63941 | D2: 14839
A3: Puget East 24 | B3: 20 | C3: 50729 | D3: 12578
A4: Puget East 24 | B4: 40 | C4: 37830 | D4: 10239
A5: Puget East 24 | B5: 60 | C5: 24749 | D5: 7749
A6: Puget East 24 | B6: 80 | C6: 11489 | D6: 4949
A7: Puget East 28 | B7: 0 | C7: 77510 | D7: 16057
A8: Puget East 28 | B8: 20 | C8: 61692 | D8: 13797
A9: Puget East 28 | B9: 40 | C9: 46342 | D9: 11435
A10: Puget East 28 | B10: 60 | C10: 30337 | D10: 8774
A11: Puget East 28 | B11: 80 | C11: 14955 | D11: 5747
A12: Puget East 32 | B12: 0 | C12: 91080 | D12: 17275
A13: Puget East 32 | B13: 20 | C13: 72655 | D13: 15015
A14: Puget East 32 | B14: 40 | C14: 54854 | D14: 12632
A15: Puget East 32 | B15: 60 | C15: 35926 | D15: 9798
A16: Puget East 32 | B16: 80 | C16: 18422 | D16: 6546
A17: Puget East 36 | B17: 0 | C17: 105606 | D17: 19696
A18: Puget East 36 | B18: 20 | C18: 84500 | D18: 17109
A19: Puget East 36 | B19: 40 | C19: 63488 | D19: 14284
A20: Puget East 36 | B20: 60 | C20: 41736 | D20: 11033
A21: Puget East 36 | B21: 80 | C21: 21376 | D21: 7316
A22: Puget East 40 | B22: 0 | C22: 120132 | D22: 22117
A23: Puget East 40 | B23: 20 | C23: 96346 | D23: 19204
A24: Puget East 40 | B24: 40 | C24: 72122 | D24: 15937
A25: Puget East 40 | B25: 60 | C25: 47545 | D25: 12267
A26: Puget East 40 | B26: 80 | C26: 24331 | D26: 8086
A27: Puget East 44 | B27: 0 | C27: 134659 | D27: 24537
A28: Puget East 44 | B28: 20 | C28: 108191 | D28: 21298
A29: Puget East 44 | B29: 40 | C29: 80757 | D29: 17590
A30: Puget East 44 | B30: 60 | C30: 53355 | D30: 13501
A31: Puget East 44 | B31: 80 | C31: 27285 | D31: 8856
A32: Puget East 48 | B32: 0 | C32: 149185 | D32: 26958
A33: Puget East 48 | B33: 20 | C33: 120037 | D33: 23392
A34: Puget East 48 | B34: 40 | C34: 89391 | D34: 19243
A35: Puget East 48 | B35: 60 | C35: 59165 | D35: 14735
A36: Puget East 48 | B36: 80 | C36: 30240 | D36: 9626
A37: Puget East 52 | B37: 0 | C37: 163711 | D37: 29379
A38: Puget East 52 | B38: 20 | C38: 131882 | D38: 25486
A39: Puget East 52 | B39: 40 | C39: 98025 | D39: 20896
A40: Puget East 52 | B40: 60 | C40: 64975 | D40: 15970
A41: Puget East 52 | B41: 80 | C41: 33195 | D41: 10396
A42: Puget East 56 | B42: 0 | C42: 178237 | D42: 31799
A43: Puget East 56 | B43: 20 | C43: 143728 | D43: 27581
A44: Puget East 56 | B44: 40 | C44: 106660 | D44: 22548
A45: Puget East 56 | B45: 60 | C45: 70784 | D45: 17204
A46: Puget East 56 | B46: 80 | C46: 36149 | D46: 11166
A47: Puget East 60 | B47: 0 | C47: 192763 | D47: 34220
A48: Puget East 60 | B48: 20 | C48: 155573 | D48: 29675
A49: Puget East 60 | B49: 40 | C49: 115294 | D49: 24201
A50: Puget East 60 | B50: 60 | C50: 76594 | D50: 18438
A51: Puget East 60 | B51: 80 | C51: 39104 | D51: 11937
A52: Puget West 32 | B52: 0 | C52: 93104 | D52: 19318
A53: Puget West 32 | B53: 20 | C53: 74029 | D53: 16928
A54: Puget West 32 | B54: 40 | C54: 55592 | D54: 14238
A55: Puget West 32 | B55: 60 | C55: 37388 | D55: 11213
A56: Puget West 32 | B56: 80 | C56: 18789 | D56: 7486
A57: Puget West 36 | B57: 0 | C57: 107420 | D57: 22055
A58: Puget West 36 | B58: 20 | C58: 85461 | D58: 19306
A59: Puget West 36 | B59: 40 | C59: 64396 | D59: 16225
A60: Puget West 36 | B60: 60 | C60: 43151 | D60: 12689
A61: Puget West 36 | B61: 80 | C61: 21509 | D61: 8333
A62: Puget West 40 | B62: 0 | C62: 121735 | D62: 24793
A63: Puget West 40 | B63: 20 | C63: 96892 | D63: 21684
A64: Puget West 40 | B64: 40 | C64: 73201 | D64: 18213
A65: Puget West 40 | B65: 60 | C65: 48914 | D65: 14166
A66: Puget West 40 | B66: 80 | C66: 24230 | D66: 9180
A67: Puget West 44 | B67: 0 | C67: 136050 | D67: 27530
A68: Puget West 44 | B68: 20 | C68: 108323 | D68: 24062
A69: Puget West 44 | B69: 40 | C69: 82005 | D69: 20200
A70: Puget West 44 | B70: 60 | C70: 54678 | D70: 15642
A71: Puget West 44 | B71: 80 | C71: 26950 | D71: 10027
A72: Puget West 48 | B72: 0 | C72: 150225 | D72: 30250
A73: Puget West 48 | B73: 20 | C73: 119845 | D73: 26442
A74: Puget West 48 | B74: 40 | C74: 90274 | D74: 22093
A75: Puget West 48 | B75: 60 | C75: 60783 | D75: 17159
A76: Puget West 48 | B76: 80 | C76: 30012 | D76: 10924
A77: Puget West 52 | B77: 0 | C77: 164400 | D77: 32970
A78: Puget West 52 | B78: 20 | C78: 131366 | D78: 28822
A79: Puget West 52 | B79: 40 | C79: 98544 | D79: 23985
A80: Puget West 52 | B80: 60 | C80: 66888 | D80: 18676
A81: Puget West 52 | B81: 80 | C81: 33073 | D81: 11820
A82: Puget West 56 | B82: 0 | C82: 178575 | D82: 35691
A83: Puget West 56 | B83: 20 | C83: 142887 | D83: 31202
A84: Puget West 56 | B84: 40 | C84: 106813 | D84: 25878
A85: Puget West 56 | B85: 60 | C85: 72993 | D85: 20194
A86: Puget West 56 | B86: 80 | C86: 36135 | D86: 12716
A87: Puget West 60 | B87: 0 | C87: 192749 | D87: 38411
A88: Puget West 60 | B88: 20 | C88: 154409 | D88: 33582
A89: Puget West 60 | B89: 40 | C89: 115082 | D89: 27770
A90: Puget West 60 | B90: 60 | C90: 79098 | D90: 21711
A91: Puget West 60 | B91: 80 | C91: 39197 | D91: 13612
A92: Vancouver 40 | B92: 0 | C92: 121035 | D92: 25021
A93: Vancouver 40 | B93: 20 | C93: 96813 | D93: 21591
A94: Vancouver 40 | B94: 40 | C94: 72201 | D94: 17736
A95: Vancouver 40 | B95: 60 | C95: 47596 | D95: 13536
A96: Vancouver 40 | B96: 80 | C96: 23390 | D96: 8602
A97: Vancouver 44 | B97: 0 | C97: 135308 | D97: 27626
A98: Vancouver 44 | B98: 20 | C98: 108346 | D98: 23805
A99: Vancouver 44 | B99: 40 | C99: 80755 | D99: 19527
A100: Vancouver 44 | B100: 60 | C100: 53526 | D100: 14896
A101: Vancouver 44 | B101: 80 | C101: 25848 | D101: 9308
A102: Vancouver 48 | B102: 0 | C102: 149581 | D102: 30230
A103: Vancouver 48 | B103: 20 | C103: 119879 | D103: 26019
A104: Vancouver 48 | B104: 40 | C104: 89309 | D104: 21317
A105: Vancouver 48 | B105: 60 | C105: 59456 | D105: 16256
A106: Vancouver 48 | B106: 80 | C106: 28306 | D106: 10013
A107: Vancouver 52 | B107: 0 | C107: 164022 | D107: 32937
A108: Vancouver 52 | B108: 20 | C108: 131376 | D108: 28321
A109: Vancouver 52 | B109: 40 | C109: 98072 | D109: 23195
A110: Vancouver 52 | B110: 60 | C110: 65392 | D110: 17681
A111: Vancouver 52 | B111: 80 | C111: 32176 | D111: 11086
A112: Vancouver 56 | B112: 0 | C112: 178463 | D112: 35645
A113: Vancouver 56 | B113: 20 | C113: 142873 | D113: 30623
A114: Vancouver 56 | B114: 40 | C114: 106835 | D114: 25072
A115: Vancouver 56 | B115: 60 | C115: 71328 | D115: 19106
A116: Vancouver 56 | B116: 80 | C116: 36046 | D116: 12158
A117: Vancouver 60 | B117: 0 | C117: 192904 | D117: 38352
A118: Vancouver 60 | B118: 20 | C118: 154371 | D118: 32925
A119: Vancouver 60 | B119: 40 | C119: 115598 | D119: 26949
A120: Vancouver 60 | B120: 60 | C120: 77263 | D120: 20531
A121: Vancouver 60 | B121: 80 | C121: 39916 | D121: 13231
A122: Burlington | B122: 0 | C122: 95217 | D122: 22111
A123: Burlington | B123: 20 | C123: 76149 | D123: 18925
A124: Burlington | B124: 40 | C124: 57242 | D124: 15661
A125: Burlington | B125: 60 | C125: 38297 | D125: 12039
A126: Burlington | B126: 80 | C126: 18890 | D126: 7735
A127: Clearwater | B127: 0 | C127: 323992 | D127: 103064
A128: Clearwater | B128: 20 | C128: 259156 | D128: 85382
A129: Clearwater | B129: 40 | C129: 193182 | D129: 66586
A130: Clearwater | B130: 60 | C130: 130733 | D130: 47893
A131: Clearwater | B131: 80 | C131: 65409 | D131: 26817
A132: Darrington | B132: 0 | C132: 213272 | D132: 64053
A133: Darrington | B133: 20 | C133: 171200 | D133: 53602
A134: Darrington | B134: 40 | C134: 127216 | D134: 42147
A135: Darrington | B135: 60 | C135: 85027 | D135: 30724
A136: Darrington | B136: 80 | C136: 43151 | D136: 18330
A137: Frances | B137: 0 | C137: 212179 | D137: 49749
A138: Frances | B138: 20 | C138: 170514 | D138: 42011
A139: Frances | B139: 40 | C139: 127595 | D139: 33607
A140: Frances | B140: 60 | C140: 84100 | D140: 24427
A141: Frances | B141: 80 | C141: 42026 | D141: 14328
A142: Montesano | B142: 0 | C142: 222406 | D142: 60085
A143: Montesano | B143: 20 | C143: 177667 | D143: 50754
A144: Montesano | B144: 40 | C144: 133392 | D144: 41016
A145: Montesano | B145: 60 | C145: 89750 | D145: 30702
A146: Montesano | B146: 80 | C146: 43743 | D146: 18288
A147: Port Angeles | B147: 0 | C147: 60514 | D147: 17284
A148: Port Angeles | B148: 20 | C148: 48577 | D148: 14748
A149: Port Angeles | B149: 40 | C149: 36073 | D149: 11938
A150: Port Angeles | B150: 60 | C150: 23973 | D150: 9080
A151: Port Angeles | B151: 80 | C151: 12117 | D151: 5825
A152: Quilcene | B152: 0 | C152: 198564 | D152: 49673
A153: Quilcene | B153: 20 | C153: 157971 | D153: 42546
A154: Quilcene | B154: 40 | C154: 118301 | D154: 34203
A155: Quilcene | B155: 60 | C155: 79098 | D155: 25028
A156: Quilcene | B156: 80 | C156: 39162 | D156: 14187
A157: Sappho | B157: 0 | C157: 270865 | D157: 70133
A158: Sappho | B158: 20 | C158: 216890 | D158: 59152
A159: Sappho | B159: 40 | C159: 163462 | D159: 47683
A160: Sappho | B160: 60 | C160: 109411 | D160: 35615
A161: Sappho | B161: 80 | C161: 54009 | D161: 22755
A162: Astoria | B162: 0 | C162: 214501 | D162: 44231
A163: Astoria | B163: 20 | C163: 172692 | D163: 37782
A164: Astoria | B164: 40 | C164: 128490 | D164: 30185
A165: Astoria | B165: 60 | C165: 85400 | D165: 22491
A166: Astoria | B166: 80 | C166: 42911 | D166: 14391

Sheet Water Quality (hidden)
A1: treatment | B1: ParameterID | C1: Parameter | D1: Mean Concentration (mg/l) | E1: Standard Deviation | F1: no treatment | G1: basic treatment | H1: enhanced treatment | I1: Treatment | L1: no treatment | M1: basic treatment | N1: enhanced treatment
A2: 0 | B2: 1 | C2: TSS | D2: 106.3507307 | E2: 149.7781538 | I2: 0 - None
A3: 0 | B3: 2 | C3: Total Copper | D3: 0.02188994341 | E3: 0.02161385442 | I3: 1 - Basic
A4: 0 | B4: 3 | C4: Dissolved Copper | D4: 0.005108891136 | E4: 0.005042555018 | I4: 2 - Enhanced
A5: 0 | B5: 4 | C5: Total Zinc | D5: 0.1348452857 | E5: 0.1352736336
A6: 0 | B6: 5 | C6: Dissolved Zinc | D6: 0.04233267064 | E6: 0.05072723974 | I6: Parameter
A7: 1 | B7: 1 | C7: TSS | D7: 11.84702101 | E7: 21.71248111 | I7: 1 - TSS
A8: 1 | B8: 2 | C8: Total Copper | D8: 0.0057259049 | E8: 0.003495469394 | I8: 2 - Total Copper
A9: 1 | B9: 3 | C9: Dissolved Copper | D9: 0.003639896672 | E9: 0.002463578107 | I9: 3 - Dissolved Copper
A10: 1 | B10: 4 | C10: Total Zinc | D10: 0.02831569157 | E10: 0.01957912618 | I10: 4 - Total Zinc
A11: 1 | B11: 5 | C11: Dissolved Zinc | D11: 0.01926003458 | E11: 0.01391113506 | I11: 5 - Dissolved Zinc
A12: 2 | B12: 1 | C12: TSS | D12: 11.84702101 | E12: 21.71248111
A13: 2 | B13: 2 | C13: Total Copper | D13: 0.0057259049 | E13: 0.003495469394
A14: 2 | B14: 3 | C14: Dissolved Copper | D14: 0.003639896672 | E14: 0.002463578107
A15: 2 | B15: 4 | C15: Total Zinc | D15: 0.02831569157 | E15: 0.01957912618
A16: 2 | B16: 5 | C16: Dissolved Zinc | D16: 0.01926003458 | E16: 0.01391113506

Sheet Ref (hidden)
A1: Rainfall Zones | B1: Receiving Water Subasin | C1: Conc Start row | D1: RivPlum Start Row | G1: Outfalls | H1: Treatment Options | I1: WQ Parameters | K1: Months | M1: Loading Iterations | N1: Dilution Iterations | R1: Show Dilution Iteration Plot 1-yes, 0 -no
A2: Astoria | B2: 1 | C2: 9 | D2: 16 | E2: Slope | G2: 1 | H2: All | I2: 0 | J2: All | K2: 0 | L2: All | M2: 100000 | N2: 100000 | P2: slope | R2: 0
A3: Burlington | B3: 2 | C3: 24 | D3: 31 | E3: Manning Roughness | G3: 2 | H3: Basic | I3: 1 | J3: TSS | K3: 1 | L3: January | P3: Manning roughness
A4: Clearwater | B4: 3 | C4: 39 | D4: 46 | G4: 3 | H4: Enhanced | I4: 2 | J4: Copper - Total | K4: 2 | L4: February
A5: Darrington | B5: 4 | C5: 54 | D5: 61 | G5: 4 | H5: No Treatment | I5: 3 | J5: Copper -Dissolved | K5: 3 | L5: March
A6: Frances | B6: 5 | C6: 69 | D6: 76 | G6: 5 | I6: 4 | J6: Zinc - Total | K6: 4 | L6: April
A7: Montesano | G7: 6 | I7: 5 | J7: Zinc - Dissolved | K7: 5 | L7: May
A8: Port Angeles | K8: 6 | L8: June
A9: Quilcene | K9: 7 | L9: July
A10: Sappho | K10: 8 | L10: August
A11: Puget West 32 | K11: 9 | L11: September
A12: Puget West 36 | K12: 10 | L12: October
A13: Puget West 40 | K13: 11 | L13: November
A14: Puget West 44 | K14: 12 | L14: December
A15: Puget West 48
A16: Puget West 52
A17: Puget West 56
A18: Puget West 60
A19: Puget East 24
A20: Puget East 28
A21: Puget East 32
A22: Puget East 36
A23: Puget East 40
A24: Puget East 44
A25: Puget East 48
A26: Puget East 52
A27: Puget East 56
A28: Puget East 60
A29: Vancouver 40
A30: Vancouver 44
A31: Vancouver 48
A32: Vancouver 52
A33: Vancouver 56
A34: Vancouver 60

Sheet Bin Settings (hidden)
A1: ID | B1: Parameter | C1: Bin Increment | D1: Max | F1: Storm Duration Bin
A2: 1 | B2: TSS | C2: 40 | D2: 400 | F2: 3
A3: 2 | B3: Total Copper | C3: 0.01 | D3: 0.1 | F3: 6
A4: 3 | B4: Dissolved Copper | C4: 0.002 | D4: 0.01 | F4: 12
A5: 4 | B5: Total Zinc | C5: 0.05 | D5: 0.3 | F5: 24
A6: 5 | B6: Dissolved Zinc | C6: 0.01 | D6: 0.1 | F6: 48
F7: 96
F8: 192
